Department Family,Entity,Date,Expense Type,Expense Area,Supplier,Transaction Number,Amount,Description
Department for Education,DEPARTMENT FOR EDUCATION,09/09/2020,"Marketing, Media and Comms",COMMUNICATIONS DIRECTORATE,THE STUDENT ROOM GROUP LTD,CORE-PINV-007508,25040,Digital media and web production
Department for Education,DEPARTMENT FOR EDUCATION,24/09/2020,Other Goods & Services,COMMUNICATIONS DIRECTORATE,Kantar UK Ltd,CORE-PINV-007917,24436.25,Provision of boarding activities - other costs
Department for Education,DEPARTMENT FOR EDUCATION,11/09/2020,Grants expenditure,CHILDRENS SOCIAL CARE,FAMILY RIGHTS GROUP LTD,CORE-MAIN-006166,400000,Grants to educational establishments or not for profit organisations including other businesses
Department for Education,DEPARTMENT FOR EDUCATION,11/09/2020,Grants expenditure,CHILDRENS SOCIAL CARE,EARLY INTERVENTION FOUNDATION,CORE-MAIN-006167,130387,Grants to educational establishments or not for profit organisations including other businesses
Department for Education,DEPARTMENT FOR EDUCATION,11/09/2020,Grants expenditure,CHILDRENS SOCIAL CARE,What Works for Children's Social Care,CORE-MAIN-006168,293445,Grants to educational establishments or not for profit organisations including other businesses
Department for Education,DEPARTMENT FOR EDUCATION,11/09/2020,Grants expenditure,CHILDRENS SOCIAL CARE,The National House Project ,CORE-MAIN-006169,158379,Grants to educational establishments or not for profit organisations including other businesses
Department for Education,DEPARTMENT FOR EDUCATION,11/09/2020,Grants expenditure,CHILDRENS SOCIAL CARE,LONDON BOROUGH OF RICHMOND UPON THAMES DCSF,CORE-MAIN-006170,239807,Grants to local authorities
Department for Education,DEPARTMENT FOR EDUCATION,11/09/2020,Grants expenditure,CHILDRENS SOCIAL CARE,LEEDS CITY COUNCIL,CORE-MAIN-006173,342990,Grants to local authorities
Department for Education,DEPARTMENT FOR EDUCATION,11/09/2020,Grants expenditure,CHILDRENS SOCIAL CARE,LINCOLNSHIRE COUNTY COUNCIL,CORE-MAIN-006174,251785,Grants to local authorities
Department for Education,DEPARTMENT FOR EDUCATION,11/09/2020,Grants expenditure,CHILDRENS SOCIAL CARE,NORTH YORKSHIRE COUNTY COUNCIL,CORE-MAIN-006175,821905,Grants to local authorities
Department for Education,DEPARTMENT FOR EDUCATION,11/09/2020,Grants expenditure,CHILDRENS SOCIAL CARE,CAMDEN LONDON BOROUGH COUNCIL,CORE-MAIN-006176,78300,Grants to local authorities
Department for Education,DEPARTMENT FOR EDUCATION,11/09/2020,Grants expenditure,CHILDRENS SOCIAL CARE,CHESHIRE WEST & CHESTER COUNCIL,CORE-MAIN-006177,63142,Grants to local authorities
Department for Education,DEPARTMENT FOR EDUCATION,11/09/2020,Grants expenditure,CHILDRENS SOCIAL CARE,ESSEX COUNTY COUNCIL,CORE-MAIN-006178,30000,Grants to local authorities
Department for Education,DEPARTMENT FOR EDUCATION,11/09/2020,Grants expenditure,CHILDRENS SOCIAL CARE,STOCKPORT METRO BOROUGH COUNCIL,CORE-MAIN-006179,113810,Grants to local authorities
Department for Education,DEPARTMENT FOR EDUCATION,11/09/2020,Grants expenditure,CHILDRENS SOCIAL CARE,NORTH TYNESIDE METRO BOROUGH COUNCIL,CORE-MAIN-006180,173000,Grants to local authorities
Department for Education,DEPARTMENT FOR EDUCATION,11/09/2020,Grants expenditure,CHILDRENS SOCIAL CARE,SOUTH TYNESIDE COUNCIL,CORE-MAIN-006181,102250,Grants to local authorities
Department for Education,DEPARTMENT FOR EDUCATION,30/09/2020,Grants expenditure,CHILDRENS SOCIAL CARE,DAYBREAK FAMILY GROUP CONFERENCES,CORE-MAIN-006651,48068,Grants to educational establishments or not for profit organisations including other businesses
Department for Education,DEPARTMENT FOR EDUCATION,03/09/2020,Other Goods & Services,CHILDRENS SOCIAL CARE,MANCHESTER METRO UNIVERSITY,CORE-PINV-005453,36418.14,Research and Development
Department for Education,DEPARTMENT FOR EDUCATION,01/09/2020,Other Goods & Services,CHILDRENS SOCIAL CARE,MUTUAL VENTURES LTD,CORE-PINV-006834,94327.2,Other Professional Services
Department for Education,DEPARTMENT FOR EDUCATION,24/09/2020,Other Goods & Services,CHILDRENS SOCIAL CARE,MUTUAL VENTURES LTD,CORE-PINV-008206,95385.6,Other Professional Services
Department for Education,DEPARTMENT FOR EDUCATION,30/09/2020,Grants expenditure,CHILDRENS SOCIAL CARE,NSPCC,CORE-MAIN-006652,115000,Grants to educational establishments or not for profit organisations including other businesses
Department for Education,DEPARTMENT FOR EDUCATION,30/09/2020,Grants expenditure,CHILDRENS SOCIAL CARE,DURHAM COUNTY COUNCIL,CORE-MAIN-006654,39034,Grants to local authorities
Department for Education,DEPARTMENT FOR EDUCATION,30/09/2020,Grants expenditure,CHILDRENS SOCIAL CARE,NEWCASTLE CITY COUNCIL,CORE-MAIN-006658,25983,Grants to local authorities
Department for Education,DEPARTMENT FOR EDUCATION,30/09/2020,Grants expenditure,CHILDRENS SOCIAL CARE,NORTH TYNESIDE METRO BOROUGH COUNCIL,CORE-MAIN-006659,26981,Grants to local authorities
Department for Education,DEPARTMENT FOR EDUCATION,30/09/2020,Grants expenditure,CHILDRENS SOCIAL CARE,NORTHUMBERLAND COUNTY COUNCIL,CORE-MAIN-006660,34808,Grants to local authorities
Department for Education,DEPARTMENT FOR EDUCATION,30/09/2020,Grants expenditure,CHILDRENS SOCIAL CARE,SUNDERLAND CITY METRO BOROUGH COUNCIL,CORE-MAIN-006664,29370.5,Grants to local authorities
Department for Education,DEPARTMENT FOR EDUCATION,30/09/2020,Grants expenditure,CHILDRENS SOCIAL CARE,BOLTON METRO BOROUGH COUNCIL,CORE-MAIN-006667,25055.5,Grants to local authorities
Department for Education,DEPARTMENT FOR EDUCATION,30/09/2020,Grants expenditure,CHILDRENS SOCIAL CARE,CHESHIRE EAST BOROUGH COUNCIL,CORE-MAIN-006669,30297.5,Grants to local authorities
Department for Education,DEPARTMENT FOR EDUCATION,30/09/2020,Grants expenditure,CHILDRENS SOCIAL CARE,CHESHIRE WEST & CHESTER COUNCIL,CORE-MAIN-006670,31902,Grants to local authorities
Department for Education,DEPARTMENT FOR EDUCATION,30/09/2020,Grants expenditure,CHILDRENS SOCIAL CARE,CUMBRIA COUNTY COUNCIL,CORE-MAIN-006671,35325.5,Grants to local authorities
Department for Education,DEPARTMENT FOR EDUCATION,30/09/2020,Grants expenditure,CHILDRENS SOCIAL CARE,LANCASHIRE COUNTY COUNCIL,CORE-MAIN-006674,65000,Grants to local authorities
Department for Education,DEPARTMENT FOR EDUCATION,30/09/2020,Grants expenditure,CHILDRENS SOCIAL CARE,LIVERPOOL CITY COUNCIL,CORE-MAIN-006675,34826,Grants to local authorities
Department for Education,DEPARTMENT FOR EDUCATION,30/09/2020,Grants expenditure,CHILDRENS SOCIAL CARE,MANCHESTER CITY COUNCIL,CORE-MAIN-006676,32615,Grants to local authorities
Department for Education,DEPARTMENT FOR EDUCATION,30/09/2020,Grants expenditure,CHILDRENS SOCIAL CARE,OLDHAM METRO BOROUGH COUNCIL,CORE-MAIN-006677,25198.5,Grants to local authorities
Department for Education,DEPARTMENT FOR EDUCATION,30/09/2020,Grants expenditure,CHILDRENS SOCIAL CARE,SEFTON METRO BOROUGH COUNCIL,CORE-MAIN-006680,26339.5,Grants to local authorities
Department for Education,DEPARTMENT FOR EDUCATION,30/09/2020,Grants expenditure,CHILDRENS SOCIAL CARE,ST HELENS METRO BOROUGH COUNCIL,CORE-MAIN-006681,26731.5,Grants to local authorities
Department for Education,DEPARTMENT FOR EDUCATION,30/09/2020,Grants expenditure,CHILDRENS SOCIAL CARE,STOCKPORT METRO BOROUGH COUNCIL,CORE-MAIN-006682,31046.5,Grants to local authorities
Department for Education,DEPARTMENT FOR EDUCATION,30/09/2020,Grants expenditure,CHILDRENS SOCIAL CARE,Trafford Borough Council,CORE-MAIN-006684,26553.5,Grants to local authorities
Department for Education,DEPARTMENT FOR EDUCATION,30/09/2020,Grants expenditure,CHILDRENS SOCIAL CARE,WARRINGTON BOROUGH COUNCIL,CORE-MAIN-006685,26838.5,Grants to local authorities
Department for Education,DEPARTMENT FOR EDUCATION,30/09/2020,Grants expenditure,CHILDRENS SOCIAL CARE,WIGAN METRO BOROUGH COUNCIL,CORE-MAIN-006686,30725.5,Grants to local authorities
Department for Education,DEPARTMENT FOR EDUCATION,30/09/2020,Grants expenditure,CHILDRENS SOCIAL CARE,WIRRAL METRO BOROUGH COUNCIL,CORE-MAIN-006687,31189,Grants to local authorities
Department for Education,DEPARTMENT FOR EDUCATION,30/09/2020,Grants expenditure,CHILDRENS SOCIAL CARE,BRADFORD CITY COUNCIL,CORE-MAIN-006689,33257,Grants to local authorities
Department for Education,DEPARTMENT FOR EDUCATION,30/09/2020,Grants expenditure,CHILDRENS SOCIAL CARE,DONCASTER METRO BOROUGH COUNCIL,CORE-MAIN-006691,25198.5,Grants to local authorities
Department for Education,DEPARTMENT FOR EDUCATION,30/09/2020,Grants expenditure,CHILDRENS SOCIAL CARE,EAST RIDING OF YORKSHIRE COUNCIL,CORE-MAIN-006692,32151.5,Grants to local authorities
Department for Education,DEPARTMENT FOR EDUCATION,30/09/2020,Grants expenditure,CHILDRENS SOCIAL CARE,KIRKLEES METRO COUNCIL,CORE-MAIN-006694,29227.5,Grants to local authorities
Department for Education,DEPARTMENT FOR EDUCATION,30/09/2020,Grants expenditure,CHILDRENS SOCIAL CARE,LEEDS CITY COUNCIL,CORE-MAIN-006695,45202.5,Grants to local authorities
Department for Education,DEPARTMENT FOR EDUCATION,30/09/2020,Grants expenditure,CHILDRENS SOCIAL CARE,NORTH YORKSHIRE COUNTY COUNCIL,CORE-MAIN-006698,36074,Grants to local authorities
Department for Education,DEPARTMENT FOR EDUCATION,30/09/2020,Grants expenditure,CHILDRENS SOCIAL CARE,ROTHERHAM BOROUGH COUNCIL,CORE-MAIN-006699,26303.5,Grants to local authorities
Department for Education,DEPARTMENT FOR EDUCATION,30/09/2020,Grants expenditure,CHILDRENS SOCIAL CARE,SHEFFIELD CITY COUNCIL,CORE-MAIN-006700,31438.5,Grants to local authorities
Department for Education,DEPARTMENT FOR EDUCATION,30/09/2020,Grants expenditure,CHILDRENS SOCIAL CARE,Wakefield City Council,CORE-MAIN-006701,26999,Grants to local authorities
Department for Education,DEPARTMENT FOR EDUCATION,30/09/2020,Grants expenditure,CHILDRENS SOCIAL CARE,DERBYSHIRE COUNTY COUNCIL,CORE-MAIN-006704,43740.5,Grants to local authorities
Department for Education,DEPARTMENT FOR EDUCATION,30/09/2020,Grants expenditure,CHILDRENS SOCIAL CARE,LEICESTERSHIRE COUNTY COUNCIL,CORE-MAIN-006706,47235,Grants to local authorities
Department for Education,DEPARTMENT FOR EDUCATION,30/09/2020,Grants expenditure,CHILDRENS SOCIAL CARE,LINCOLNSHIRE COUNTY COUNCIL,CORE-MAIN-006707,49481.5,Grants to local authorities
Department for Education,DEPARTMENT FOR EDUCATION,30/09/2020,Grants expenditure,CHILDRENS SOCIAL CARE,NORTHAMPTONSHIRE COUNTY COUNCIL,CORE-MAIN-006708,44525,Grants to local authorities
Department for Education,DEPARTMENT FOR EDUCATION,30/09/2020,Grants expenditure,CHILDRENS SOCIAL CARE,NOTTINGHAMSHIRE COUNTY COUNCIL,CORE-MAIN-006710,44382.5,Grants to local authorities
Department for Education,DEPARTMENT FOR EDUCATION,30/09/2020,Grants expenditure,CHILDRENS SOCIAL CARE,BIRMINGHAM CITY COUNCIL,CORE-MAIN-006712,38534.5,Grants to local authorities
Department for Education,DEPARTMENT FOR EDUCATION,30/09/2020,Grants expenditure,CHILDRENS SOCIAL CARE,SHROPSHIRE COUNCIL,CORE-MAIN-006717,27801.5,Grants to local authorities
Department for Education,DEPARTMENT FOR EDUCATION,30/09/2020,Grants expenditure,CHILDRENS SOCIAL CARE,Staffordshire County Council,CORE-MAIN-006719,48412,Grants to local authorities
Department for Education,DEPARTMENT FOR EDUCATION,30/09/2020,Grants expenditure,CHILDRENS SOCIAL CARE,WARWICKSHIRE COUNTY COUNCIL,CORE-MAIN-006723,41030.5,Grants to local authorities
Department for Education,DEPARTMENT FOR EDUCATION,30/09/2020,Grants expenditure,CHILDRENS SOCIAL CARE,WORCESTERSHIRE COUNTY COUNCIL,CORE-MAIN-006725,35361,Grants to local authorities
Department for Education,DEPARTMENT FOR EDUCATION,30/09/2020,Grants expenditure,CHILDRENS SOCIAL CARE,CAMBRIDGESHIRE COUNTY COUNCIL,CORE-MAIN-006728,34398,Grants to local authorities
Department for Education,DEPARTMENT FOR EDUCATION,30/09/2020,Grants expenditure,CHILDRENS SOCIAL CARE,ESSEX COUNTY COUNCIL,CORE-MAIN-006729,56791.5,Grants to local authorities
Department for Education,DEPARTMENT FOR EDUCATION,30/09/2020,Grants expenditure,CHILDRENS SOCIAL CARE,HERTFORDSHIRE COUNTY COUNCIL,CORE-MAIN-006730,52940.5,Grants to local authorities
Department for Education,DEPARTMENT FOR EDUCATION,30/09/2020,Grants expenditure,CHILDRENS SOCIAL CARE,NORFOLK COUNTY COUNCIL,CORE-MAIN-006732,41280,Grants to local authorities
Department for Education,DEPARTMENT FOR EDUCATION,30/09/2020,Grants expenditure,CHILDRENS SOCIAL CARE,SUFFOLK COUNTY COUNCIL,CORE-MAIN-006735,38320.5,Grants to local authorities
Department for Education,DEPARTMENT FOR EDUCATION,30/09/2020,Grants expenditure,CHILDRENS SOCIAL CARE,BROMLEY LONDON BOROUGH COUNCIL,CORE-MAIN-006754,25876,Grants to local authorities
Department for Education,DEPARTMENT FOR EDUCATION,30/09/2020,Grants expenditure,CHILDRENS SOCIAL CARE,BRIGHTON & HOVE CITY COUNCIL,CORE-MAIN-006770,29406,Grants to local authorities
Department for Education,DEPARTMENT FOR EDUCATION,30/09/2020,Grants expenditure,CHILDRENS SOCIAL CARE,BUCKINGHAMSHIRE COUNTY COUNCIL,CORE-MAIN-006771,29762.5,Grants to local authorities
Department for Education,DEPARTMENT FOR EDUCATION,30/09/2020,Grants expenditure,CHILDRENS SOCIAL CARE,EAST SUSSEX COUNTY COUNCIL,CORE-MAIN-006772,33293,Grants to local authorities
Department for Education,DEPARTMENT FOR EDUCATION,30/09/2020,Grants expenditure,CHILDRENS SOCIAL CARE,HAMPSHIRE COUNTY COUNCIL,CORE-MAIN-006773,58253.5,Grants to local authorities
Department for Education,DEPARTMENT FOR EDUCATION,30/09/2020,Grants expenditure,CHILDRENS SOCIAL CARE,KENT COUNTY COUNCIL,CORE-MAIN-006775,60286,Grants to local authorities
Department for Education,DEPARTMENT FOR EDUCATION,30/09/2020,Grants expenditure,CHILDRENS SOCIAL CARE,Oxfordshire County Council,CORE-MAIN-006778,33114.5,Grants to local authorities
Department for Education,DEPARTMENT FOR EDUCATION,30/09/2020,Grants expenditure,CHILDRENS SOCIAL CARE,SURREY COUNTY COUNCIL,CORE-MAIN-006783,48733,Grants to local authorities
Department for Education,DEPARTMENT FOR EDUCATION,30/09/2020,Grants expenditure,CHILDRENS SOCIAL CARE,WEST SUSSEX COUNTY COUNCIL,CORE-MAIN-006785,40246,Grants to local authorities
Department for Education,DEPARTMENT FOR EDUCATION,30/09/2020,Grants expenditure,CHILDRENS SOCIAL CARE,BRISTOL CITY COUNCIL,CORE-MAIN-006789,30814.5,Grants to local authorities
Department for Education,DEPARTMENT FOR EDUCATION,30/09/2020,Grants expenditure,CHILDRENS SOCIAL CARE,CORNWALL COUNCIL,CORE-MAIN-006790,41066.5,Grants to local authorities
Department for Education,DEPARTMENT FOR EDUCATION,30/09/2020,Grants expenditure,CHILDRENS SOCIAL CARE,DEVON COUNTY COUNCIL,CORE-MAIN-006791,47877,Grants to local authorities
Department for Education,DEPARTMENT FOR EDUCATION,30/09/2020,Grants expenditure,CHILDRENS SOCIAL CARE,DORSET COUNCIL,CORE-MAIN-006792,27320,Grants to local authorities
Department for Education,DEPARTMENT FOR EDUCATION,30/09/2020,Grants expenditure,CHILDRENS SOCIAL CARE,GLOUCESTERSHIRE COUNTY COUNCIL,CORE-MAIN-006793,38820,Grants to local authorities
Department for Education,DEPARTMENT FOR EDUCATION,30/09/2020,Grants expenditure,CHILDRENS SOCIAL CARE,"Bournemouth, Christchurch and Poole Council",CORE-MAIN-006796,26838.5,Grants to local authorities
Department for Education,DEPARTMENT FOR EDUCATION,30/09/2020,Grants expenditure,CHILDRENS SOCIAL CARE,SOMERSET COUNTY COUNCIL,CORE-MAIN-006797,34754.5,Grants to local authorities
Department for Education,DEPARTMENT FOR EDUCATION,30/09/2020,Grants expenditure,CHILDRENS SOCIAL CARE,WILTSHIRE COUNTY COUNCIL,CORE-MAIN-006801,30369,Grants to local authorities
Department for Education,DEPARTMENT FOR EDUCATION,01/09/2020,Grants expenditure,CHILDRENS SOCIAL CARE,THE DARTINGTON HALL TRUST,CORE-PINV-007175,105444.15,Grants to educational establishments or not for profit organisations including other businesses
Department for Education,DEPARTMENT FOR EDUCATION,03/09/2020,Other Goods & Services,CHILDRENS SOCIAL CARE,BARNARDOS,CORE-PINV-007265,1500176,Other Professional Services
Department for Education,DEPARTMENT FOR EDUCATION,11/09/2020,Grants expenditure,CHILDRENS SOCIAL CARE,HAMPSHIRE COUNTY COUNCIL,CORE-MAIN-006187,120598.11,Grants to local authorities
Department for Education,DEPARTMENT FOR EDUCATION,11/09/2020,Grants expenditure,CHILDRENS SOCIAL CARE,ISLINGTON LONDON BOROUGH COUNCIL,CORE-MAIN-006188,45811,Grants to local authorities
Department for Education,DEPARTMENT FOR EDUCATION,11/09/2020,Grants expenditure,CHILDRENS SOCIAL CARE,LEEDS CITY COUNCIL,CORE-MAIN-006189,61952,Grants to local authorities
Department for Education,DEPARTMENT FOR EDUCATION,11/09/2020,Grants expenditure,CHILDRENS SOCIAL CARE,WESTMINSTER CITY COUNCIL,CORE-MAIN-006192,44601.56,Grants to local authorities
Department for Education,DEPARTMENT FOR EDUCATION,11/09/2020,Grants expenditure,CHILDRENS SOCIAL CARE,HAMMERSMITH & FULHAM LONDON BOROUGH COUNCIL,CORE-MAIN-006193,44601.57,Grants to local authorities
Department for Education,DEPARTMENT FOR EDUCATION,11/09/2020,Grants expenditure,CHILDRENS SOCIAL CARE,ROYAL BOROUGH OF KENSINGTON & CHELSEA COUNCIL,CORE-MAIN-006194,44601.57,Grants to local authorities
Department for Education,DEPARTMENT FOR EDUCATION,11/09/2020,Grants expenditure,CHILDRENS SOCIAL CARE,ESSEX COUNTY COUNCIL,CORE-MAIN-006197,155726,Grants to local authorities
Department for Education,DEPARTMENT FOR EDUCATION,11/09/2020,Grants expenditure,CHILDRENS SOCIAL CARE,NORTH TYNESIDE METRO BOROUGH COUNCIL,CORE-MAIN-006198,83562,Grants to local authorities
Department for Education,DEPARTMENT FOR EDUCATION,11/09/2020,Grants expenditure,CHILDRENS SOCIAL CARE,SOUTH TYNESIDE COUNCIL,CORE-MAIN-006199,83653,Grants to local authorities
Department for Education,DEPARTMENT FOR EDUCATION,11/09/2020,Grants expenditure,CHILDRENS SOCIAL CARE,SURREY COUNTY COUNCIL,CORE-MAIN-006200,350000,Grants to local authorities
Department for Education,DEPARTMENT FOR EDUCATION,29/09/2020,Other Goods & Services,CHILDRENS SOCIAL CARE,BURGES SALMON COMPANY LTD,CORE-PINV-008340,27000,Other Professional Services
Department for Education,DEPARTMENT FOR EDUCATION,30/09/2020,Grants expenditure,CHILDRENS SOCIAL CARE,WIRRAL METRO BOROUGH COUNCIL,CORE-MAIN-006802,69285.14,Grants to local authorities
Department for Education,DEPARTMENT FOR EDUCATION,30/09/2020,Grants expenditure,CHILDRENS SOCIAL CARE,"Bournemouth, Christchurch and Poole Council",CORE-MAIN-006803,35466.72,Grants to local authorities
Department for Education,DEPARTMENT FOR EDUCATION,30/09/2020,Grants expenditure,CHILDRENS SOCIAL CARE,DERBY CITY COUNCIL,CORE-MAIN-006804,95316.81,Grants to local authorities
Department for Education,DEPARTMENT FOR EDUCATION,30/09/2020,Grants expenditure,CHILDRENS SOCIAL CARE,BUCKINGHAMSHIRE COUNTY COUNCIL,CORE-MAIN-006805,48766.74,Grants to local authorities
Department for Education,DEPARTMENT FOR EDUCATION,30/09/2020,Grants expenditure,CHILDRENS SOCIAL CARE,BRACKNELL FOREST BOROUGH COUNCIL,CORE-MAIN-006806,44333.4,Grants to local authorities
Department for Education,DEPARTMENT FOR EDUCATION,30/09/2020,Grants expenditure,CHILDRENS SOCIAL CARE,Salford City Council,CORE-MAIN-006807,63994.46,Grants to local authorities
Department for Education,DEPARTMENT FOR EDUCATION,30/09/2020,Grants expenditure,CHILDRENS SOCIAL CARE,SOMERSET COUNTY COUNCIL,CORE-MAIN-006808,113050.17,Grants to local authorities
Department for Education,DEPARTMENT FOR EDUCATION,30/09/2020,Grants expenditure,CHILDRENS SOCIAL CARE,KENT COUNTY COUNCIL,CORE-MAIN-006809,44333.4,Grants to local authorities
Department for Education,DEPARTMENT FOR EDUCATION,30/09/2020,Grants expenditure,CHILDRENS SOCIAL CARE,HAMPSHIRE COUNTY COUNCIL,CORE-MAIN-006810,137433.54,Grants to local authorities
Department for Education,DEPARTMENT FOR EDUCATION,30/09/2020,Grants expenditure,CHILDRENS SOCIAL CARE,THE FRONTLINE ORGANISATION,CORE-MAIN-006811,46767.05,Grants to educational establishments or not for profit organisations including other businesses
Department for Education,DEPARTMENT FOR EDUCATION,30/09/2020,Grants expenditure,CHILDRENS SOCIAL CARE,HAMMERSMITH & FULHAM LONDON BOROUGH COUNCIL,CORE-MAIN-006812,90883.47,Grants to local authorities
Department for Education,DEPARTMENT FOR EDUCATION,30/09/2020,Grants expenditure,CHILDRENS SOCIAL CARE,STOKE ON TRENT CITY COUNCIL,CORE-MAIN-006813,144083.55,Grants to local authorities
Department for Education,DEPARTMENT FOR EDUCATION,30/09/2020,Grants expenditure,CHILDRENS SOCIAL CARE,BRIGHTON & HOVE CITY COUNCIL,CORE-MAIN-006814,33250.05,Grants to local authorities
Department for Education,DEPARTMENT FOR EDUCATION,30/09/2020,Grants expenditure,CHILDRENS SOCIAL CARE,HERTFORDSHIRE COUNTY COUNCIL,CORE-MAIN-006815,46550.07,Grants to local authorities
Department for Education,DEPARTMENT FOR EDUCATION,30/09/2020,Grants expenditure,CHILDRENS SOCIAL CARE,NORTH TYNESIDE METRO BOROUGH COUNCIL,CORE-MAIN-006816,86450.13,Grants to local authorities
Department for Education,DEPARTMENT FOR EDUCATION,30/09/2020,Grants expenditure,CHILDRENS SOCIAL CARE,REDBRIDGE LONDON BOROUGH COUNCIL,CORE-MAIN-006817,50983.33,Grants to local authorities
Department for Education,DEPARTMENT FOR EDUCATION,30/09/2020,Grants expenditure,CHILDRENS SOCIAL CARE,ISLINGTON LONDON BOROUGH COUNCIL,CORE-MAIN-006818,62066.76,Grants to local authorities
Department for Education,DEPARTMENT FOR EDUCATION,30/09/2020,Grants expenditure,CHILDRENS SOCIAL CARE,LANCASHIRE COUNTY COUNCIL,CORE-MAIN-006819,33250.05,Grants to local authorities
Department for Education,DEPARTMENT FOR EDUCATION,30/09/2020,Grants expenditure,CHILDRENS SOCIAL CARE,LEEDS CITY COUNCIL,CORE-MAIN-006820,124133.52,Grants to local authorities
Department for Education,DEPARTMENT FOR EDUCATION,30/09/2020,Grants expenditure,CHILDRENS SOCIAL CARE,ESSEX COUNTY COUNCIL,CORE-MAIN-006821,86450.13,Grants to local authorities
Department for Education,DEPARTMENT FOR EDUCATION,30/09/2020,Grants expenditure,CHILDRENS SOCIAL CARE,BROMLEY LONDON BOROUGH COUNCIL,CORE-MAIN-006822,46803.53,Grants to local authorities
Department for Education,DEPARTMENT FOR EDUCATION,30/09/2020,Grants expenditure,CHILDRENS SOCIAL CARE,SHEFFIELD CITY COUNCIL,CORE-MAIN-006823,104183.49,Grants to local authorities
Department for Education,DEPARTMENT FOR EDUCATION,30/09/2020,Grants expenditure,CHILDRENS SOCIAL CARE,COVENTRY CITY COUNCIL,CORE-MAIN-006824,28307.91,Grants to local authorities
Department for Education,DEPARTMENT FOR EDUCATION,30/09/2020,Grants expenditure,CHILDRENS SOCIAL CARE,ACHIEVING FOR CHILDREN,CORE-MAIN-006825,61606,Grants to local authorities
Department for Education,DEPARTMENT FOR EDUCATION,08/09/2020,Other Goods & Services,CHILDRENS SOCIAL CARE,SKILLS FOR CARE LTD,CORE-PINV-007452,206000,Other Professional Services
Department for Education,DEPARTMENT FOR EDUCATION,08/09/2020,Other Goods & Services,CHILDRENS SOCIAL CARE,SKILLS FOR CARE LTD,CORE-PINV-007477,41362,Other Professional Services
Department for Education,DEPARTMENT FOR EDUCATION,09/09/2020,Professional Services,CHILDRENS SOCIAL CARE,THE FRONTLINE ORGANISATION,CORE-PINV-007510,275666,EDUCATIONAL SERVICES
Department for Education,DEPARTMENT FOR EDUCATION,09/09/2020,Other Goods & Services,CHILDRENS SOCIAL CARE,THE FRONTLINE ORGANISATION,CORE-PINV-007520,153557.8,Other Professional Services
Department for Education,DEPARTMENT FOR EDUCATION,09/09/2020,Other Goods & Services,CHILDRENS SOCIAL CARE,THE FRONTLINE ORGANISATION,CORE-PINV-007520,143514.2,Other Professional Services
Department for Education,DEPARTMENT FOR EDUCATION,16/09/2020,Professional Services Consultancy and Contingent Labour,CHILDRENS SOCIAL CARE,VSC Plus Limited,CORE-PINV-007902,140422.8,Costs related to temporary workers
Department for Education,DEPARTMENT FOR EDUCATION,21/09/2020,Other Goods & Services,CHILDRENS SOCIAL CARE,Mott MacDonald,CORE-PINV-007971,160855.2,Other Professional Services
Department for Education,DEPARTMENT FOR EDUCATION,07/09/2020,Legal,COMMUNICATIONS DIRECTORATE,THE GOVERNMENT LEGAL DEPARTMENT,CORE-PINV-007291,23890.8,Legal advisory services from the Government Legal Department including the provision of external specialist advice and opinion
Department for Education,DEPARTMENT FOR EDUCATION,24/09/2020,Consultancy,COMMUNICATIONS DIRECTORATE,THE GOVERNMENT LEGAL DEPARTMENT,CORE-PINV-007942,28013.42,"Advisory services including fees, travel and expenses"
Department for Education,DEPARTMENT FOR EDUCATION,24/09/2020,Consultancy,COMMUNICATIONS DIRECTORATE,THE GOVERNMENT LEGAL DEPARTMENT,CORE-PINV-007943,38724.6,"Advisory services including fees, travel and expenses"
Department for Education,DEPARTMENT FOR EDUCATION,11/09/2020,Grants expenditure,Adoption and Children in Care Division,CAMBRIDGE EDUCATION,CORE-MAIN-006201,2311004.05,Grants to educational establishments or not for profit organisations including other businesses
Department for Education,DEPARTMENT FOR EDUCATION,11/09/2020,Grants expenditure,Adoption and Children in Care Division,KENT COUNTY COUNCIL,CORE-MAIN-006203,130617,Grants to local authorities
Department for Education,DEPARTMENT FOR EDUCATION,11/09/2020,Grants expenditure,Adoption and Children in Care Division,BREAK CHARITY,CORE-MAIN-006205,57102.75,Grants to educational establishments or not for profit organisations including other businesses
Department for Education,DEPARTMENT FOR EDUCATION,11/09/2020,Grants expenditure,Adoption and Children in Care Division,Grandparents Plus,CORE-MAIN-006206,36040.28,Grants to educational establishments or not for profit organisations including other businesses
Department for Education,DEPARTMENT FOR EDUCATION,30/09/2020,Grants expenditure,Adoption and Children in Care Division,ADOPTION UK,CORE-MAIN-006826,38989.22,Grants to educational establishments or not for profit organisations including other businesses
Department for Education,DEPARTMENT FOR EDUCATION,17/09/2020,Other Goods & Services,Adoption and Children in Care Division,CORAM,CORE-PCR-000305,-23508.16,Other Professional Services
Department for Education,DEPARTMENT FOR EDUCATION,17/09/2020,Other Goods & Services,Adoption and Children in Care Division,CORAM,CORE-PCR-000305,-3386.12,Other Professional Services
Department for Education,DEPARTMENT FOR EDUCATION,02/09/2020,Other Goods & Services,Adoption and Children in Care Division,CORAM,CORE-PINV-006583,31725,Other Professional Services
Department for Education,DEPARTMENT FOR EDUCATION,07/09/2020,Grants expenditure,Adoption and Children in Care Division,THE SHARE FOUNDATION 3RD PARTY TRUST,CORE-PINV-006869,103400,Grants to educational establishments or not for profit organisations including other businesses
Department for Education,DEPARTMENT FOR EDUCATION,01/09/2020,Grants expenditure,Adoption and Children in Care Division,FAMILY RIGHTS GROUP LTD,CORE-PINV-007139,56659,Grants to educational establishments or not for profit organisations including other businesses
Department for Education,DEPARTMENT FOR EDUCATION,15/09/2020,Consultancy,Adoption and Children in Care Division,FAMILY LIVES,CORE-PINV-007168,75666.57,IS/IT Services - Consultancy
Department for Education,DEPARTMENT FOR EDUCATION,07/09/2020,Other Goods & Services,Adoption and Children in Care Division,Mott MacDonald,CORE-PINV-007266,137140.45,Other Professional Services
Department for Education,DEPARTMENT FOR EDUCATION,08/09/2020,Grants expenditure,Adoption and Children in Care Division,THE SHARE FOUNDATION 3RD PARTY TRUST,CORE-PINV-007386,78800,Grants to educational establishments or not for profit organisations including other businesses
Department for Education,DEPARTMENT FOR EDUCATION,17/09/2020,Other Goods & Services,Adoption and Children in Care Division,CORAM,CORE-PINV-007395,25871.41,Other Professional Services
Department for Education,DEPARTMENT FOR EDUCATION,17/09/2020,Other Goods & Services,Adoption and Children in Care Division,CORAM,CORE-PINV-007395,1416.74,Other Professional Services
Department for Education,DEPARTMENT FOR EDUCATION,17/09/2020,Other Goods & Services,Adoption and Children in Care Division,CORAM,CORE-PINV-007396,1011.64,Other Professional Services
Department for Education,DEPARTMENT FOR EDUCATION,17/09/2020,Consultancy,Adoption and Children in Care Division,CORAM,CORE-PINV-007396,26357.53,IS/IT Services - Consultancy
Department for Education,DEPARTMENT FOR EDUCATION,11/09/2020,Other Goods & Services,Adoption and Children in Care Division,FosterTalk Limited,CORE-PINV-007612,25000,Other Professional Services
Department for Education,DEPARTMENT FOR EDUCATION,25/09/2020,Other Goods & Services,Adoption and Children in Care Division,CORAM,CORE-PINV-007653,1000,Other Professional Services
Department for Education,DEPARTMENT FOR EDUCATION,25/09/2020,Other Goods & Services,Adoption and Children in Care Division,CORAM,CORE-PINV-007653,27000,Other Professional Services
Department for Education,DEPARTMENT FOR EDUCATION,17/09/2020,Other Goods & Services,Adoption and Children in Care Division,CORAM,CORE-PINV-007708,918.5,Other Professional Services
Department for Education,DEPARTMENT FOR EDUCATION,17/09/2020,Consultancy,Adoption and Children in Care Division,CORAM,CORE-PINV-007708,26469.3,IS/IT Services - Consultancy
Department for Education,DEPARTMENT FOR EDUCATION,17/09/2020,Other Goods & Services,Adoption and Children in Care Division,CORAM,CORE-PINV-007711,795.83,Other Professional Services
Department for Education,DEPARTMENT FOR EDUCATION,17/09/2020,Consultancy,Adoption and Children in Care Division,CORAM,CORE-PINV-007711,26616.5,IS/IT Services - Consultancy
Department for Education,DEPARTMENT FOR EDUCATION,17/09/2020,Other Goods & Services,Adoption and Children in Care Division,CORAM,CORE-PINV-007713,804.63,Other Professional Services
Department for Education,DEPARTMENT FOR EDUCATION,17/09/2020,Consultancy,Adoption and Children in Care Division,CORAM,CORE-PINV-007713,26605.94,IS/IT Services - Consultancy
Department for Education,DEPARTMENT FOR EDUCATION,17/09/2020,Other Goods & Services,Adoption and Children in Care Division,SPECTRA FIRST LTD,CORE-PINV-007903,62135.6,Other Professional Services
Department for Education,DEPARTMENT FOR EDUCATION,17/09/2020,Other Goods & Services,Adoption and Children in Care Division,CORAM,CORE-PINV-007921,23508.16,Other Professional Services
Department for Education,DEPARTMENT FOR EDUCATION,17/09/2020,Other Goods & Services,Adoption and Children in Care Division,CORAM,CORE-PINV-007921,3386.12,Other Professional Services
Department for Education,DEPARTMENT FOR EDUCATION,23/09/2020,Grants expenditure,Adoption and Children in Care Division,THE SHARE FOUNDATION 3RD PARTY TRUST,CORE-PINV-008029,154400,Grants to educational establishments or not for profit organisations including other businesses
Department for Education,DEPARTMENT FOR EDUCATION,28/09/2020,Consultancy,Adoption and Children in Care Division,Deloitte MCS Ltd,CORE-PINV-008244,66000,"Advisory services including fees, travel and expenses"
Department for Education,DEPARTMENT FOR EDUCATION,16/09/2020,Grants expenditure,Adoption and Children in Care Division,Drive Forward Foundation,CUPS0010455,27441,Grants to educational establishments or not for profit organisations including other businesses
Department for Education,DEPARTMENT FOR EDUCATION,11/09/2020,"Marketing, Media and Comms",CHILDRENS SOCIAL CARE,SCROLL PROJECTS LTD,CORE-PINV-007652,88228.5,"Publicity, advertising, media advertising campaigns (excluding recruitment adverts)"
Department for Education,DEPARTMENT FOR EDUCATION,11/09/2020,Grants expenditure,Children's Social Care - Practice,HAMPSHIRE COUNTY COUNCIL,CORE-MAIN-006207,59263,Grants to local authorities
Department for Education,DEPARTMENT FOR EDUCATION,16/09/2020,Other Goods & Services,STRATEGY SOCIAL MOBILITY OPPOTUNITY AREAS,UNIVERSITY COLLEGE LONDON,CORE-PCR-000294,-260480,Other Professional Services
Department for Education,DEPARTMENT FOR EDUCATION,16/09/2020,Other Goods & Services,STRATEGY SOCIAL MOBILITY OPPOTUNITY AREAS,UNIVERSITY COLLEGE LONDON,CORE-PCR-000301,-326040,Other Professional Services
Department for Education,DEPARTMENT FOR EDUCATION,02/09/2020,Other Goods & Services,STRATEGY SOCIAL MOBILITY OPPOTUNITY AREAS,NASEN,CORE-PINV-007191,83167.51,Other Professional Services
Department for Education,DEPARTMENT FOR EDUCATION,04/09/2020,Other Goods & Services,STRATEGY SOCIAL MOBILITY OPPOTUNITY AREAS,CONTACT,CORE-PINV-007359,141299.52,Other Professional Services
Department for Education,DEPARTMENT FOR EDUCATION,10/09/2020,Other Goods & Services,STRATEGY SOCIAL MOBILITY OPPOTUNITY AREAS,NATIONAL CHILDRENS BUREAU,CORE-PINV-007584,101571.3,Other Professional Services
Department for Education,DEPARTMENT FOR EDUCATION,16/09/2020,Other Goods & Services,STRATEGY SOCIAL MOBILITY OPPOTUNITY AREAS,UNIVERSITY COLLEGE LONDON,CORE-PINV-007699,1094698.75,Other Professional Services
Department for Education,DEPARTMENT FOR EDUCATION,16/09/2020,Other Goods & Services,STRATEGY SOCIAL MOBILITY OPPOTUNITY AREAS,UNIVERSITY COLLEGE LONDON,CORE-PINV-007714,326040,Other Professional Services
Department for Education,DEPARTMENT FOR EDUCATION,16/09/2020,Other Goods & Services,STRATEGY SOCIAL MOBILITY OPPOTUNITY AREAS,UNIVERSITY COLLEGE LONDON,CORE-PINV-007870,326040,Other Professional Services
Department for Education,DEPARTMENT FOR EDUCATION,30/09/2020,Grants expenditure,STRATEGY SOCIAL MOBILITY OPPOTUNITY AREAS,CONTACT,CUPS0010482,40938,Grants to educational establishments or not for profit organisations including other businesses
Department for Education,DEPARTMENT FOR EDUCATION,30/09/2020,Grants expenditure,STRATEGY SOCIAL MOBILITY OPPOTUNITY AREAS,THE FAMILY FUND TRUST,CUPS0010532,4224000,Grants to educational establishments or not for profit organisations including other businesses
Department for Education,DEPARTMENT FOR EDUCATION,10/09/2020,Other Goods & Services,STRATEGY SOCIAL MOBILITY OPPOTUNITY AREAS,HMCTS HM COURTS & TRIBUNALS SERVICE,CORE-PINV-007573,55000,Other Professional Services
Department for Education,DEPARTMENT FOR EDUCATION,10/09/2020,Other Goods & Services,STRATEGY SOCIAL MOBILITY OPPOTUNITY AREAS,HMCTS HM COURTS & TRIBUNALS SERVICE,CORE-PINV-007574,33000,Other Professional Services
Department for Education,DEPARTMENT FOR EDUCATION,30/09/2020,Grants expenditure,STRATEGY SOCIAL MOBILITY OPPOTUNITY AREAS,Bradford Central PRU ,CUPS0010529,75197.07,Grants to educational establishments or not for profit organisations including other businesses
Department for Education,DEPARTMENT FOR EDUCATION,03/09/2020,Legal,ASSESSMENT AND CURRICULUM AND GENERAL QUALIFICATIONS,WOMBLE BOND DICKINSON  UK LLP,CORE-PINV-004467,31312.76,Legal advisory services from the Government Legal Department including the provision of external specialist advice and opinion
Department for Education,DEPARTMENT FOR EDUCATION,08/09/2020,Professional Services Consultancy and Contingent Labour,ASSESSMENT AND CURRICULUM AND GENERAL QUALIFICATIONS,Tribal Education Limited,CORE-PINV-007439,298143.47,Costs related to temporary workers
Department for Education,DEPARTMENT FOR EDUCATION,18/09/2020,Professional Services,ASSESSMENT AND CURRICULUM AND GENERAL QUALIFICATIONS,MATHEMATICS IN EDUCATION & INDUSTRY,CORE-PINV-007954,490723,EDUCATIONAL SERVICES
Department for Education,DEPARTMENT FOR EDUCATION,21/09/2020,Professional Services Consultancy and Contingent Labour,ASSESSMENT AND CURRICULUM AND GENERAL QUALIFICATIONS,RUTH MISKIN LITERACY LTD,CORE-PINV-007978,78656.4,Costs related to temporary workers
Department for Education,DEPARTMENT FOR EDUCATION,28/09/2020,Professional Services,ASSESSMENT AND CURRICULUM AND GENERAL QUALIFICATIONS,STEM LEARNING LTD,CORE-PINV-008043,185833,EDUCATIONAL SERVICES
Department for Education,DEPARTMENT FOR EDUCATION,28/09/2020,Professional Services,ASSESSMENT AND CURRICULUM AND GENERAL QUALIFICATIONS,STEM LEARNING LTD,CORE-PINV-008298,37208.67,EDUCATIONAL SERVICES
Department for Education,DEPARTMENT FOR EDUCATION,28/09/2020,Professional Services,ASSESSMENT AND CURRICULUM AND GENERAL QUALIFICATIONS,STEM LEARNING LTD,CORE-PINV-008300,21666.67,EDUCATIONAL SERVICES
Department for Education,DEPARTMENT FOR EDUCATION,21/09/2020,Other Goods & Services,ASSESSMENT AND CURRICULUM AND GENERAL QUALIFICATIONS,STEM LEARNING LTD,CORE-PINV-008018,295570.33,Other Professional Services
Department for Education,DEPARTMENT FOR EDUCATION,22/09/2020,Other Goods & Services,ASSESSMENT AND CURRICULUM AND GENERAL QUALIFICATIONS,STEM LEARNING LTD,CORE-PINV-008040,71895,Other Professional Services
Department for Education,DEPARTMENT FOR EDUCATION,22/09/2020,Other Goods & Services,ASSESSMENT AND CURRICULUM AND GENERAL QUALIFICATIONS,STEM LEARNING LTD,CORE-PINV-008041,58440.55,Other Professional Services
Department for Education,DEPARTMENT FOR EDUCATION,22/09/2020,Other Goods & Services,ASSESSMENT AND CURRICULUM AND GENERAL QUALIFICATIONS,STEM LEARNING LTD,CORE-PINV-008054,420748.6,Other Professional Services
Department for Education,DEPARTMENT FOR EDUCATION,30/09/2020,Grants expenditure,SEND AND DISADVANTAGE GROUP,London Borough of Tower Hamlets,CORE-MAIN-006827,72267.26,Grants to educational establishments or not for profit organisations including other businesses
Department for Education,DEPARTMENT FOR EDUCATION,30/09/2020,Grants expenditure,SEND AND DISADVANTAGE GROUP,Spring North,CORE-MAIN-006828,175342.29,Grants to educational establishments or not for profit organisations including other businesses
Department for Education,DEPARTMENT FOR EDUCATION,30/09/2020,Grants expenditure,SEND AND DISADVANTAGE GROUP,COMMUNITY FOUNDATION FOR LEEDS,CORE-MAIN-006829,130879,Grants to educational establishments or not for profit organisations including other businesses
Department for Education,DEPARTMENT FOR EDUCATION,30/09/2020,Grants expenditure,SEND AND DISADVANTAGE GROUP,StreetGames UK,CORE-MAIN-006830,123152,Grants to educational establishments or not for profit organisations including other businesses
Department for Education,DEPARTMENT FOR EDUCATION,30/09/2020,Grants expenditure,SEND AND DISADVANTAGE GROUP,SUFFOLK COUNTY COUNCIL,CORE-MAIN-006831,292031.26,Grants to educational establishments or not for profit organisations including other businesses
Department for Education,DEPARTMENT FOR EDUCATION,23/09/2020,Other Goods & Services,SEND AND DISADVANTAGE GROUP,FAMILY ACTION,CORE-PINV-008173,633704.24,Other Professional Services
Department for Education,DEPARTMENT FOR EDUCATION,23/09/2020,Other Goods & Services,SEND AND DISADVANTAGE GROUP,FAMILY ACTION,CORE-PINV-008174,336454.72,Other Professional Services
Department for Education,DEPARTMENT FOR EDUCATION,11/09/2020,Grants expenditure,EY AND SCHOOLS STRATEGY TOTAL,NATIONAL CHILDRENS BUREAU,CORE-MAIN-006208,207249,Capital grants paid to third sector / not for profit organisation
Department for Education,DEPARTMENT FOR EDUCATION,11/09/2020,Grants expenditure,EY AND SCHOOLS STRATEGY TOTAL,NASEN,CORE-MAIN-006209,176426,Grants to educational establishments or not for profit organisations including other businesses
Department for Education,DEPARTMENT FOR EDUCATION,11/09/2020,Grants expenditure,EY AND SCHOOLS STRATEGY TOTAL,PRE SCHOOL LEARNING ALLIANCE,CORE-MAIN-006210,80513,Grants to educational establishments or not for profit organisations including other businesses
Department for Education,DEPARTMENT FOR EDUCATION,11/09/2020,Grants expenditure,EY AND SCHOOLS STRATEGY TOTAL,INSTITUTE OF WELLBEING LTD,CORE-MAIN-006211,73649.16,Grants to educational establishments or not for profit organisations including other businesses
Department for Education,DEPARTMENT FOR EDUCATION,08/09/2020,Grants expenditure,ASSESSMENT AND CURRICULUM AND GENERAL QUALIFICATIONS,CHOIR SCHOOLS ASSOCIATION BURSARY TRUST LTD,CUPS0010416,3600000,Grants to educational establishments or not for profit organisations including other businesses
Department for Education,DEPARTMENT FOR EDUCATION,30/09/2020,Grants expenditure,ASSESSMENT AND CURRICULUM AND GENERAL QUALIFICATIONS,DEPARTMENT FOR CULTURE MEDIA & SPORT,CORE-MAIN-006833,19743591.25,Grants paid to other Government Departments
Department for Education,DEPARTMENT FOR EDUCATION,30/09/2020,Grants expenditure,ASSESSMENT AND CURRICULUM AND GENERAL QUALIFICATIONS,DEPARTMENT FOR CULTURE MEDIA & SPORT,CORE-MAIN-006834,1021880,Grants paid to other Government Departments
Department for Education,DEPARTMENT FOR EDUCATION,04/09/2020,Contractors,ASSESSMENT AND CURRICULUM AND GENERAL QUALIFICATIONS,UNIVERSITY COLLEGE LONDON,CORE-PINV-007340,100314,Funding to deliver policies (excluding consultancy) paid to third parties via a service delivery contract
Department for Education,DEPARTMENT FOR EDUCATION,23/09/2020,Contractors,ASSESSMENT AND CURRICULUM AND GENERAL QUALIFICATIONS,UNIVERSITY COLLEGE LONDON,CORE-PINV-008176,81169.75,Funding to deliver policies (excluding consultancy) paid to third parties via a service delivery contract
Department for Education,DEPARTMENT FOR EDUCATION,23/09/2020,Contractors,ASSESSMENT AND CURRICULUM AND GENERAL QUALIFICATIONS,UNIVERSITY COLLEGE LONDON,CORE-PINV-008176,57963.25,Funding to deliver policies (excluding consultancy) paid to third parties via a service delivery contract
Department for Education,DEPARTMENT FOR EDUCATION,14/09/2020,Other Goods & Services,TEACHERS AND TEACHING,CAPITA BUSINESS SERVICES,CORE-PINV-007697,1022387.84,Other Professional Services
Department for Education,DEPARTMENT FOR EDUCATION,14/09/2020,Other Goods & Services,TEACHERS AND TEACHING,GOVERNMENT ACTUARYS DEPT,CORE-PINV-007709,52949.78,Other Professional Services
Department for Education,DEPARTMENT FOR EDUCATION,21/09/2020,Other Goods & Services,TEACHERS AND TEACHING,CAPITA BUSINESS SERVICES,CORE-PINV-008007,113598.65,Other Professional Services
Department for Education,DEPARTMENT FOR EDUCATION,25/09/2020,Other Goods & Services,EY AND SCHOOLS STRATEGY TOTAL,HM REVENUE & CUSTOMS,CORE-PINV-008050,141527.85,Other Professional Services
Department for Education,DEPARTMENT FOR EDUCATION,25/09/2020,Other Goods & Services,EY AND SCHOOLS STRATEGY TOTAL,HM REVENUE & CUSTOMS,CORE-PINV-008115,2184334.4,Other Professional Services
Department for Education,DEPARTMENT FOR EDUCATION,02/09/2020,Learning & Development,EY AND SCHOOLS STRATEGY TOTAL,EDUCATION DEVELOPMENT TRUST,CORE-PINV-007189,55831,Training & Development costs
Department for Education,DEPARTMENT FOR EDUCATION,15/09/2020,Other Goods & Services,EY AND SCHOOLS STRATEGY TOTAL,Sigma Consulting Solutions Ltd,CORE-PINV-007684,25800,Research and Development
Department for Education,DEPARTMENT FOR EDUCATION,30/09/2020,Other Goods & Services,EY AND SCHOOLS STRATEGY TOTAL,ECORYS UK LTD,CORE-PINV-008407,24543.75,Research and Development
Department for Education,DEPARTMENT FOR EDUCATION,11/09/2020,Other Goods & Services,TEACHING WORKFORCE TOTAL,TELEPERFORMANCE LTD,CORE-PINV-007650,64481.15,Other Professional Services
Department for Education,DEPARTMENT FOR EDUCATION,11/09/2020,Other Goods & Services,TEACHING WORKFORCE TOTAL,TELEPERFORMANCE LTD,CORE-PINV-007649,482172.64,Other Professional Services
Department for Education,DEPARTMENT FOR EDUCATION,08/09/2020,"Marketing, Media and Comms",TEACHING WORKFORCE TOTAL,OMD GROUP TA MANNING GOTTLIEB OMD LTD,CORE-PINV-007075,100.69,"Publicity, advertising, media advertising campaigns (excluding recruitment adverts)"
Department for Education,DEPARTMENT FOR EDUCATION,08/09/2020,"Marketing, Media and Comms",TEACHING WORKFORCE TOTAL,OMD GROUP TA MANNING GOTTLIEB OMD LTD,CORE-PINV-007075,100609.2,"Publicity, advertising, media advertising campaigns (excluding recruitment adverts)"
Department for Education,DEPARTMENT FOR EDUCATION,02/09/2020,"Marketing, Media and Comms",TEACHING WORKFORCE TOTAL,OMD GROUP TA MANNING GOTTLIEB OMD LTD,CORE-PINV-007197,44.89,"Publicity, advertising, media advertising campaigns (excluding recruitment adverts)"
Department for Education,DEPARTMENT FOR EDUCATION,02/09/2020,"Marketing, Media and Comms",TEACHING WORKFORCE TOTAL,OMD GROUP TA MANNING GOTTLIEB OMD LTD,CORE-PINV-007197,45340.84,"Publicity, advertising, media advertising campaigns (excluding recruitment adverts)"
Department for Education,DEPARTMENT FOR EDUCATION,02/09/2020,"Marketing, Media and Comms",TEACHING WORKFORCE TOTAL,OMD GROUP TA MANNING GOTTLIEB OMD LTD,CORE-PINV-007199,45.9,"Publicity, advertising, media advertising campaigns (excluding recruitment adverts)"
Department for Education,DEPARTMENT FOR EDUCATION,02/09/2020,"Marketing, Media and Comms",TEACHING WORKFORCE TOTAL,OMD GROUP TA MANNING GOTTLIEB OMD LTD,CORE-PINV-007199,46393.68,"Publicity, advertising, media advertising campaigns (excluding recruitment adverts)"
Department for Education,DEPARTMENT FOR EDUCATION,16/09/2020,"Marketing, Media and Comms",TEACHING WORKFORCE TOTAL,OMD GROUP TA MANNING GOTTLIEB OMD LTD,CORE-PINV-007868,47.63,"Publicity, advertising, media advertising campaigns (excluding recruitment adverts)"
Department for Education,DEPARTMENT FOR EDUCATION,16/09/2020,"Marketing, Media and Comms",TEACHING WORKFORCE TOTAL,OMD GROUP TA MANNING GOTTLIEB OMD LTD,CORE-PINV-007868,48108.75,"Publicity, advertising, media advertising campaigns (excluding recruitment adverts)"
Department for Education,DEPARTMENT FOR EDUCATION,25/09/2020,"Marketing, Media and Comms",TEACHING WORKFORCE TOTAL,OMD GROUP TA MANNING GOTTLIEB OMD LTD,CORE-PINV-008246,37.16,"Publicity, advertising, media advertising campaigns (excluding recruitment adverts)"
Department for Education,DEPARTMENT FOR EDUCATION,25/09/2020,"Marketing, Media and Comms",TEACHING WORKFORCE TOTAL,OMD GROUP TA MANNING GOTTLIEB OMD LTD,CORE-PINV-008246,37532.11,"Publicity, advertising, media advertising campaigns (excluding recruitment adverts)"
Department for Education,DEPARTMENT FOR EDUCATION,08/09/2020,IS/IT,TEACHING WORKFORCE TOTAL,OLIVE JAR DIGITAL LTD,CORE-PINV-007426,149376,Software Development
Department for Education,DEPARTMENT FOR EDUCATION,14/09/2020,IS/IT,TEACHING WORKFORCE TOTAL,FARSIGHT CONSULTING LIMITED,CORE-PCR-000293,-21450,Software Development
Department for Education,DEPARTMENT FOR EDUCATION,14/09/2020,IS/IT,TEACHING WORKFORCE TOTAL,FARSIGHT CONSULTING LIMITED,CORE-PINV-006693,21450,Software Development
Department for Education,DEPARTMENT FOR EDUCATION,14/09/2020,IS/IT,TEACHING WORKFORCE TOTAL,FARSIGHT CONSULTING LIMITED,CORE-PINV-006700,24750,Software Development
Department for Education,DEPARTMENT FOR EDUCATION,25/09/2020,IS/IT,TEACHING WORKFORCE TOTAL,LA INTERNATIONAL,CORE-PINV-007918,22770,Software Development
Department for Education,DEPARTMENT FOR EDUCATION,14/09/2020,IS/IT,TEACHING WORKFORCE TOTAL,ADROC LTD,CORE-PINV-007657,27660,Software Development
Department for Education,DEPARTMENT FOR EDUCATION,30/09/2020,Grants expenditure,TEACHING WORKFORCE TOTAL,BISHOP CHALLONER CATHOLIC COLLEGE,CORE-MAIN-006848,28800,EU Grants to Local Government
Department for Education,DEPARTMENT FOR EDUCATION,08/09/2020,Professional Services,TEACHING WORKFORCE TOTAL,COGNITION EDUCATION,CORE-PINV-007482,55022.86,EDUCATIONAL SERVICES
Department for Education,DEPARTMENT FOR EDUCATION,15/09/2020,Professional Services,TEACHING WORKFORCE TOTAL,ARK UK PROGRAMMES,CORE-PINV-007771,91021,EDUCATIONAL SERVICES
Department for Education,DEPARTMENT FOR EDUCATION,15/09/2020,Professional Services,TEACHING WORKFORCE TOTAL,ARK UK PROGRAMMES,CORE-PINV-007774,171857,EDUCATIONAL SERVICES
Department for Education,DEPARTMENT FOR EDUCATION,28/09/2020,Professional Services,TEACHING WORKFORCE TOTAL,ARK UK PROGRAMMES,CORE-PINV-008301,69000,EDUCATIONAL SERVICES
Department for Education,DEPARTMENT FOR EDUCATION,11/09/2020,Other Goods & Services,TEACHING WORKFORCE TOTAL,TELEPERFORMANCE LTD,CORE-PINV-007648,27006.45,Other Professional Services
Department for Education,DEPARTMENT FOR EDUCATION,01/09/2020,Professional Services,TEACHING WORKFORCE TOTAL,THE BRILLIANT CLUB,CORE-PINV-007160,122079.68,EDUCATIONAL SERVICES
Department for Education,DEPARTMENT FOR EDUCATION,29/09/2020,Professional Services,TEACHING WORKFORCE TOTAL,THE BRILLIANT CLUB,CORE-PINV-008380,98117.81,EDUCATIONAL SERVICES
Department for Education,DEPARTMENT FOR EDUCATION,23/09/2020,Professional Services,TEACHING WORKFORCE TOTAL,EDUCATION DEVELOPMENT TRUST,CORE-PINV-007164,54205.59,EDUCATIONAL SERVICES
Department for Education,DEPARTMENT FOR EDUCATION,01/09/2020,Other Goods & Services,TEACHING WORKFORCE TOTAL,CFBT EDUCATION TRUST,CORE-PINV-007169,532000,Other Professional Services
Department for Education,DEPARTMENT FOR EDUCATION,29/09/2020,Professional Services,TEACHING WORKFORCE TOTAL,EDUCATION DEVELOPMENT TRUST,CORE-PINV-008322,71527.61,EDUCATIONAL SERVICES
Department for Education,DEPARTMENT FOR EDUCATION,03/09/2020,Grants expenditure,TEACHING WORKFORCE TOTAL,BISHOP GROSSETESTE UNIVERSITY,CORE-MAIN-006004,39771.43,Grants to educational establishments or not for profit organisations including other businesses
Department for Education,DEPARTMENT FOR EDUCATION,03/09/2020,Grants expenditure,TEACHING WORKFORCE TOTAL,BRADFORD COLLEGE,CORE-MAIN-006005,61971.43,Grants to educational establishments or not for profit organisations including other businesses
Department for Education,DEPARTMENT FOR EDUCATION,03/09/2020,Grants expenditure,TEACHING WORKFORCE TOTAL,CANTERBURY CHRIST CHURCH UNIVERSITY,CORE-MAIN-006006,91200,Grants to educational establishments or not for profit organisations including other businesses
Department for Education,DEPARTMENT FOR EDUCATION,03/09/2020,Grants expenditure,TEACHING WORKFORCE TOTAL,EDGE HILL UNIVERSITY,CORE-MAIN-006007,52800,Grants to educational establishments or not for profit organisations including other businesses
Department for Education,DEPARTMENT FOR EDUCATION,03/09/2020,Grants expenditure,TEACHING WORKFORCE TOTAL,GLOUCESTERSHIRE INITIAL TEACHER EDUCATION PARTNERSHIP,CORE-MAIN-006008,34400,Grants to educational establishments or not for profit organisations including other businesses
Department for Education,DEPARTMENT FOR EDUCATION,03/09/2020,Grants expenditure,TEACHING WORKFORCE TOTAL,LEICESTERSHIRE SECONDARY SCITT,CORE-MAIN-006010,149915.56,Grants to educational establishments or not for profit organisations including other businesses
Department for Education,DEPARTMENT FOR EDUCATION,03/09/2020,Grants expenditure,TEACHING WORKFORCE TOTAL,LIVERPOOL HOPE UNIVERSITY,CORE-MAIN-006012,46678.15,Grants to educational establishments or not for profit organisations including other businesses
Department for Education,DEPARTMENT FOR EDUCATION,03/09/2020,Grants expenditure,TEACHING WORKFORCE TOTAL,ST MARY & ST PAULS CE PRIMARY SCHOOL TS ACCOUNT,CORE-MAIN-006014,684335.35,Grants to educational establishments or not for profit organisations including other businesses
Department for Education,DEPARTMENT FOR EDUCATION,03/09/2020,Grants expenditure,TEACHING WORKFORCE TOTAL,SHEFFIELD HALLAM UNIVERSITY,CORE-MAIN-006017,127355.34,Grants to educational establishments or not for profit organisations including other businesses
Department for Education,DEPARTMENT FOR EDUCATION,03/09/2020,Grants expenditure,TEACHING WORKFORCE TOTAL,ST MARYS UNIVERSITY COLLEGE,CORE-MAIN-006019,114776.48,Grants to educational establishments or not for profit organisations including other businesses
Department for Education,DEPARTMENT FOR EDUCATION,03/09/2020,Grants expenditure,TEACHING WORKFORCE TOTAL,HIBERNIA COLLEGE UK,CORE-MAIN-006021,1101501.46,Grants to educational establishments or not for profit organisations including other businesses
Department for Education,DEPARTMENT FOR EDUCATION,03/09/2020,Grants expenditure,TEACHING WORKFORCE TOTAL,UNIVERSITY OF BRIGHTON,CORE-MAIN-006027,33334.15,Grants to educational establishments or not for profit organisations including other businesses
Department for Education,DEPARTMENT FOR EDUCATION,03/09/2020,Grants expenditure,TEACHING WORKFORCE TOTAL,UNIVERSITY OF HUDDERSFIELD,CORE-MAIN-006032,34550.95,Grants to educational establishments or not for profit organisations including other businesses
Department for Education,DEPARTMENT FOR EDUCATION,03/09/2020,Grants expenditure,TEACHING WORKFORCE TOTAL,UNIVERSITY OF SUSSEX,CORE-MAIN-006041,1304167.96,Grants to educational establishments or not for profit organisations including other businesses
Department for Education,DEPARTMENT FOR EDUCATION,03/09/2020,Grants expenditure,TEACHING WORKFORCE TOTAL,UNIVERSITY OF WOLVERHAMPTON,CORE-MAIN-006043,42400,Grants to educational establishments or not for profit organisations including other businesses
Department for Education,DEPARTMENT FOR EDUCATION,03/09/2020,Grants expenditure,TEACHING WORKFORCE TOTAL,COMPUTACENTER PLC,CORE-MAIN-006055,57114.28,Grants to educational establishments or not for profit organisations including other businesses
Department for Education,DEPARTMENT FOR EDUCATION,03/09/2020,Grants expenditure,TEACHING WORKFORCE TOTAL,Hethersett Academy,CORE-MAIN-006056,123200,Grants to educational establishments or not for profit organisations including other businesses
Department for Education,DEPARTMENT FOR EDUCATION,07/09/2020,Grants expenditure,TEACHING WORKFORCE TOTAL,COMPUTACENTER PLC,CUPS0010422,-57114.28,Grants to educational establishments or not for profit organisations including other businesses
Department for Education,DEPARTMENT FOR EDUCATION,07/09/2020,Grants expenditure,TEACHING WORKFORCE TOTAL,E-QUALITAS PROFESSIONAL SERVICES LIMITED,CUPS0010424,57114.28,Grants to educational establishments or not for profit organisations including other businesses
Department for Education,DEPARTMENT FOR EDUCATION,30/09/2020,Grants expenditure,TEACHING WORKFORCE TOTAL,E-QUALITAS PROFESSIONAL SERVICES LIMITED,CUPS0010425,57114.28,Grants to educational establishments or not for profit organisations including other businesses
Department for Education,DEPARTMENT FOR EDUCATION,16/09/2020,Other Goods & Services,TEACHING WORKFORCE TOTAL,PROSPERO GROUP LTD,CORE-PINV-007865,37980,Other Professional Services
Department for Education,DEPARTMENT FOR EDUCATION,28/09/2020,Professional Services,TEACHING WORKFORCE TOTAL,TEACH FIRST,CORE-PINV-008157,588036.74,EDUCATIONAL SERVICES
Department for Education,DEPARTMENT FOR EDUCATION,28/09/2020,Professional Services,TEACHING WORKFORCE TOTAL,TEACH FIRST,CORE-PINV-008160,2219282.15,EDUCATIONAL SERVICES
Department for Education,DEPARTMENT FOR EDUCATION,03/09/2020,Grants expenditure,TEACHING WORKFORCE TOTAL,ROYAL SOCIETY OF CHEMISTRY,CORE-MAIN-006057,27292.23,Grants to educational establishments or not for profit organisations including other businesses
Department for Education,DEPARTMENT FOR EDUCATION,30/09/2020,Grants expenditure,SYSTEM CAPACITY LEADERSHIP AND GOVERNANCE TOTAL,CHALLNEY HIGH SCHOOL FOR BOYS,CORE-MAIN-006849,94285,Grants to educational establishments or not for profit organisations including other businesses
Department for Education,DEPARTMENT FOR EDUCATION,04/09/2020,Other Goods & Services,SYSTEM CAPACITY LEADERSHIP AND GOVERNANCE TOTAL,Tribal Education Limited,CORE-PINV-007339,124788.72,Other Professional Services
Department for Education,DEPARTMENT FOR EDUCATION,29/09/2020,Other Goods & Services,SYSTEM CAPACITY LEADERSHIP AND GOVERNANCE TOTAL,Tribal Education Limited,CORE-PINV-008316,63503.16,Other Professional Services
Department for Education,DEPARTMENT FOR EDUCATION,03/09/2020,Other Goods & Services,SYSTEM CAPACITY LEADERSHIP AND GOVERNANCE TOTAL,UCL CONSULTANTS LTD,CORE-PINV-007293,91845.91,Programme Expenditure
Department for Education,DEPARTMENT FOR EDUCATION,03/09/2020,Other Goods & Services,SYSTEM CAPACITY LEADERSHIP AND GOVERNANCE TOTAL,AMBITION INSTITUTE,CORE-PINV-007294,21253.12,Programme Expenditure
Department for Education,DEPARTMENT FOR EDUCATION,03/09/2020,Other Goods & Services,SYSTEM CAPACITY LEADERSHIP AND GOVERNANCE TOTAL,EDUCATION DEVELOPMENT TRUST,CORE-PINV-007305,41733.26,Programme Expenditure
Department for Education,DEPARTMENT FOR EDUCATION,07/09/2020,Other Goods & Services,SYSTEM CAPACITY LEADERSHIP AND GOVERNANCE TOTAL,TEACH FIRST,CORE-PINV-007337,60676.33,Programme Expenditure
Department for Education,DEPARTMENT FOR EDUCATION,07/09/2020,IS/IT,SYSTEM CAPACITY LEADERSHIP AND GOVERNANCE TOTAL,Sigma Consulting Solutions Ltd,CORE-PINV-007399,24000,IS/IT Services - Systems Development
Department for Education,DEPARTMENT FOR EDUCATION,16/09/2020,IS/IT,SYSTEM CAPACITY LEADERSHIP AND GOVERNANCE TOTAL,FARSIGHT CONSULTING LIMITED,CORE-PINV-007916,60625,IS/IT Services - Systems Development
Department for Education,DEPARTMENT FOR EDUCATION,21/09/2020,Grants expenditure,ASSESSMENT AND CURRICULUM AND GENERAL QUALIFICATIONS,The Reach Foundation,CUPS0010475,76393.28,Grants to educational establishments or not for profit organisations including other businesses
Department for Education,DEPARTMENT FOR EDUCATION,08/09/2020,Other Goods & Services,ASSESSMENT AND CURRICULUM AND GENERAL QUALIFICATIONS,UNIVERSITY OF YORK,CORE-PINV-007442,47800,Other Professional Services
Department for Education,DEPARTMENT FOR EDUCATION,11/09/2020,Grants expenditure,SCHOOL QUALITY AND SAFEGUARDING TOTAL,NEW SCHOOLS NETWORK,CORE-MAIN-006226,31717.57,Grants to educational establishments or not for profit organisations including other businesses
Department for Education,DEPARTMENT FOR EDUCATION,22/09/2020,Other Goods & Services,SCHOOL QUALITY AND SAFEGUARDING TOTAL,EDUCATION AND EMPLOYERS TASKFORCE,CORE-PINV-008033,79166,Other Professional Services
Department for Education,DEPARTMENT FOR EDUCATION,30/09/2020,Grants expenditure,SCHOOL QUALITY AND SAFEGUARDING TOTAL,BUCKINGHAMSHIRE COUNTY COUNCIL,CORE-MAIN-006883,25833,Grants to local authorities
Department for Education,DEPARTMENT FOR EDUCATION,30/09/2020,Grants expenditure,SCHOOL QUALITY AND SAFEGUARDING TOTAL,CAMBRIDGESHIRE COUNTY COUNCIL,CORE-MAIN-006886,55867,Grants to local authorities
Department for Education,DEPARTMENT FOR EDUCATION,30/09/2020,Grants expenditure,SCHOOL QUALITY AND SAFEGUARDING TOTAL,CHESHIRE WEST & CHESTER COUNCIL,CORE-MAIN-006890,28217,Grants to local authorities
Department for Education,DEPARTMENT FOR EDUCATION,30/09/2020,Grants expenditure,SCHOOL QUALITY AND SAFEGUARDING TOTAL,CORNWALL COUNCIL,CORE-MAIN-006891,69983,Grants to local authorities
Department for Education,DEPARTMENT FOR EDUCATION,30/09/2020,Grants expenditure,SCHOOL QUALITY AND SAFEGUARDING TOTAL,CUMBRIA COUNTY COUNCIL,CORE-MAIN-006894,32883,Grants to local authorities
Department for Education,DEPARTMENT FOR EDUCATION,30/09/2020,Grants expenditure,SCHOOL QUALITY AND SAFEGUARDING TOTAL,DERBYSHIRE COUNTY COUNCIL,CORE-MAIN-006897,97400,Grants to local authorities
Department for Education,DEPARTMENT FOR EDUCATION,30/09/2020,Grants expenditure,SCHOOL QUALITY AND SAFEGUARDING TOTAL,DEVON COUNTY COUNCIL,CORE-MAIN-006898,54508,Grants to local authorities
Department for Education,DEPARTMENT FOR EDUCATION,30/09/2020,Grants expenditure,SCHOOL QUALITY AND SAFEGUARDING TOTAL,DORSET COUNCIL,CORE-MAIN-006900,61675,Grants to local authorities
Department for Education,DEPARTMENT FOR EDUCATION,30/09/2020,Grants expenditure,SCHOOL QUALITY AND SAFEGUARDING TOTAL,DURHAM COUNTY COUNCIL,CORE-MAIN-006902,116517,Grants to local authorities
Department for Education,DEPARTMENT FOR EDUCATION,30/09/2020,Grants expenditure,SCHOOL QUALITY AND SAFEGUARDING TOTAL,EAST SUSSEX COUNTY COUNCIL,CORE-MAIN-006905,58375,Grants to local authorities
Department for Education,DEPARTMENT FOR EDUCATION,30/09/2020,Grants expenditure,SCHOOL QUALITY AND SAFEGUARDING TOTAL,ESSEX COUNTY COUNCIL,CORE-MAIN-006907,78283,Grants to local authorities
Department for Education,DEPARTMENT FOR EDUCATION,30/09/2020,Grants expenditure,SCHOOL QUALITY AND SAFEGUARDING TOTAL,GLOUCESTERSHIRE COUNTY COUNCIL,CORE-MAIN-006909,49500,Grants to local authorities
Department for Education,DEPARTMENT FOR EDUCATION,30/09/2020,Grants expenditure,SCHOOL QUALITY AND SAFEGUARDING TOTAL,HAMPSHIRE COUNTY COUNCIL,CORE-MAIN-006914,52342,Grants to local authorities
Department for Education,DEPARTMENT FOR EDUCATION,30/09/2020,Grants expenditure,SCHOOL QUALITY AND SAFEGUARDING TOTAL,KENT COUNTY COUNCIL,CORE-MAIN-006926,164083,Grants to local authorities
Department for Education,DEPARTMENT FOR EDUCATION,30/09/2020,Grants expenditure,SCHOOL QUALITY AND SAFEGUARDING TOTAL,LANCASHIRE COUNTY COUNCIL,CORE-MAIN-006932,87617,Grants to local authorities
Department for Education,DEPARTMENT FOR EDUCATION,30/09/2020,Grants expenditure,SCHOOL QUALITY AND SAFEGUARDING TOTAL,LEICESTERSHIRE COUNTY COUNCIL,CORE-MAIN-006935,52908,Grants to local authorities
Department for Education,DEPARTMENT FOR EDUCATION,30/09/2020,Grants expenditure,SCHOOL QUALITY AND SAFEGUARDING TOTAL,LINCOLNSHIRE COUNTY COUNCIL,CORE-MAIN-006937,81133,Grants to local authorities
Department for Education,DEPARTMENT FOR EDUCATION,30/09/2020,Grants expenditure,SCHOOL QUALITY AND SAFEGUARDING TOTAL,NORFOLK COUNTY COUNCIL,CORE-MAIN-006947,84092,Grants to local authorities
Department for Education,DEPARTMENT FOR EDUCATION,30/09/2020,Grants expenditure,SCHOOL QUALITY AND SAFEGUARDING TOTAL,NORTH YORKSHIRE COUNTY COUNCIL,CORE-MAIN-006952,40967,Grants to local authorities
Department for Education,DEPARTMENT FOR EDUCATION,30/09/2020,Grants expenditure,SCHOOL QUALITY AND SAFEGUARDING TOTAL,NORTHAMPTONSHIRE COUNTY COUNCIL,CORE-MAIN-006953,35275,Grants to local authorities
Department for Education,DEPARTMENT FOR EDUCATION,30/09/2020,Grants expenditure,SCHOOL QUALITY AND SAFEGUARDING TOTAL,NORTHUMBERLAND COUNTY COUNCIL,CORE-MAIN-006954,28108,Grants to local authorities
Department for Education,DEPARTMENT FOR EDUCATION,30/09/2020,Grants expenditure,SCHOOL QUALITY AND SAFEGUARDING TOTAL,NOTTINGHAMSHIRE COUNTY COUNCIL,CORE-MAIN-006956,53367,Grants to local authorities
Department for Education,DEPARTMENT FOR EDUCATION,30/09/2020,Grants expenditure,SCHOOL QUALITY AND SAFEGUARDING TOTAL,Oxfordshire County Council,CORE-MAIN-006958,37892,Grants to local authorities
Department for Education,DEPARTMENT FOR EDUCATION,30/09/2020,Grants expenditure,SCHOOL QUALITY AND SAFEGUARDING TOTAL,SOMERSET COUNTY COUNCIL,CORE-MAIN-006975,57233,Grants to local authorities
Department for Education,DEPARTMENT FOR EDUCATION,30/09/2020,Grants expenditure,SCHOOL QUALITY AND SAFEGUARDING TOTAL,Staffordshire County Council,CORE-MAIN-006981,37433,Grants to local authorities
Department for Education,DEPARTMENT FOR EDUCATION,30/09/2020,Grants expenditure,SCHOOL QUALITY AND SAFEGUARDING TOTAL,SUFFOLK COUNTY COUNCIL,CORE-MAIN-006985,61558,Grants to local authorities
Department for Education,DEPARTMENT FOR EDUCATION,30/09/2020,Grants expenditure,SCHOOL QUALITY AND SAFEGUARDING TOTAL,Wakefield City Council,CORE-MAIN-006996,27875,Grants to local authorities
Department for Education,DEPARTMENT FOR EDUCATION,30/09/2020,Grants expenditure,SCHOOL QUALITY AND SAFEGUARDING TOTAL,WARWICKSHIRE COUNTY COUNCIL,CORE-MAIN-007001,29242,Grants to local authorities
Department for Education,DEPARTMENT FOR EDUCATION,30/09/2020,Grants expenditure,SCHOOL QUALITY AND SAFEGUARDING TOTAL,WEST SUSSEX COUNTY COUNCIL,CORE-MAIN-007003,40283,Grants to local authorities
Department for Education,DEPARTMENT FOR EDUCATION,30/09/2020,Grants expenditure,SCHOOL QUALITY AND SAFEGUARDING TOTAL,WILTSHIRE COUNTY COUNCIL,CORE-MAIN-007006,36750,Grants to local authorities
Department for Education,DEPARTMENT FOR EDUCATION,30/09/2020,Grants expenditure,SCHOOL QUALITY AND SAFEGUARDING TOTAL,WORCESTERSHIRE COUNTY COUNCIL,CORE-MAIN-007011,35733,Grants to local authorities
Department for Education,DEPARTMENT FOR EDUCATION,03/09/2020,Grants expenditure,ACADEMIES DELIVERY DIRECTORATE,Anglian Learning,CORE-MAIN-006058,70000,"Grants paid to organisations including agencies, arms length bodies and educational establishments"
Department for Education,DEPARTMENT FOR EDUCATION,03/09/2020,Grants expenditure,ACADEMIES DELIVERY DIRECTORATE,London Academy,CORE-MAIN-006059,81334,"Grants paid to organisations including agencies, arms length bodies and educational establishments"
Department for Education,DEPARTMENT FOR EDUCATION,03/09/2020,Grants expenditure,ACADEMIES DELIVERY DIRECTORATE,Quantock Education Trust,CORE-MAIN-006060,115000,"Grants paid to organisations including agencies, arms length bodies and educational establishments"
Department for Education,DEPARTMENT FOR EDUCATION,11/09/2020,Grants expenditure,ACADEMIES DELIVERY DIRECTORATE,Avanti Schools Trust,CORE-MAIN-006227,210000,"Grants paid to organisations including agencies, arms length bodies and educational establishments"
Department for Education,DEPARTMENT FOR EDUCATION,30/09/2020,Grants expenditure,ACADEMIES DELIVERY DIRECTORATE,West Lakes Academy,CORE-MAIN-007015,50000,"Grants paid to organisations including agencies, arms length bodies and educational establishments"
Department for Education,DEPARTMENT FOR EDUCATION,30/09/2020,Grants expenditure,ACADEMIES DELIVERY DIRECTORATE,Cumbria Education Trust,CORE-MAIN-007016,25000,"Grants paid to organisations including agencies, arms length bodies and educational establishments"
Department for Education,DEPARTMENT FOR EDUCATION,11/09/2020,Grants expenditure,ACADEMIES DELIVERY DIRECTORATE,United Learning Trust,CORE-MAIN-006228,80000,Capital grants paid to a private sector organisation
Department for Education,DEPARTMENT FOR EDUCATION,30/09/2020,Grants expenditure,ACADEMIES DELIVERY DIRECTORATE,Cidari Education Limited,CORE-MAIN-007017,40000,Capital grants paid to a private sector organisation
Department for Education,DEPARTMENT FOR EDUCATION,30/09/2020,Grants expenditure,ACADEMIES DELIVERY DIRECTORATE,Emmaus Catholic Multi Academy Trust,CORE-MAIN-007018,80000,Capital grants paid to a private sector organisation
Department for Education,DEPARTMENT FOR EDUCATION,30/09/2020,Grants expenditure,ACADEMIES DELIVERY DIRECTORATE,Orchard Community Trust,CORE-MAIN-007019,35897.8,"Grants paid to organisations including agencies, arms length bodies and educational establishments"
Department for Education,DEPARTMENT FOR EDUCATION,18/09/2020,Consultancy,ACADEMIES DELIVERY DIRECTORATE,GOVERNMENT LEGAL DEPARTMENT,CUPS0010472,70000,"Advisory services including fees, travel and expenses"
Department for Education,DEPARTMENT FOR EDUCATION,11/09/2020,Grants expenditure,FREE SCHOOL DIRECTORATE,ASTRUM MULTI ACADEMY TRUST,CORE-MAIN-006229,70000,"Grants paid to organisations including agencies, arms length bodies and educational establishments"
Department for Education,DEPARTMENT FOR EDUCATION,11/09/2020,Grants expenditure,FREE SCHOOL DIRECTORATE,NEWQUAY EDUCATION TRUST,CORE-MAIN-006230,78201,"Grants paid to organisations including agencies, arms length bodies and educational establishments"
Department for Education,DEPARTMENT FOR EDUCATION,11/09/2020,Grants expenditure,FREE SCHOOL DIRECTORATE,PA Community Trust,CORE-MAIN-006231,30000,"Grants paid to organisations including agencies, arms length bodies and educational establishments"
Department for Education,DEPARTMENT FOR EDUCATION,11/09/2020,Grants expenditure,FREE SCHOOL DIRECTORATE,FORWARD EDUCATION TRUST,CORE-MAIN-006232,35000,"Grants paid to organisations including agencies, arms length bodies and educational establishments"
Department for Education,DEPARTMENT FOR EDUCATION,11/09/2020,Grants expenditure,FREE SCHOOL DIRECTORATE,HARRIS FEDERATION,CORE-MAIN-006233,50000,"Grants paid to organisations including agencies, arms length bodies and educational establishments"
Department for Education,DEPARTMENT FOR EDUCATION,11/09/2020,Grants expenditure,FREE SCHOOL DIRECTORATE,Catch22 Multi Academies Trust Limited,CORE-MAIN-006234,40000,"Grants paid to organisations including agencies, arms length bodies and educational establishments"
Department for Education,DEPARTMENT FOR EDUCATION,30/09/2020,Grants expenditure,FREE SCHOOL DIRECTORATE,Wave Multi Academy Trust,CORE-MAIN-007020,31000,"Grants paid to organisations including agencies, arms length bodies and educational establishments"
Department for Education,DEPARTMENT FOR EDUCATION,11/09/2020,Grants expenditure,ACADEMIES AND REGIONAL DELIVERY TOTAL,Chiltern Way Academy,CORE-MAIN-006235,202111,"Grants paid to organisations including agencies, arms length bodies and educational establishments"
Department for Education,DEPARTMENT FOR EDUCATION,11/09/2020,Grants expenditure,ACADEMIES AND REGIONAL DELIVERY TOTAL,Sapientia Education Trust,CORE-MAIN-006236,31205,"Grants paid to organisations including agencies, arms length bodies and educational establishments"
Department for Education,DEPARTMENT FOR EDUCATION,30/09/2020,Grants expenditure,ACADEMIES AND REGIONAL DELIVERY TOTAL,Endeavour Schools Trust Ltd,CORE-MAIN-007021,72671,"Grants paid to organisations including agencies, arms length bodies and educational establishments"
Department for Education,DEPARTMENT FOR EDUCATION,11/09/2020,Grants expenditure,ACADEMIES AND REGIONAL DELIVERY TOTAL,Magna Learning Partnership,CORE-MAIN-006237,25000,"Grants paid to organisations including agencies, arms length bodies and educational establishments"
Department for Education,DEPARTMENT FOR EDUCATION,11/09/2020,Grants expenditure,ACADEMIES AND REGIONAL DELIVERY TOTAL,Diocese of Salisbury Multi Academy Trust,CORE-MAIN-006238,50000,"Grants paid to organisations including agencies, arms length bodies and educational establishments"
Department for Education,DEPARTMENT FOR EDUCATION,11/09/2020,Grants expenditure,ACADEMIES AND REGIONAL DELIVERY TOTAL,The Priory Learning Trust,CORE-MAIN-006239,25000,"Grants paid to organisations including agencies, arms length bodies and educational establishments"
Department for Education,DEPARTMENT FOR EDUCATION,11/09/2020,Grants expenditure,ACADEMIES AND REGIONAL DELIVERY TOTAL,Lumen Christi Catholic Multi Academy Company,CORE-MAIN-006243,25000,"Grants paid to organisations including agencies, arms length bodies and educational establishments"
Department for Education,DEPARTMENT FOR EDUCATION,11/09/2020,Grants expenditure,ACADEMIES AND REGIONAL DELIVERY TOTAL,Chester Diocesan Academies Trust,CORE-MAIN-006244,25000,"Grants paid to organisations including agencies, arms length bodies and educational establishments"
Department for Education,DEPARTMENT FOR EDUCATION,11/09/2020,Grants expenditure,ACADEMIES AND REGIONAL DELIVERY TOTAL,Central RSA Academies Trust,CORE-MAIN-006245,110000,"Grants paid to organisations including agencies, arms length bodies and educational establishments"
Department for Education,DEPARTMENT FOR EDUCATION,11/09/2020,Grants expenditure,ACADEMIES AND REGIONAL DELIVERY TOTAL,IMPACT EDUCATION MULTI ACADEMY TRUST,CORE-MAIN-006247,70000,"Grants paid to organisations including agencies, arms length bodies and educational establishments"
Department for Education,DEPARTMENT FOR EDUCATION,30/09/2020,Grants expenditure,ACADEMIES AND REGIONAL DELIVERY TOTAL,Emmaus Catholic Multi Academy Trust,CORE-MAIN-007028,230000,"Grants paid to organisations including agencies, arms length bodies and educational establishments"
Department for Education,DEPARTMENT FOR EDUCATION,30/09/2020,Grants expenditure,ACADEMIES AND REGIONAL DELIVERY TOTAL,Cardinal Hume Catholic School,CORE-MAIN-007029,75000,"Grants paid to organisations including agencies, arms length bodies and educational establishments"
Department for Education,DEPARTMENT FOR EDUCATION,30/09/2020,Grants expenditure,ACADEMIES AND REGIONAL DELIVERY TOTAL,Wynyard Church of England Primary School,CORE-MAIN-007030,25000,"Grants paid to organisations including agencies, arms length bodies and educational establishments"
Department for Education,DEPARTMENT FOR EDUCATION,30/09/2020,Grants expenditure,ACADEMIES AND REGIONAL DELIVERY TOTAL,Sacred Heart Partnership of Schools,CORE-MAIN-007031,175000,"Grants paid to organisations including agencies, arms length bodies and educational establishments"
Department for Education,DEPARTMENT FOR EDUCATION,11/09/2020,Grants expenditure,ACADEMIES AND REGIONAL DELIVERY TOTAL,HALTERWORTH COMMUNITY PRIMARY SCHOOL,CORE-MAIN-006248,75000,"Grants paid to organisations including agencies, arms length bodies and educational establishments"
Department for Education,DEPARTMENT FOR EDUCATION,30/09/2020,Grants expenditure,ACADEMIES AND REGIONAL DELIVERY TOTAL,The Swan Trust,CORE-MAIN-007032,25000,"Grants paid to organisations including agencies, arms length bodies and educational establishments"
Department for Education,DEPARTMENT FOR EDUCATION,30/09/2020,Grants expenditure,ACADEMIES AND REGIONAL DELIVERY TOTAL,"Bishop Luffa School, Chichester",CORE-MAIN-007033,90000,"Grants paid to organisations including agencies, arms length bodies and educational establishments"
Department for Education,DEPARTMENT FOR EDUCATION,08/09/2020,IS/IT,FUNDING AND ANALYSIS TOTAL,OLIVE JAR DIGITAL LTD,CORE-PINV-007425,76960,Software Development
Department for Education,DEPARTMENT FOR EDUCATION,29/09/2020,IS/IT,Academies Regional Delivery Group,FUJITSU SERVICES LTD,CORE-PINV-008375,85545,Software Development
Department for Education,DEPARTMENT FOR EDUCATION,03/09/2020,Grants expenditure,SYSTEM CAPACITY LEADERSHIP AND GOVERNANCE TOTAL,Harrogate Grammar School,CORE-MAIN-006066,87892,Grants to educational establishments or not for profit organisations including other businesses
Department for Education,DEPARTMENT FOR EDUCATION,07/09/2020,IS/IT,FUNDING AND ANALYSIS TOTAL,PAPER DESIGN STUDIO LTD,CORE-PINV-007390,87287.5,Software Development
Department for Education,DEPARTMENT FOR EDUCATION,14/09/2020,Consultancy,FUNDING AND ANALYSIS TOTAL,JOYLAB LONDON,CORE-PINV-007587,70675,Professional Services - IT Related
Department for Education,DEPARTMENT FOR EDUCATION,18/09/2020,Other Goods & Services,FUNDING AND ANALYSIS TOTAL,2BUY2.COM LTD,CORE-PINV-007934,165364,Other Professional Services
Department for Education,DEPARTMENT FOR EDUCATION,01/09/2020,IS/IT,TEACHING WORKFORCE TOTAL,SCROLL PROJECTS LTD,CORE-PINV-006310,28750,Software Development
Department for Education,DEPARTMENT FOR EDUCATION,01/09/2020,Other Goods & Services,TEACHING WORKFORCE TOTAL,UCAS,CORE-PINV-007179,116964.89,Other Professional Services
Department for Education,DEPARTMENT FOR EDUCATION,14/09/2020,Other Goods & Services,TEACHING WORKFORCE TOTAL,Digi2al Ltd,CORE-PINV-007591,32475,Research and Development
Department for Education,DEPARTMENT FOR EDUCATION,14/09/2020,IS/IT,TEACHING WORKFORCE TOTAL,ADROC LTD,CORE-PINV-007658,26280,Software Development
Department for Education,DEPARTMENT FOR EDUCATION,14/09/2020,IS/IT,TEACHING WORKFORCE TOTAL,ADROC LTD,CORE-PINV-007659,22680,Software Development
Department for Education,DEPARTMENT FOR EDUCATION,15/09/2020,IS/IT,TEACHING WORKFORCE TOTAL,UCAS,CORE-PINV-007718,24500,IS/IT Systems Operations
Department for Education,DEPARTMENT FOR EDUCATION,15/09/2020,Other Goods & Services,TEACHING WORKFORCE TOTAL,UCAS,CORE-PINV-007719,80566.46,Other Professional Services
Department for Education,DEPARTMENT FOR EDUCATION,11/09/2020,Grants expenditure,EARLY YEARS AND SCHOOLS GROUP,LANCASTER UNIVERSITY SCHOOL OF MATHEMATICS,CORE-MAIN-006249,70000,"Grants paid to organisations including agencies, arms length bodies and educational establishments"
Department for Education,DEPARTMENT FOR EDUCATION,03/09/2020,Grants expenditure,TEACHING WORKFORCE TOTAL,UNIVERSITY OF NORTHUMBRIA AT NEWCASTLE,CUPS0008991,45572.91,Grants to educational establishments or not for profit organisations including other businesses
Department for Education,DEPARTMENT FOR EDUCATION,03/09/2020,Grants expenditure,TEACHING WORKFORCE TOTAL,Alpha Trust,CUPS0008992,126547.33,Grants to educational establishments or not for profit organisations including other businesses
Department for Education,DEPARTMENT FOR EDUCATION,03/09/2020,Grants expenditure,TEACHING WORKFORCE TOTAL,NOTTINGHAM TRENT UNIVERSITY,CUPS0008994,192601.5,Grants to educational establishments or not for profit organisations including other businesses
Department for Education,DEPARTMENT FOR EDUCATION,03/09/2020,Grants expenditure,TEACHING WORKFORCE TOTAL,UNIVERSITY OF BRISTOL,CUPS0008995,278613,Grants to educational establishments or not for profit organisations including other businesses
Department for Education,DEPARTMENT FOR EDUCATION,03/09/2020,Grants expenditure,TEACHING WORKFORCE TOTAL,UNIVERSITY OF EAST LONDON,CUPS0008996,415038,Grants to educational establishments or not for profit organisations including other businesses
Department for Education,DEPARTMENT FOR EDUCATION,03/09/2020,Grants expenditure,TEACHING WORKFORCE TOTAL,UNIVERSITY OF HERTFORDSHIRE,CUPS0008997,234115.5,Grants to educational establishments or not for profit organisations including other businesses
Department for Education,DEPARTMENT FOR EDUCATION,03/09/2020,Grants expenditure,TEACHING WORKFORCE TOTAL,THE UNIVERSITY OF MANCHESTER,CUPS0008998,433576.5,Grants to educational establishments or not for profit organisations including other businesses
Department for Education,DEPARTMENT FOR EDUCATION,03/09/2020,Grants expenditure,TEACHING WORKFORCE TOTAL,York St John University,CUPS0008999,100648.5,Grants to educational establishments or not for profit organisations including other businesses
Department for Education,DEPARTMENT FOR EDUCATION,03/09/2020,Grants expenditure,TEACHING WORKFORCE TOTAL,MIDDLESEX UNIVERSITY,CUPS0009000,131733,Grants to educational establishments or not for profit organisations including other businesses
Department for Education,DEPARTMENT FOR EDUCATION,03/09/2020,Grants expenditure,TEACHING WORKFORCE TOTAL,NORTH ESSEX TEACHER TRAINING,CUPS0009003,48837,Grants to educational establishments or not for profit organisations including other businesses
Department for Education,DEPARTMENT FOR EDUCATION,03/09/2020,Grants expenditure,TEACHING WORKFORCE TOTAL,WEST MIDLANDS CONSORTIUM,CUPS0009004,25449,Grants to educational establishments or not for profit organisations including other businesses
Department for Education,DEPARTMENT FOR EDUCATION,03/09/2020,Grants expenditure,TEACHING WORKFORCE TOTAL,LEARNING INSTITUTE SOUTH WEST SCITT,CUPS0009005,34017,Grants to educational establishments or not for profit organisations including other businesses
Department for Education,DEPARTMENT FOR EDUCATION,03/09/2020,Grants expenditure,TEACHING WORKFORCE TOTAL,THE ARTHUR TERRY SCHOOL SCITT,CUPS0009007,53218.5,Grants to educational establishments or not for profit organisations including other businesses
Department for Education,DEPARTMENT FOR EDUCATION,03/09/2020,Grants expenditure,TEACHING WORKFORCE TOTAL,LEICESTERSHIRE SECONDARY SCITT,CUPS0009008,119901,Grants to educational establishments or not for profit organisations including other businesses
Department for Education,DEPARTMENT FOR EDUCATION,03/09/2020,Grants expenditure,TEACHING WORKFORCE TOTAL,EDUCATION MANAGEMENT DIRECT LTD,CUPS0009009,33787.5,Grants to educational establishments or not for profit organisations including other businesses
Department for Education,DEPARTMENT FOR EDUCATION,03/09/2020,Grants expenditure,TEACHING WORKFORCE TOTAL,THE HAVERING TEACHER TRAINING PARTNERSHIP,CUPS0009010,44038.5,Grants to educational establishments or not for profit organisations including other businesses
Department for Education,DEPARTMENT FOR EDUCATION,03/09/2020,Grants expenditure,TEACHING WORKFORCE TOTAL,POOLE SECONDARY SCHOOLS,CUPS0009011,35164.5,Grants to educational establishments or not for profit organisations including other businesses
Department for Education,DEPARTMENT FOR EDUCATION,03/09/2020,Grants expenditure,TEACHING WORKFORCE TOTAL,MID SOMERSET CONSORTIUM FOR TEACHER TRAINING,CUPS0009012,59058,Grants to educational establishments or not for profit organisations including other businesses
Department for Education,DEPARTMENT FOR EDUCATION,03/09/2020,Grants expenditure,TEACHING WORKFORCE TOTAL,Summit Learning Trust,CUPS0009013,31849.5,Grants to educational establishments or not for profit organisations including other businesses
Department for Education,DEPARTMENT FOR EDUCATION,03/09/2020,Grants expenditure,TEACHING WORKFORCE TOTAL,Dove House School,CUPS0009014,36694.5,Grants to educational establishments or not for profit organisations including other businesses
Department for Education,DEPARTMENT FOR EDUCATION,03/09/2020,Other costs,TEACHING WORKFORCE TOTAL,ARK Schools,CUPS0009015,199604.5,Current grants paid to organisations including arms length bodies and educational establishments
Department for Education,DEPARTMENT FOR EDUCATION,03/09/2020,Grants expenditure,TEACHING WORKFORCE TOTAL,THORNDEN SCHOOL,CUPS0009016,35803.5,Grants paid to other Government Departments
Department for Education,DEPARTMENT FOR EDUCATION,03/09/2020,Grants expenditure,TEACHING WORKFORCE TOTAL,DENBIGH ALLIANCE,CUPS0009017,36388.5,Grants paid to other Government Departments
Department for Education,DEPARTMENT FOR EDUCATION,03/09/2020,Grants expenditure,TEACHING WORKFORCE TOTAL,TRAIN TO TEACH AT SURREY & HANTS,CUPS0009018,72012,Grants paid to other Government Departments
Department for Education,DEPARTMENT FOR EDUCATION,03/09/2020,Grants expenditure,TEACHING WORKFORCE TOTAL,BRADFORD BIRTH TO 19 SCITT,CUPS0009019,32869.5,Grants paid to other Government Departments
Department for Education,DEPARTMENT FOR EDUCATION,03/09/2020,Grants expenditure,TEACHING WORKFORCE TOTAL,SUTTON PARK SCITT,CUPS0009020,39499.5,Grants paid to other Government Departments
Department for Education,DEPARTMENT FOR EDUCATION,03/09/2020,Grants expenditure,TEACHING WORKFORCE TOTAL,LINCOLNSHIRE TEACHING SCHOOL ALLIANCE,CUPS0009021,75021,Grants paid to other Government Departments
Department for Education,DEPARTMENT FOR EDUCATION,03/09/2020,Grants expenditure,TEACHING WORKFORCE TOTAL,Star Academies,CUPS0009023,61098,Grants paid to other Government Departments
Department for Education,DEPARTMENT FOR EDUCATION,03/09/2020,Grants expenditure,TEACHING WORKFORCE TOTAL,AA TEAMWORKS WEST YORKSHIRE SCITT,CUPS0009024,35227,Grants paid to other Government Departments
Department for Education,DEPARTMENT FOR EDUCATION,03/09/2020,Grants expenditure,TEACHING WORKFORCE TOTAL,HAYBRIDGE ALLIANCE SCITT,CUPS0009025,72853.5,Grants paid to other Government Departments
Department for Education,DEPARTMENT FOR EDUCATION,03/09/2020,Grants expenditure,TEACHING WORKFORCE TOTAL,SACRED HEART NEWCASTLE SCITT,CUPS0009027,71476.5,Grants paid to other Government Departments
Department for Education,DEPARTMENT FOR EDUCATION,03/09/2020,Grants expenditure,TEACHING WORKFORCE TOTAL,BATH SPA UNIVERSITY,CUPS0009029,301489.5,Grants paid to other Government Departments
Department for Education,DEPARTMENT FOR EDUCATION,03/09/2020,Grants expenditure,TEACHING WORKFORCE TOTAL,BISHOP GROSSETESTE UNIVERSITY,CUPS0009030,190669.5,Grants paid to other Government Departments
Department for Education,DEPARTMENT FOR EDUCATION,03/09/2020,Grants expenditure,TEACHING WORKFORCE TOTAL,UNIVERSITY OF ST MARK & ST JOHN,CUPS0009031,173937,Grants paid to other Government Departments
Department for Education,DEPARTMENT FOR EDUCATION,03/09/2020,Grants expenditure,TEACHING WORKFORCE TOTAL,GOLDSMITH COLLEGE,CUPS0009032,321707,Grants paid to other Government Departments
Department for Education,DEPARTMENT FOR EDUCATION,03/09/2020,Grants expenditure,TEACHING WORKFORCE TOTAL,THE UNIVERSITY OF WINCHESTER,CUPS0009033,144220,Grants paid to other Government Departments
Department for Education,DEPARTMENT FOR EDUCATION,03/09/2020,Grants expenditure,TEACHING WORKFORCE TOTAL,KINGS COLLEGE GUILDFORD,CUPS0009034,359909,Grants paid to other Government Departments
Department for Education,DEPARTMENT FOR EDUCATION,03/09/2020,Grants expenditure,TEACHING WORKFORCE TOTAL,Kingston University Higher Education Corporation,CUPS0009035,82817.83,Grants paid to other Government Departments
Department for Education,DEPARTMENT FOR EDUCATION,03/09/2020,Grants expenditure,TEACHING WORKFORCE TOTAL,LEEDS BECKETT UNIVERSITY,CUPS0009036,109235,Grants paid to other Government Departments
Department for Education,DEPARTMENT FOR EDUCATION,03/09/2020,Grants expenditure,TEACHING WORKFORCE TOTAL,LIVERPOOL JOHN MOORES UNIVERSITY,CUPS0009037,333970,Grants paid to other Government Departments
Department for Education,DEPARTMENT FOR EDUCATION,03/09/2020,Grants expenditure,TEACHING WORKFORCE TOTAL,MANCHESTER METRO UNIVERSITY,CUPS0009038,691267.5,Grants paid to other Government Departments
Department for Education,DEPARTMENT FOR EDUCATION,03/09/2020,Grants expenditure,TEACHING WORKFORCE TOTAL,OXFORD BROOKES UNIVERSITY,CUPS0009039,46449.5,Grants paid to other Government Departments
Department for Education,DEPARTMENT FOR EDUCATION,03/09/2020,Grants expenditure,TEACHING WORKFORCE TOTAL,SHEFFIELD HALLAM UNIVERSITY,CUPS0009040,537039.5,Grants paid to other Government Departments
Department for Education,DEPARTMENT FOR EDUCATION,03/09/2020,Grants expenditure,TEACHING WORKFORCE TOTAL,THE UNIVERSITY OF CUMBRIA,CUPS0009041,321048,Grants paid to other Government Departments
Department for Education,DEPARTMENT FOR EDUCATION,03/09/2020,Grants expenditure,TEACHING WORKFORCE TOTAL,THE UNIVERSITY OF CHICHESTER,CUPS0009042,118592.5,Grants paid to other Government Departments
Department for Education,DEPARTMENT FOR EDUCATION,03/09/2020,Grants expenditure,TEACHING WORKFORCE TOTAL,UNIVERSITY OF EAST ANGLIA,CUPS0009044,207482,Grants paid to other Government Departments
Department for Education,DEPARTMENT FOR EDUCATION,03/09/2020,Grants expenditure,TEACHING WORKFORCE TOTAL,UNIVERSITY OF EXETER,CUPS0009045,340310.5,Grants paid to other Government Departments
Department for Education,DEPARTMENT FOR EDUCATION,03/09/2020,Grants expenditure,TEACHING WORKFORCE TOTAL,UNIVERSITY OF GLOUCESTERSHIRE,CUPS0009046,69312.5,Grants paid to other Government Departments
Department for Education,DEPARTMENT FOR EDUCATION,03/09/2020,Grants expenditure,TEACHING WORKFORCE TOTAL,UNIVERSITY OF GREENWICH,CUPS0009047,159388,Grants paid to other Government Departments
Department for Education,DEPARTMENT FOR EDUCATION,03/09/2020,Grants expenditure,TEACHING WORKFORCE TOTAL,UNIVERSITY OF HUDDERSFIELD,CUPS0009048,200439.5,Grants paid to other Government Departments
Department for Education,DEPARTMENT FOR EDUCATION,03/09/2020,Grants expenditure,TEACHING WORKFORCE TOTAL,UNIVERSITY OF HULL,CUPS0009049,129605,Grants paid to other Government Departments
Department for Education,DEPARTMENT FOR EDUCATION,03/09/2020,Grants expenditure,TEACHING WORKFORCE TOTAL,UNIVERSITY OF LEICESTER,CUPS0009050,164784.5,Grants paid to other Government Departments
Department for Education,DEPARTMENT FOR EDUCATION,03/09/2020,Grants expenditure,TEACHING WORKFORCE TOTAL,The University of Nottingham,CUPS0009051,294546,Grants paid to other Government Departments
Department for Education,DEPARTMENT FOR EDUCATION,03/09/2020,Grants expenditure,TEACHING WORKFORCE TOTAL,UNIVERSITY OF OXFORD,CUPS0009052,295581,Grants paid to other Government Departments
Department for Education,DEPARTMENT FOR EDUCATION,03/09/2020,Grants expenditure,TEACHING WORKFORCE TOTAL,UNIVERSITY OF PLYMOUTH,CUPS0009053,128068,Grants paid to other Government Departments
Department for Education,DEPARTMENT FOR EDUCATION,03/09/2020,Grants expenditure,TEACHING WORKFORCE TOTAL,UNIVERSITY OF PORTSMOUTH,CUPS0009054,210952.5,Grants paid to other Government Departments
Department for Education,DEPARTMENT FOR EDUCATION,03/09/2020,Grants expenditure,TEACHING WORKFORCE TOTAL,University of Reading,CUPS0009055,414131.5,Grants paid to other Government Departments
Department for Education,DEPARTMENT FOR EDUCATION,03/09/2020,Grants expenditure,TEACHING WORKFORCE TOTAL,University of Sheffield,CUPS0009056,211375,Grants paid to other Government Departments
Department for Education,DEPARTMENT FOR EDUCATION,03/09/2020,Grants expenditure,TEACHING WORKFORCE TOTAL,UNIVERSITY OF SUNDERLAND,CUPS0009057,329534.5,Grants paid to other Government Departments
Department for Education,DEPARTMENT FOR EDUCATION,03/09/2020,Grants expenditure,TEACHING WORKFORCE TOTAL,UNIVERSITY OF ROEHAMPTON,CUPS0009058,295022.5,Grants paid to other Government Departments
Department for Education,DEPARTMENT FOR EDUCATION,03/09/2020,Grants expenditure,TEACHING WORKFORCE TOTAL,UNIVERSITY OF SUSSEX,CUPS0009059,315660,Grants paid to other Government Departments
Department for Education,DEPARTMENT FOR EDUCATION,03/09/2020,Grants expenditure,TEACHING WORKFORCE TOTAL,University of Warwick,CUPS0009060,363515,Grants paid to other Government Departments
Department for Education,DEPARTMENT FOR EDUCATION,03/09/2020,Grants expenditure,TEACHING WORKFORCE TOTAL,UNIVERSITY OF WOLVERHAMPTON,CUPS0009061,266255,Grants paid to other Government Departments
Department for Education,DEPARTMENT FOR EDUCATION,03/09/2020,Grants expenditure,TEACHING WORKFORCE TOTAL,UNIVERSITY OF YORK,CUPS0009062,252151,Grants paid to other Government Departments
Department for Education,DEPARTMENT FOR EDUCATION,03/09/2020,Grants expenditure,TEACHING WORKFORCE TOTAL,UNIVERSITY OF NEWCASTLE UPON TYNE,CUPS0009063,188346.5,Grants paid to other Government Departments
Department for Education,DEPARTMENT FOR EDUCATION,03/09/2020,Grants expenditure,TEACHING WORKFORCE TOTAL,University of Bedfordshire,CUPS0009064,179799.5,Grants paid to other Government Departments
Department for Education,DEPARTMENT FOR EDUCATION,03/09/2020,Grants expenditure,TEACHING WORKFORCE TOTAL,BROMLEY SCHOOLS COLLEGIATE,CUPS0009066,48657.5,Grants paid to other Government Departments
Department for Education,DEPARTMENT FOR EDUCATION,03/09/2020,Grants expenditure,TEACHING WORKFORCE TOTAL,CHILTERN TRAINING GROUP,CUPS0009067,82707,Grants paid to other Government Departments
Department for Education,DEPARTMENT FOR EDUCATION,03/09/2020,Grants expenditure,TEACHING WORKFORCE TOTAL,GLOUCESTERSHIRE INITIAL TEACHER EDUCATION PARTNERSHIP,CUPS0009068,108098,Grants paid to other Government Departments
Department for Education,DEPARTMENT FOR EDUCATION,03/09/2020,Grants expenditure,TEACHING WORKFORCE TOTAL,Kent & Medway Training,CUPS0009069,195885,Grants paid to other Government Departments
Department for Education,DEPARTMENT FOR EDUCATION,03/09/2020,Grants expenditure,TEACHING WORKFORCE TOTAL,MID ESSEX INITIAL TEACHER TRAINING,CUPS0009071,70960.5,Grants paid to other Government Departments
Department for Education,DEPARTMENT FOR EDUCATION,03/09/2020,Grants expenditure,TEACHING WORKFORCE TOTAL,SOUTH WEST TEACHER TRAINING,CUPS0009073,47529,Grants paid to other Government Departments
Department for Education,DEPARTMENT FOR EDUCATION,03/09/2020,Grants expenditure,TEACHING WORKFORCE TOTAL,THAMES PRIMARY CONSORTIUM,CUPS0009074,29303,Grants paid to other Government Departments
Department for Education,DEPARTMENT FOR EDUCATION,03/09/2020,Grants expenditure,TEACHING WORKFORCE TOTAL,DURHAM SECONDARY APPLIED SCITT,CUPS0009077,90965.5,Grants paid to other Government Departments
Department for Education,DEPARTMENT FOR EDUCATION,03/09/2020,Grants expenditure,TEACHING WORKFORCE TOTAL,BOURNEMOUTH POOLE & DORSET EAST SECONDARY,CUPS0009078,62657,Grants paid to other Government Departments
Department for Education,DEPARTMENT FOR EDUCATION,03/09/2020,Grants expenditure,TEACHING WORKFORCE TOTAL,DONCASTER METRO BOROUGH COUNCIL,CUPS0009079,27467,Grants paid to other Government Departments
Department for Education,DEPARTMENT FOR EDUCATION,03/09/2020,Grants expenditure,TEACHING WORKFORCE TOTAL,KINGSBRIDGE EIP SCITT,CUPS0009080,51347,Grants paid to other Government Departments
Department for Education,DEPARTMENT FOR EDUCATION,03/09/2020,Grants expenditure,TEACHING WORKFORCE TOTAL,PENNINE LANCASHIRE SCITT,CUPS0009082,25837,Grants paid to other Government Departments
Department for Education,DEPARTMENT FOR EDUCATION,03/09/2020,Grants expenditure,TEACHING WORKFORCE TOTAL,NORWICH CITY COLLEGE OF FURTHER & HE,CUPS0009084,48967,Grants paid to other Government Departments
Department for Education,DEPARTMENT FOR EDUCATION,03/09/2020,Grants expenditure,TEACHING WORKFORCE TOTAL,ROYAL BOROUGH OF WINDSOR & MAIDENHEAD,CUPS0009085,27008,Grants paid to other Government Departments
Department for Education,DEPARTMENT FOR EDUCATION,03/09/2020,Grants expenditure,TEACHING WORKFORCE TOTAL,Comberton Village College ,CUPS0009086,117285,Grants paid to other Government Departments
Department for Education,DEPARTMENT FOR EDUCATION,03/09/2020,Grants expenditure,TEACHING WORKFORCE TOTAL,Arthur Mellows Village College,CUPS0009087,40242.5,Grants paid to other Government Departments
Department for Education,DEPARTMENT FOR EDUCATION,03/09/2020,Grants expenditure,TEACHING WORKFORCE TOTAL,Skipton Girls' High School ,CUPS0009091,31598,Grants paid to other Government Departments
Department for Education,DEPARTMENT FOR EDUCATION,03/09/2020,Grants expenditure,TEACHING WORKFORCE TOTAL,The Morley Academy,CUPS0009092,228130,Grants paid to other Government Departments
Department for Education,DEPARTMENT FOR EDUCATION,03/09/2020,Grants expenditure,TEACHING WORKFORCE TOTAL,THE JOHN TAYLOR SCITT,CUPS0009093,50776,Grants paid to other Government Departments
Department for Education,DEPARTMENT FOR EDUCATION,03/09/2020,Grants expenditure,TEACHING WORKFORCE TOTAL,THE CHERWELL SCHOOL TS ACCOUNT,CUPS0009094,75279.5,Grants paid to other Government Departments
Department for Education,DEPARTMENT FOR EDUCATION,03/09/2020,Grants expenditure,TEACHING WORKFORCE TOTAL,Cabot Learning Federation,CUPS0009095,82484.5,Grants paid to other Government Departments
Department for Education,DEPARTMENT FOR EDUCATION,03/09/2020,Grants expenditure,TEACHING WORKFORCE TOTAL,PARTNERSHIP LONDON SCITT,CUPS0009096,53557,Grants paid to other Government Departments
Department for Education,DEPARTMENT FOR EDUCATION,03/09/2020,Grants expenditure,TEACHING WORKFORCE TOTAL,YORKSHIRE AND HUMBER TEACHER TRAINING,CUPS0009097,80274,Grants paid to other Government Departments
Department for Education,DEPARTMENT FOR EDUCATION,03/09/2020,Grants expenditure,TEACHING WORKFORCE TOTAL,RED KITE TEACHER TRAINING,CUPS0009098,112688,Grants paid to other Government Departments
Department for Education,DEPARTMENT FOR EDUCATION,03/09/2020,Grants expenditure,TEACHING WORKFORCE TOTAL,HIBERNIA COLLEGE UK,CUPS0009099,216039.5,Grants paid to other Government Departments
Department for Education,DEPARTMENT FOR EDUCATION,03/09/2020,Grants expenditure,TEACHING WORKFORCE TOTAL,BRUNEL UNIVERSITY,CUPS0009100,144304.5,Grants paid to other Government Departments
Department for Education,DEPARTMENT FOR EDUCATION,03/09/2020,Grants expenditure,TEACHING WORKFORCE TOTAL,CANTERBURY CHRIST CHURCH UNIVERSITY,CUPS0009101,351219,Grants paid to other Government Departments
Department for Education,DEPARTMENT FOR EDUCATION,03/09/2020,Grants expenditure,TEACHING WORKFORCE TOTAL,UNIVERSITY OF CHESTER,CUPS0009102,382908,Grants paid to other Government Departments
Department for Education,DEPARTMENT FOR EDUCATION,03/09/2020,Grants expenditure,TEACHING WORKFORCE TOTAL,EDGE HILL UNIVERSITY,CUPS0009103,350319,Grants paid to other Government Departments
Department for Education,DEPARTMENT FOR EDUCATION,03/09/2020,Grants expenditure,TEACHING WORKFORCE TOTAL,LIVERPOOL HOPE UNIVERSITY,CUPS0009104,333310.5,Grants paid to other Government Departments
Department for Education,DEPARTMENT FOR EDUCATION,03/09/2020,Grants expenditure,TEACHING WORKFORCE TOTAL,LONDON METRO UNIVERSITY,CUPS0009105,154963.5,Grants paid to other Government Departments
Department for Education,DEPARTMENT FOR EDUCATION,03/09/2020,Grants expenditure,TEACHING WORKFORCE TOTAL,LOUGHBOROUGH UNIVERSITY,CUPS0009106,43678.5,Grants paid to other Government Departments
Department for Education,DEPARTMENT FOR EDUCATION,03/09/2020,Grants expenditure,TEACHING WORKFORCE TOTAL,NEWMAN COLLEGE,CUPS0009107,164322,Grants paid to other Government Departments
Department for Education,DEPARTMENT FOR EDUCATION,03/09/2020,Grants expenditure,TEACHING WORKFORCE TOTAL,ST MARYS UNIVERSITY COLLEGE,CUPS0009108,374739,Grants paid to other Government Departments
Department for Education,DEPARTMENT FOR EDUCATION,03/09/2020,Grants expenditure,TEACHING WORKFORCE TOTAL,STAFFORDSHIRE UNIVERSITY,CUPS0009109,75276,Grants paid to other Government Departments
Department for Education,DEPARTMENT FOR EDUCATION,03/09/2020,Grants expenditure,TEACHING WORKFORCE TOTAL,LEEDS TRINITY UNIVERSITY COLLEGE,CUPS0009110,288787.5,Grants paid to other Government Departments
Department for Education,DEPARTMENT FOR EDUCATION,03/09/2020,Grants expenditure,TEACHING WORKFORCE TOTAL,UNIVERSITY OF WORCESTER,CUPS0009111,271881,Grants paid to other Government Departments
Department for Education,DEPARTMENT FOR EDUCATION,03/09/2020,Grants expenditure,TEACHING WORKFORCE TOTAL,UNIVERSITY OF BIRMINGHAM,CUPS0009112,322983,Grants paid to other Government Departments
Department for Education,DEPARTMENT FOR EDUCATION,03/09/2020,Grants expenditure,TEACHING WORKFORCE TOTAL,UNIVERSITY OF BRIGHTON,CUPS0009113,299488.5,Grants paid to other Government Departments
Department for Education,DEPARTMENT FOR EDUCATION,03/09/2020,Grants expenditure,TEACHING WORKFORCE TOTAL,UNIVERSITY OF CAMBRIDGE,CUPS0009114,304776,Grants paid to other Government Departments
Department for Education,DEPARTMENT FOR EDUCATION,03/09/2020,Grants expenditure,TEACHING WORKFORCE TOTAL,Birmingham City University,CUPS0009115,426870,Grants paid to other Government Departments
Department for Education,DEPARTMENT FOR EDUCATION,03/09/2020,Grants expenditure,TEACHING WORKFORCE TOTAL,UNIVERSITY OF DERBY,CUPS0009116,121405.5,Grants paid to other Government Departments
Department for Education,DEPARTMENT FOR EDUCATION,03/09/2020,Grants expenditure,TEACHING WORKFORCE TOTAL,UNIVERSITY OF DURHAM,CUPS0009117,208054.5,Grants paid to other Government Departments
Department for Education,DEPARTMENT FOR EDUCATION,03/09/2020,Grants expenditure,TEACHING WORKFORCE TOTAL,University of Southampton,CUPS0009118,230647.5,Grants paid to other Government Departments
Department for Education,DEPARTMENT FOR EDUCATION,03/09/2020,Grants expenditure,TEACHING WORKFORCE TOTAL,UNIVERSITY OF THE WEST OF ENGLAND BRISTOL,CUPS0009119,193239,Grants paid to other Government Departments
Department for Education,DEPARTMENT FOR EDUCATION,03/09/2020,Grants expenditure,TEACHING WORKFORCE TOTAL,UCL INSTITUTE OF EDUCATION,CUPS0009120,895839,Grants paid to other Government Departments
Department for Education,DEPARTMENT FOR EDUCATION,03/09/2020,Grants expenditure,TEACHING WORKFORCE TOTAL,Compass Education Trust Ltd,CUPS0009121,51637.5,Grants paid to other Government Departments
Department for Education,DEPARTMENT FOR EDUCATION,03/09/2020,Grants expenditure,TEACHING WORKFORCE TOTAL,CORNWALL SCITT,CUPS0009122,79636.5,Grants paid to other Government Departments
Department for Education,DEPARTMENT FOR EDUCATION,03/09/2020,Grants expenditure,TEACHING WORKFORCE TOTAL,GRAND UNION TRAINING PARTNERSHIP,CUPS0009124,51943.5,Grants paid to other Government Departments
Department for Education,DEPARTMENT FOR EDUCATION,03/09/2020,Grants expenditure,TEACHING WORKFORCE TOTAL,NORTH BEDS SCITT CONSORTIUM,CUPS0009125,49342.5,Grants paid to other Government Departments
Department for Education,DEPARTMENT FOR EDUCATION,03/09/2020,Grants expenditure,TEACHING WORKFORCE TOTAL,NORTHAMPTON TEACHER TRAINING,CUPS0009126,25933.5,Grants paid to other Government Departments
Department for Education,DEPARTMENT FOR EDUCATION,03/09/2020,Grants expenditure,TEACHING WORKFORCE TOTAL,PILGRIM SCITT,CUPS0009127,30906,Grants paid to other Government Departments
Department for Education,DEPARTMENT FOR EDUCATION,03/09/2020,Grants expenditure,TEACHING WORKFORCE TOTAL,SUFFOLK COUNTY COUNCIL#DCSF,CUPS0009128,77341.5,Grants paid to other Government Departments
Department for Education,DEPARTMENT FOR EDUCATION,03/09/2020,Grants expenditure,TEACHING WORKFORCE TOTAL,TITAN PARTNERSHIP LTD,CUPS0009129,38581.5,Grants paid to other Government Departments
Department for Education,DEPARTMENT FOR EDUCATION,03/09/2020,Grants expenditure,TEACHING WORKFORCE TOTAL,BRADFORD COLLEGE,CUPS0009130,90193.5,Grants paid to other Government Departments
Department for Education,DEPARTMENT FOR EDUCATION,03/09/2020,Grants expenditure,TEACHING WORKFORCE TOTAL,LEEDS CITY COUNCIL#DCSF,CUPS0009131,55309.5,Grants paid to other Government Departments
Department for Education,DEPARTMENT FOR EDUCATION,03/09/2020,Grants expenditure,TEACHING WORKFORCE TOTAL,The Kemnal Academies Trust,CUPS0009132,63954,Grants paid to other Government Departments
Department for Education,DEPARTMENT FOR EDUCATION,03/09/2020,Grants expenditure,TEACHING WORKFORCE TOTAL,GEORGE ABBOT ACADEMY,CUPS0009133,49419,Grants paid to other Government Departments
Department for Education,DEPARTMENT FOR EDUCATION,03/09/2020,Grants expenditure,TEACHING WORKFORCE TOTAL,CARMEL TEACHER TRAINING PARTNERSHIP,CUPS0009134,71680.5,Grants paid to other Government Departments
Department for Education,DEPARTMENT FOR EDUCATION,03/09/2020,Grants expenditure,TEACHING WORKFORCE TOTAL,Thamesmead School,CUPS0009137,34425,Grants paid to other Government Departments
Department for Education,DEPARTMENT FOR EDUCATION,03/09/2020,Grants expenditure,TEACHING WORKFORCE TOTAL,KING EDWARD VI ACADEMY TRUST BIRMINGHAM,CUPS0009139,43987.5,Grants paid to other Government Departments
Department for Education,DEPARTMENT FOR EDUCATION,03/09/2020,Grants expenditure,TEACHING WORKFORCE TOTAL,ESSEX COUNTY COUNCIL,CUPS0009140,50337,Grants paid to other Government Departments
Department for Education,DEPARTMENT FOR EDUCATION,03/09/2020,Grants expenditure,TEACHING WORKFORCE TOTAL,GEORGE SPENCER TRAINING SCHOOL,CUPS0009141,32359.5,Grants paid to other Government Departments
Department for Education,DEPARTMENT FOR EDUCATION,03/09/2020,Grants expenditure,TEACHING WORKFORCE TOTAL,THE CAMBRIDGE PARTNERSHIP,CUPS0009142,59058,Grants paid to other Government Departments
Department for Education,DEPARTMENT FOR EDUCATION,03/09/2020,Grants expenditure,TEACHING WORKFORCE TOTAL,STOCKTON ON TEES BOROUGH COUNCIL,CUPS0009143,32691,Grants paid to other Government Departments
Department for Education,DEPARTMENT FOR EDUCATION,03/09/2020,Grants expenditure,TEACHING WORKFORCE TOTAL,St Joseph's College,CUPS0009144,31441.5,Grants paid to other Government Departments
Department for Education,DEPARTMENT FOR EDUCATION,03/09/2020,Grants expenditure,TEACHING WORKFORCE TOTAL,SHOTTON HALL SCITT,CUPS0009145,96619.5,Grants paid to other Government Departments
Department for Education,DEPARTMENT FOR EDUCATION,03/09/2020,Grants expenditure,TEACHING WORKFORCE TOTAL,THE KIRKLEES PARTNERSHIP,CUPS0009146,31671,Grants paid to other Government Departments
Department for Education,DEPARTMENT FOR EDUCATION,03/09/2020,Grants expenditure,TEACHING WORKFORCE TOTAL,CFBT THE DEEPINGS SCITT,CUPS0009147,28917,Grants paid to other Government Departments
Department for Education,DEPARTMENT FOR EDUCATION,03/09/2020,Grants expenditure,TEACHING WORKFORCE TOTAL,EAST MIDLANDS TEACHER TRAINING PARTNERSHIP,CUPS0009148,30447,Grants paid to other Government Departments
Department for Education,DEPARTMENT FOR EDUCATION,03/09/2020,Grants expenditure,TEACHING WORKFORCE TOTAL,Tarleton Academy,CUPS0009150,47736,Grants paid to other Government Departments
Department for Education,DEPARTMENT FOR EDUCATION,03/09/2020,Grants expenditure,TEACHING WORKFORCE TOTAL,Royal Latin School,CUPS0009151,42381,Grants paid to other Government Departments
Department for Education,DEPARTMENT FOR EDUCATION,03/09/2020,Grants expenditure,TEACHING WORKFORCE TOTAL,HARRIS CITY ACADEMY,CUPS0009152,149789,Grants paid to other Government Departments
Department for Education,DEPARTMENT FOR EDUCATION,03/09/2020,Grants expenditure,TEACHING WORKFORCE TOTAL,Wildern School,CUPS0009153,40851,Grants paid to other Government Departments
Department for Education,DEPARTMENT FOR EDUCATION,03/09/2020,Grants expenditure,TEACHING WORKFORCE TOTAL,Pimlico Academy,CUPS0009154,34119,Grants paid to other Government Departments
Department for Education,DEPARTMENT FOR EDUCATION,03/09/2020,Grants expenditure,TEACHING WORKFORCE TOTAL,ST GEORGES ACADEMY SCITT,CUPS0009156,32436,Grants paid to other Government Departments
Department for Education,DEPARTMENT FOR EDUCATION,03/09/2020,Grants expenditure,TEACHING WORKFORCE TOTAL,ASHTON-ON-MERSEY SCHOOL,CUPS0009157,35572.5,Grants paid to other Government Departments
Department for Education,DEPARTMENT FOR EDUCATION,03/09/2020,Grants expenditure,TEACHING WORKFORCE TOTAL,The Compton School,CUPS0009158,29070,Grants paid to other Government Departments
Department for Education,DEPARTMENT FOR EDUCATION,03/09/2020,Grants expenditure,TEACHING WORKFORCE TOTAL,The Bluecoat Academy,CUPS0009159,43758,Grants paid to other Government Departments
Department for Education,DEPARTMENT FOR EDUCATION,03/09/2020,Grants expenditure,TEACHING WORKFORCE TOTAL,Notre Dame High School,CUPS0009160,68391,Grants paid to other Government Departments
Department for Education,DEPARTMENT FOR EDUCATION,03/09/2020,Grants expenditure,TEACHING WORKFORCE TOTAL,RIPLEY ST THOMAS CE HIGH SCHOOL,CUPS0009161,44140.5,Grants paid to other Government Departments
Department for Education,DEPARTMENT FOR EDUCATION,03/09/2020,Grants expenditure,TEACHING WORKFORCE TOTAL,THE GREATER MANCHESTER BRIGHT FUTURES TRUST,CUPS0009162,42916.5,Grants paid to other Government Departments
Department for Education,DEPARTMENT FOR EDUCATION,03/09/2020,Grants expenditure,TEACHING WORKFORCE TOTAL,LANDAU FORTE COLLEGE DERBY SCITT,CUPS0009163,38250,Grants paid to other Government Departments
Department for Education,DEPARTMENT FOR EDUCATION,03/09/2020,Grants expenditure,TEACHING WORKFORCE TOTAL,SUTTON SCITT,CUPS0009164,75276,Grants paid to other Government Departments
Department for Education,DEPARTMENT FOR EDUCATION,03/09/2020,Grants expenditure,TEACHING WORKFORCE TOTAL,THE OAKS SCITT,CUPS0009165,96084,Grants paid to other Government Departments
Department for Education,DEPARTMENT FOR EDUCATION,03/09/2020,Grants expenditure,TEACHING WORKFORCE TOTAL,ROYAL WOOTTON BASSETT ACADEMY,CUPS0009166,25551,Grants paid to other Government Departments
Department for Education,DEPARTMENT FOR EDUCATION,03/09/2020,Grants expenditure,TEACHING WORKFORCE TOTAL,Cheadle Hulme High School,CUPS0009168,48348,Grants paid to other Government Departments
Department for Education,DEPARTMENT FOR EDUCATION,03/09/2020,Grants expenditure,TEACHING WORKFORCE TOTAL,FYLDE COAST TEACHING SCHOOL,CUPS0009169,37408.5,Grants paid to other Government Departments
Department for Education,DEPARTMENT FOR EDUCATION,03/09/2020,Grants expenditure,TEACHING WORKFORCE TOTAL,NOTTINGHAMSHIRE TORCH SCITT,CUPS0009170,59440.5,Grants paid to other Government Departments
Department for Education,DEPARTMENT FOR EDUCATION,03/09/2020,Grants expenditure,TEACHING WORKFORCE TOTAL,AMP SCITT,CUPS0009171,76551,Grants paid to other Government Departments
Department for Education,DEPARTMENT FOR EDUCATION,03/09/2020,Grants expenditure,TEACHING WORKFORCE TOTAL,Paddington Academy,CUPS0009172,112761,Grants paid to other Government Departments
Department for Education,DEPARTMENT FOR EDUCATION,03/09/2020,Grants expenditure,TEACHING WORKFORCE TOTAL,CHESHIRE EAST SCITT,CUPS0009174,42381,Grants paid to other Government Departments
Department for Education,DEPARTMENT FOR EDUCATION,03/09/2020,Grants expenditure,TEACHING WORKFORCE TOTAL,HULL SCITT,CUPS0009175,33966,Grants paid to other Government Departments
Department for Education,DEPARTMENT FOR EDUCATION,03/09/2020,Grants expenditure,TEACHING WORKFORCE TOTAL,ASTRA SCITT,CUPS0009177,69385.5,Grants paid to other Government Departments
Department for Education,DEPARTMENT FOR EDUCATION,03/09/2020,Grants expenditure,TEACHING WORKFORCE TOTAL,BARR BEACON SCITT,CUPS0009179,50413.5,Grants paid to other Government Departments
Department for Education,DEPARTMENT FOR EDUCATION,03/09/2020,Grants expenditure,TEACHING WORKFORCE TOTAL,LAMPTON LWA SCITT,CUPS0009180,42151.5,Grants paid to other Government Departments
Department for Education,DEPARTMENT FOR EDUCATION,03/09/2020,Grants expenditure,TEACHING WORKFORCE TOTAL,GLYN SURREY SCITT,CUPS0009182,47124,Grants paid to other Government Departments
Department for Education,DEPARTMENT FOR EDUCATION,03/09/2020,Grants expenditure,TEACHING WORKFORCE TOTAL,HILLINGDON SCITT,CUPS0009183,36337.5,Grants paid to other Government Departments
Department for Education,DEPARTMENT FOR EDUCATION,03/09/2020,Grants expenditure,TEACHING WORKFORCE TOTAL,TEACH SOUTHEAST,CUPS0009184,89658,Grants paid to other Government Departments
Department for Education,DEPARTMENT FOR EDUCATION,03/09/2020,Grants expenditure,TEACHING WORKFORCE TOTAL,MANCHESTER NEXUS SCITT,CUPS0009185,49801.5,Grants paid to other Government Departments
Department for Education,DEPARTMENT FOR EDUCATION,03/09/2020,Grants expenditure,TEACHING WORKFORCE TOTAL,Prince Henry's High school,CUPS0009186,28458,Grants paid to other Government Departments
Department for Education,DEPARTMENT FOR EDUCATION,03/09/2020,Grants expenditure,TEACHING WORKFORCE TOTAL,YORKSHIRE WOLDS TEACHER TRAINING,CUPS0009187,47812.5,Grants paid to other Government Departments
Department for Education,DEPARTMENT FOR EDUCATION,03/09/2020,Grants expenditure,TEACHING WORKFORCE TOTAL,TEACH KENT & SUSSEX,CUPS0009189,46741.5,Grants paid to other Government Departments
Department for Education,DEPARTMENT FOR EDUCATION,03/09/2020,Grants expenditure,TEACHING WORKFORCE TOTAL,THE NATIONAL MODERN LANGUAGES SCITT,CUPS0009190,119340,Grants paid to other Government Departments
Department for Education,DEPARTMENT FOR EDUCATION,03/09/2020,Grants expenditure,TEACHING WORKFORCE TOTAL,THE THETFORD ACADEMY,CUPS0009191,32359.5,Grants paid to other Government Departments
Department for Education,DEPARTMENT FOR EDUCATION,03/09/2020,Grants expenditure,TEACHING WORKFORCE TOTAL,Wycombe High School,CUPS0009192,113373,Grants paid to other Government Departments
Department for Education,DEPARTMENT FOR EDUCATION,03/09/2020,Grants expenditure,TEACHING WORKFORCE TOTAL,ALBAN FEDERATION,CUPS0009262,43069.5,Grants paid to other Government Departments
Department for Education,DEPARTMENT FOR EDUCATION,03/09/2020,Grants expenditure,TEACHING WORKFORCE TOTAL,Buile Hill Visual Arts College,CUPS0009263,30829.5,Grants paid to other Government Departments
Department for Education,DEPARTMENT FOR EDUCATION,03/09/2020,Grants expenditure,TEACHING WORKFORCE TOTAL,COVENTRY UNIVERSITY,CUPS0009264,114903,Grants paid to other Government Departments
Department for Education,DEPARTMENT FOR EDUCATION,03/09/2020,Grants expenditure,TEACHING WORKFORCE TOTAL,ST GEORGE'S CATHOLIC SCHOOL,CUPS0009341,25200,Grants paid to other Government Departments
Department for Education,DEPARTMENT FOR EDUCATION,03/09/2020,Grants expenditure,TEACHING WORKFORCE TOTAL,South Farnham School ,CUPS0009345,39690,Grants paid to other Government Departments
Department for Education,DEPARTMENT FOR EDUCATION,03/09/2020,Grants expenditure,TEACHING WORKFORCE TOTAL,Harris Primary Academy Crystal Palace ,CUPS0009349,70020,Grants paid to other Government Departments
Department for Education,DEPARTMENT FOR EDUCATION,03/09/2020,Grants expenditure,TEACHING WORKFORCE TOTAL,St Joseph's Catholic Primary School,CUPS0009386,32400,Grants paid to other Government Departments
Department for Education,DEPARTMENT FOR EDUCATION,03/09/2020,Grants expenditure,TEACHING WORKFORCE TOTAL,Springwood High School,CUPS0009449,27377.5,Grants paid to other Government Departments
Department for Education,DEPARTMENT FOR EDUCATION,03/09/2020,Grants expenditure,TEACHING WORKFORCE TOTAL,The Cherwell School ,CUPS0009480,34920,Grants paid to other Government Departments
Department for Education,DEPARTMENT FOR EDUCATION,03/09/2020,Grants expenditure,TEACHING WORKFORCE TOTAL,ARK Academy ,CUPS0009504,57060,Grants paid to other Government Departments
Department for Education,DEPARTMENT FOR EDUCATION,03/09/2020,Grants expenditure,TEACHING WORKFORCE TOTAL,Glyn School,CUPS0009518,36000,Grants paid to other Government Departments
Department for Education,DEPARTMENT FOR EDUCATION,03/09/2020,Grants expenditure,TEACHING WORKFORCE TOTAL,ENFIELD LONDON BOROUGH COUNCIL,CUPS0009519,25920,Grants paid to other Government Departments
Department for Education,DEPARTMENT FOR EDUCATION,03/09/2020,Grants expenditure,TEACHING WORKFORCE TOTAL,Paddington Academy,CUPS0009572,87120,Grants paid to other Government Departments
Department for Education,DEPARTMENT FOR EDUCATION,16/09/2020,IS/IT,TEACHING WORKFORCE TOTAL,FARSIGHT CONSULTING LIMITED,CORE-PINV-007911,48300,Software Development
Department for Education,DEPARTMENT FOR EDUCATION,11/09/2020,IS/IT,Academies ARDG Programmes,FUTUREGOV LTD,CORE-PINV-007186,24000,Software Development
Department for Education,DEPARTMENT FOR EDUCATION,16/09/2020,Grants expenditure,CURRICULUM POLICY DIVISION,COMPUTACENTER PLC,CORE-PINV-007890,274488,Capital grants paid to a private sector organisation
Department for Education,DEPARTMENT FOR EDUCATION,16/09/2020,Grants expenditure,CURRICULUM POLICY DIVISION,COMPUTACENTER PLC,CORE-PINV-007892,236000,Capital grants paid to a private sector organisation
Department for Education,DEPARTMENT FOR EDUCATION,30/09/2020,Grants expenditure,CURRICULUM POLICY DIVISION,COMPUTACENTER PLC,CORE-PINV-008296,6763914.86,Capital grants paid to a private sector organisation
Department for Education,DEPARTMENT FOR EDUCATION,30/09/2020,Grants expenditure,CURRICULUM POLICY DIVISION,COMPUTACENTER PLC,CORE-PINV-008474,758495.48,Capital grants paid to a private sector organisation
Department for Education,DEPARTMENT FOR EDUCATION,30/09/2020,Grants expenditure,CURRICULUM POLICY DIVISION,COMPUTACENTER PLC,CORE-PINV-008475,158010.12,Capital grants paid to a private sector organisation
Department for Education,DEPARTMENT FOR EDUCATION,28/09/2020,Other Goods & Services,TEACHING WORKFORCE TOTAL,FARSIGHT CONSULTING LIMITED,CORE-PINV-008305,24000,Research and Development
Department for Education,DEPARTMENT FOR EDUCATION,03/09/2020,Other Goods & Services,ASSESSMENT AND CURRICULUM AND GENERAL QUALIFICATIONS,TEACH FIRST,CORE-PINV-006859,942213,Other Professional Services
Department for Education,DEPARTMENT FOR EDUCATION,30/09/2020,Other Goods & Services,ASSESSMENT AND CURRICULUM AND GENERAL QUALIFICATIONS,TEACH FIRST,CORE-PINV-008156,942213,Other Professional Services
Department for Education,DEPARTMENT FOR EDUCATION,23/09/2020,Other Goods & Services,STEM IN SCHOOLS,SWIFT STRATEGIES LTD,CORE-PINV-008155,37440,Other Professional Services
Department for Education,DEPARTMENT FOR EDUCATION,28/09/2020,Other Goods & Services,STEM IN SCHOOLS,ADROC LTD,CORE-PINV-008297,25056,Other Professional Services
Department for Education,DEPARTMENT FOR EDUCATION,21/09/2020,Grants expenditure,CURRICULUM STRATEGY DIVISION,The Reach Foundation,CUPS0010474,618466.26,Grants to educational establishments or not for profit organisations including other businesses
Department for Education,DEPARTMENT FOR EDUCATION,11/09/2020,Grants expenditure,DEDICATED SCHOOL AND COLLEGE TRANSPORT,BEDFORD BOROUGH COUNCIL,CUPS0010240,137192,Grants to local authorities
Department for Education,DEPARTMENT FOR EDUCATION,11/09/2020,Grants expenditure,DEDICATED SCHOOL AND COLLEGE TRANSPORT,Blackburn with Darwen Borough Council,CUPS0010241,133408,Grants to local authorities
Department for Education,DEPARTMENT FOR EDUCATION,11/09/2020,Grants expenditure,DEDICATED SCHOOL AND COLLEGE TRANSPORT,BLACKPOOL BOROUGH COUNCIL,CUPS0010242,107580,Grants to local authorities
Department for Education,DEPARTMENT FOR EDUCATION,11/09/2020,Grants expenditure,DEDICATED SCHOOL AND COLLEGE TRANSPORT,"Bournemouth, Christchurch and Poole Council",CUPS0010243,300036,Grants to local authorities
Department for Education,DEPARTMENT FOR EDUCATION,11/09/2020,Grants expenditure,DEDICATED SCHOOL AND COLLEGE TRANSPORT,BRACKNELL FOREST BOROUGH COUNCIL,CUPS0010244,84480,Grants to local authorities
Department for Education,DEPARTMENT FOR EDUCATION,11/09/2020,Grants expenditure,DEDICATED SCHOOL AND COLLEGE TRANSPORT,BRIGHTON & HOVE CITY COUNCIL,CUPS0010245,158312,Grants to local authorities
Department for Education,DEPARTMENT FOR EDUCATION,11/09/2020,Grants expenditure,DEDICATED SCHOOL AND COLLEGE TRANSPORT,BUCKINGHAMSHIRE COUNTY COUNCIL,CUPS0010246,566368,Grants to local authorities
Department for Education,DEPARTMENT FOR EDUCATION,11/09/2020,Grants expenditure,DEDICATED SCHOOL AND COLLEGE TRANSPORT,CAMBRIDGESHIRE & PETERBOROUGH COMBINED AUTHORITY,CUPS0010247,678172,Grants to local authorities
Department for Education,DEPARTMENT FOR EDUCATION,11/09/2020,Grants expenditure,DEDICATED SCHOOL AND COLLEGE TRANSPORT,CENTRAL BEDFORDSHIRE COUNCIL,CUPS0010248,246488,Grants to local authorities
Department for Education,DEPARTMENT FOR EDUCATION,11/09/2020,Grants expenditure,DEDICATED SCHOOL AND COLLEGE TRANSPORT,CHESHIRE EAST BOROUGH COUNCIL,CUPS0010249,294536,Grants to local authorities
Department for Education,DEPARTMENT FOR EDUCATION,11/09/2020,Grants expenditure,DEDICATED SCHOOL AND COLLEGE TRANSPORT,CHESHIRE WEST & CHESTER COUNCIL,CUPS0010250,293832,Grants to local authorities
Department for Education,DEPARTMENT FOR EDUCATION,11/09/2020,Grants expenditure,DEDICATED SCHOOL AND COLLEGE TRANSPORT,CITY OF YORK COUNCIL,CUPS0010251,119416,Grants to local authorities
Department for Education,DEPARTMENT FOR EDUCATION,11/09/2020,Grants expenditure,DEDICATED SCHOOL AND COLLEGE TRANSPORT,CORNWALL COUNCIL,CUPS0010252,511412,Grants to local authorities
Department for Education,DEPARTMENT FOR EDUCATION,11/09/2020,Grants expenditure,DEDICATED SCHOOL AND COLLEGE TRANSPORT,HEREFORDSHIRE COUNCIL,CUPS0010253,175340,Grants to local authorities
Department for Education,DEPARTMENT FOR EDUCATION,11/09/2020,Grants expenditure,DEDICATED SCHOOL AND COLLEGE TRANSPORT,CUMBRIA COUNTY COUNCIL,CUPS0010254,419936,Grants to local authorities
Department for Education,DEPARTMENT FOR EDUCATION,11/09/2020,Grants expenditure,DEDICATED SCHOOL AND COLLEGE TRANSPORT,DERBY CITY COUNCIL,CUPS0010255,206140,Grants to local authorities
Department for Education,DEPARTMENT FOR EDUCATION,11/09/2020,Grants expenditure,DEDICATED SCHOOL AND COLLEGE TRANSPORT,DERBYSHIRE COUNTY COUNCIL,CUPS0010256,622732,Grants to local authorities
Department for Education,DEPARTMENT FOR EDUCATION,11/09/2020,Grants expenditure,DEDICATED SCHOOL AND COLLEGE TRANSPORT,DEVON COUNTY COUNCIL,CUPS0010257,676104,Grants to local authorities
Department for Education,DEPARTMENT FOR EDUCATION,11/09/2020,Grants expenditure,DEDICATED SCHOOL AND COLLEGE TRANSPORT,DORSET COUNCIL,CUPS0010258,333036,Grants to local authorities
Department for Education,DEPARTMENT FOR EDUCATION,11/09/2020,Grants expenditure,DEDICATED SCHOOL AND COLLEGE TRANSPORT,EAST RIDING OF YORKSHIRE COUNCIL,CUPS0010259,270116,Grants to local authorities
Department for Education,DEPARTMENT FOR EDUCATION,11/09/2020,Grants expenditure,DEDICATED SCHOOL AND COLLEGE TRANSPORT,EAST SUSSEX COUNTY COUNCIL,CUPS0010260,464596,Grants to local authorities
Department for Education,DEPARTMENT FOR EDUCATION,11/09/2020,Grants expenditure,DEDICATED SCHOOL AND COLLEGE TRANSPORT,ESSEX COUNTY COUNCIL,CUPS0010261,1252988,Grants to local authorities
Department for Education,DEPARTMENT FOR EDUCATION,11/09/2020,Grants expenditure,DEDICATED SCHOOL AND COLLEGE TRANSPORT,GLOUCESTERSHIRE COUNTY COUNCIL,CUPS0010262,550132,Grants to local authorities
Department for Education,DEPARTMENT FOR EDUCATION,11/09/2020,Grants expenditure,DEDICATED SCHOOL AND COLLEGE TRANSPORT,GREATER MANCHESTER COMBINED AUTHORITY,CUPS0010263,2249016,Grants to local authorities
Department for Education,DEPARTMENT FOR EDUCATION,11/09/2020,Grants expenditure,DEDICATED SCHOOL AND COLLEGE TRANSPORT,HAMPSHIRE COUNTY COUNCIL,CUPS0010264,1091288,Grants to local authorities
Department for Education,DEPARTMENT FOR EDUCATION,11/09/2020,Grants expenditure,DEDICATED SCHOOL AND COLLEGE TRANSPORT,HERTFORDSHIRE COUNTY COUNCIL,CUPS0010265,951148,Grants to local authorities
Department for Education,DEPARTMENT FOR EDUCATION,11/09/2020,Grants expenditure,DEDICATED SCHOOL AND COLLEGE TRANSPORT,ISLE OF WIGHT COUNCIL,CUPS0010266,108768,Grants to local authorities
Department for Education,DEPARTMENT FOR EDUCATION,11/09/2020,Grants expenditure,DEDICATED SCHOOL AND COLLEGE TRANSPORT,KENT COUNTY COUNCIL,CUPS0010268,1542816,Grants to local authorities
Department for Education,DEPARTMENT FOR EDUCATION,11/09/2020,Grants expenditure,DEDICATED SCHOOL AND COLLEGE TRANSPORT,KINGSTON UPON HULL CITY COUNCIL,CUPS0010269,175912,Grants to local authorities
Department for Education,DEPARTMENT FOR EDUCATION,11/09/2020,Grants expenditure,DEDICATED SCHOOL AND COLLEGE TRANSPORT,LANCASHIRE COUNTY COUNCIL,CUPS0010270,1058816,Grants to local authorities
Department for Education,DEPARTMENT FOR EDUCATION,11/09/2020,Grants expenditure,DEDICATED SCHOOL AND COLLEGE TRANSPORT,LEICESTER CITY COUNCIL,CUPS0010271,284504,Grants to local authorities
Department for Education,DEPARTMENT FOR EDUCATION,11/09/2020,Grants expenditure,DEDICATED SCHOOL AND COLLEGE TRANSPORT,LEICESTERSHIRE COUNTY COUNCIL,CUPS0010272,541288,Grants to local authorities
Department for Education,DEPARTMENT FOR EDUCATION,11/09/2020,Grants expenditure,DEDICATED SCHOOL AND COLLEGE TRANSPORT,LINCOLNSHIRE COUNTY COUNCIL,CUPS0010273,720852,Grants to local authorities
Department for Education,DEPARTMENT FOR EDUCATION,11/09/2020,Grants expenditure,DEDICATED SCHOOL AND COLLEGE TRANSPORT,LIVERPOOL CITY REGION COMBINED AUTHORITY,CUPS0010274,1214620,Grants to local authorities
Department for Education,DEPARTMENT FOR EDUCATION,11/09/2020,Grants expenditure,DEDICATED SCHOOL AND COLLEGE TRANSPORT,LUTON BOROUGH COUNCIL,CUPS0010275,187044,Grants to local authorities
Department for Education,DEPARTMENT FOR EDUCATION,11/09/2020,Grants expenditure,DEDICATED SCHOOL AND COLLEGE TRANSPORT,MEDWAY COUNCIL,CUPS0010276,241824,Grants to local authorities
Department for Education,DEPARTMENT FOR EDUCATION,11/09/2020,Grants expenditure,DEDICATED SCHOOL AND COLLEGE TRANSPORT,MILTON KEYNES COUNCIL,CUPS0010277,245212,Grants to local authorities
Department for Education,DEPARTMENT FOR EDUCATION,11/09/2020,Grants expenditure,DEDICATED SCHOOL AND COLLEGE TRANSPORT,NORFOLK COUNTY COUNCIL,CUPS0010278,746988,Grants to local authorities
Department for Education,DEPARTMENT FOR EDUCATION,11/09/2020,Grants expenditure,DEDICATED SCHOOL AND COLLEGE TRANSPORT,North East Combined Authority,CUPS0010279,1512632,Grants to local authorities
Department for Education,DEPARTMENT FOR EDUCATION,11/09/2020,Grants expenditure,DEDICATED SCHOOL AND COLLEGE TRANSPORT,North East Lincolnshire Council,CUPS0010280,122012,Grants to local authorities
Department for Education,DEPARTMENT FOR EDUCATION,11/09/2020,Grants expenditure,DEDICATED SCHOOL AND COLLEGE TRANSPORT,NORTH LINCOLNSHIRE COUNCIL,CUPS0010281,122628,Grants to local authorities
Department for Education,DEPARTMENT FOR EDUCATION,11/09/2020,Grants expenditure,DEDICATED SCHOOL AND COLLEGE TRANSPORT,NORTH SOMERSET COUNCIL,CUPS0010282,165968,Grants to local authorities
Department for Education,DEPARTMENT FOR EDUCATION,11/09/2020,Grants expenditure,DEDICATED SCHOOL AND COLLEGE TRANSPORT,NORTH YORKSHIRE COUNTY COUNCIL,CUPS0010283,520432,Grants to local authorities
Department for Education,DEPARTMENT FOR EDUCATION,11/09/2020,Grants expenditure,DEDICATED SCHOOL AND COLLEGE TRANSPORT,NORTHAMPTONSHIRE COUNTY COUNCIL,CUPS0010284,680900,Grants to local authorities
Department for Education,DEPARTMENT FOR EDUCATION,11/09/2020,Grants expenditure,DEDICATED SCHOOL AND COLLEGE TRANSPORT,Nottingham City Council,CUPS0010285,213752,Grants to local authorities
Department for Education,DEPARTMENT FOR EDUCATION,11/09/2020,Grants expenditure,DEDICATED SCHOOL AND COLLEGE TRANSPORT,NOTTINGHAMSHIRE COUNTY COUNCIL,CUPS0010286,570064,Grants to local authorities
Department for Education,DEPARTMENT FOR EDUCATION,11/09/2020,Grants expenditure,DEDICATED SCHOOL AND COLLEGE TRANSPORT,Oxfordshire County Council,CUPS0010287,518980,Grants to local authorities
Department for Education,DEPARTMENT FOR EDUCATION,11/09/2020,Grants expenditure,DEDICATED SCHOOL AND COLLEGE TRANSPORT,PLYMOUTH CITY COUNCIL,CUPS0010288,190784,Grants to local authorities
Department for Education,DEPARTMENT FOR EDUCATION,11/09/2020,Grants expenditure,DEDICATED SCHOOL AND COLLEGE TRANSPORT,PORTSMOUTH CITY COUNCIL,CUPS0010289,96712,Grants to local authorities
Department for Education,DEPARTMENT FOR EDUCATION,11/09/2020,Grants expenditure,DEDICATED SCHOOL AND COLLEGE TRANSPORT,READING BOROUGH COUNCIL,CUPS0010290,116336,Grants to local authorities
Department for Education,DEPARTMENT FOR EDUCATION,11/09/2020,Grants expenditure,DEDICATED SCHOOL AND COLLEGE TRANSPORT,RUTLAND COUNTY COUNCIL,CUPS0010291,27764,Grants to local authorities
Department for Education,DEPARTMENT FOR EDUCATION,11/09/2020,Grants expenditure,DEDICATED SCHOOL AND COLLEGE TRANSPORT,SHEFFIELD CITY REGION COMBINED AUTHORITY,CUPS0010292,993256,Grants to local authorities
Department for Education,DEPARTMENT FOR EDUCATION,11/09/2020,Grants expenditure,DEDICATED SCHOOL AND COLLEGE TRANSPORT,SHROPSHIRE COUNCIL,CUPS0010293,259864,Grants to local authorities
Department for Education,DEPARTMENT FOR EDUCATION,11/09/2020,Grants expenditure,DEDICATED SCHOOL AND COLLEGE TRANSPORT,SLOUGH BOROUGH COUNCIL,CUPS0010294,153428,Grants to local authorities
Department for Education,DEPARTMENT FOR EDUCATION,11/09/2020,Grants expenditure,DEDICATED SCHOOL AND COLLEGE TRANSPORT,SOMERSET COUNTY COUNCIL,CUPS0010295,464860,Grants to local authorities
Department for Education,DEPARTMENT FOR EDUCATION,11/09/2020,Grants expenditure,DEDICATED SCHOOL AND COLLEGE TRANSPORT,SOUTHAMPTON CITY COUNCIL,CUPS0010296,151228,Grants to local authorities
Department for Education,DEPARTMENT FOR EDUCATION,11/09/2020,Grants expenditure,DEDICATED SCHOOL AND COLLEGE TRANSPORT,SOUTHEND ON SEA BOROUGH COUNCIL,CUPS0010297,123772,Grants to local authorities
Department for Education,DEPARTMENT FOR EDUCATION,11/09/2020,Grants expenditure,DEDICATED SCHOOL AND COLLEGE TRANSPORT,Staffordshire County Council,CUPS0010298,660352,Grants to local authorities
Department for Education,DEPARTMENT FOR EDUCATION,11/09/2020,Grants expenditure,DEDICATED SCHOOL AND COLLEGE TRANSPORT,STOKE ON TRENT CITY COUNCIL,CUPS0010299,211464,Grants to local authorities
Department for Education,DEPARTMENT FOR EDUCATION,11/09/2020,Grants expenditure,DEDICATED SCHOOL AND COLLEGE TRANSPORT,SUFFOLK COUNTY COUNCIL,CUPS0010300,624404,Grants to local authorities
Department for Education,DEPARTMENT FOR EDUCATION,11/09/2020,Grants expenditure,DEDICATED SCHOOL AND COLLEGE TRANSPORT,SURREY COUNTY COUNCIL,CUPS0010301,944592,Grants to local authorities
Department for Education,DEPARTMENT FOR EDUCATION,11/09/2020,Grants expenditure,DEDICATED SCHOOL AND COLLEGE TRANSPORT,SWINDON BOROUGH COUNCIL,CUPS0010302,183700,Grants to local authorities
Department for Education,DEPARTMENT FOR EDUCATION,11/09/2020,Grants expenditure,DEDICATED SCHOOL AND COLLEGE TRANSPORT,TEES VALLEY COMBINED AUTHORITY,CUPS0010303,517308,Grants to local authorities
Department for Education,DEPARTMENT FOR EDUCATION,11/09/2020,Grants expenditure,DEDICATED SCHOOL AND COLLEGE TRANSPORT,Telford and Wrekin Council,CUPS0010304,163416,Grants to local authorities
Department for Education,DEPARTMENT FOR EDUCATION,11/09/2020,Grants expenditure,DEDICATED SCHOOL AND COLLEGE TRANSPORT,WEST YORKSHIRE COMBINED AUTHORITY,CUPS0010305,1911932,Grants to local authorities
Department for Education,DEPARTMENT FOR EDUCATION,11/09/2020,Grants expenditure,DEDICATED SCHOOL AND COLLEGE TRANSPORT,THURROCK BOROUGH COUNCIL,CUPS0010306,168168,Grants to local authorities
Department for Education,DEPARTMENT FOR EDUCATION,11/09/2020,Grants expenditure,DEDICATED SCHOOL AND COLLEGE TRANSPORT,TORBAY COUNCIL,CUPS0010307,100320,Grants to local authorities
Department for Education,DEPARTMENT FOR EDUCATION,11/09/2020,Grants expenditure,DEDICATED SCHOOL AND COLLEGE TRANSPORT,Transport for London Surface Transport,CUPS0010308,5878576,Grants to local authorities
Department for Education,DEPARTMENT FOR EDUCATION,11/09/2020,Grants expenditure,DEDICATED SCHOOL AND COLLEGE TRANSPORT,WARRINGTON BOROUGH COUNCIL,CUPS0010309,163636,Grants to local authorities
Department for Education,DEPARTMENT FOR EDUCATION,11/09/2020,Grants expenditure,DEDICATED SCHOOL AND COLLEGE TRANSPORT,WARWICKSHIRE COUNTY COUNCIL,CUPS0010310,482328,Grants to local authorities
Department for Education,DEPARTMENT FOR EDUCATION,11/09/2020,Grants expenditure,DEDICATED SCHOOL AND COLLEGE TRANSPORT,WEST BERKSHIRE COUNCIL,CUPS0010311,125576,Grants to local authorities
Department for Education,DEPARTMENT FOR EDUCATION,11/09/2020,Grants expenditure,DEDICATED SCHOOL AND COLLEGE TRANSPORT,West Midlands Combined Authority,CUPS0010312,2418592,Grants to local authorities
Department for Education,DEPARTMENT FOR EDUCATION,11/09/2020,Grants expenditure,DEDICATED SCHOOL AND COLLEGE TRANSPORT,West of England Combined Authority,CUPS0010313,612480,Grants to local authorities
Department for Education,DEPARTMENT FOR EDUCATION,11/09/2020,Grants expenditure,DEDICATED SCHOOL AND COLLEGE TRANSPORT,WEST SUSSEX COUNTY COUNCIL,CUPS0010314,648868,Grants to local authorities
Department for Education,DEPARTMENT FOR EDUCATION,11/09/2020,Grants expenditure,DEDICATED SCHOOL AND COLLEGE TRANSPORT,WILTSHIRE COUNTY COUNCIL,CUPS0010315,450076,Grants to local authorities
Department for Education,DEPARTMENT FOR EDUCATION,11/09/2020,Grants expenditure,DEDICATED SCHOOL AND COLLEGE TRANSPORT,ROYAL BOROUGH OF WINDSOR & MAIDENHEAD,CUPS0010316,116028,Grants to local authorities
Department for Education,DEPARTMENT FOR EDUCATION,11/09/2020,Grants expenditure,DEDICATED SCHOOL AND COLLEGE TRANSPORT,WOKINGHAM COUNCIL,CUPS0010317,145772,Grants to local authorities
Department for Education,DEPARTMENT FOR EDUCATION,11/09/2020,Grants expenditure,DEDICATED SCHOOL AND COLLEGE TRANSPORT,WORCESTERSHIRE COUNTY COUNCIL,CUPS0010318,503360,Grants to local authorities
Department for Education,DEPARTMENT FOR EDUCATION,02/09/2020,IS/IT,TECHNOLOGY DIRECTORATE TOTAL,Bae Systems Applied Intelligence Ltd,CORE-PINV-006865,57249.01,IS/IT Services - Systems Development
Department for Education,DEPARTMENT FOR EDUCATION,02/09/2020,Professional Services Consultancy and Contingent Labour,TECHNOLOGY DIRECTORATE TOTAL,QA CONSULTING SERVICES LTD,CORE-PINV-007120,43818,Costs related to temporary workers
Department for Education,DEPARTMENT FOR EDUCATION,07/09/2020,IS/IT,TECHNOLOGY DIRECTORATE TOTAL,SOL-TEC LIMITED,CORE-PINV-007380,37527.3,IS/IT Services - Systems Development
Department for Education,DEPARTMENT FOR EDUCATION,07/09/2020,IS/IT,TECHNOLOGY DIRECTORATE TOTAL,SOL-TEC LIMITED,CORE-PINV-007381,29542.09,IS/IT Services - Systems Development
Department for Education,DEPARTMENT FOR EDUCATION,07/09/2020,IS/IT,TECHNOLOGY DIRECTORATE TOTAL,SOL-TEC LIMITED,CORE-PINV-007382,54440.74,IS/IT Services - Systems Development
Department for Education,DEPARTMENT FOR EDUCATION,07/09/2020,IS/IT,TECHNOLOGY DIRECTORATE TOTAL,Nimbus Digital & Technology Innovations,CORE-PINV-007401,52715.88,IS/IT Services - Systems Development
Department for Education,DEPARTMENT FOR EDUCATION,21/09/2020,Consultancy,TECHNOLOGY DIRECTORATE TOTAL,Nimbus Digital & Technology Innovations,CORE-PINV-007404,113675,IS/IT Services - Consultancy
Department for Education,DEPARTMENT FOR EDUCATION,09/09/2020,IS/IT,TECHNOLOGY DIRECTORATE TOTAL,GMO GlobalSign Ltd,CORE-PINV-007525,83000,IS/IT Systems Operations
Department for Education,DEPARTMENT FOR EDUCATION,17/09/2020,IS/IT,TECHNOLOGY DIRECTORATE TOTAL,SOL-TEC LIMITED,CORE-PINV-007898,21390.68,IS/IT Services - Systems Development
Department for Education,DEPARTMENT FOR EDUCATION,23/09/2020,Professional Services Consultancy and Contingent Labour,TECHNOLOGY DIRECTORATE TOTAL,QA CONSULTING SERVICES LTD,CORE-PINV-007941,35778,Costs related to temporary workers
Department for Education,DEPARTMENT FOR EDUCATION,23/09/2020,IS/IT,TECHNOLOGY DIRECTORATE TOTAL,SOL-TEC LIMITED,CORE-PINV-008056,27367.08,IS/IT Services - Systems Development
Department for Education,DEPARTMENT FOR EDUCATION,25/09/2020,IS/IT,TECHNOLOGY DIRECTORATE TOTAL,Accenture PLC,CORE-PINV-008234,120000,IS/IT Systems Operations
Department for Education,DEPARTMENT FOR EDUCATION,10/09/2020,Professional Services Consultancy and Contingent Labour,TECHNOLOGY DIRECTORATE TOTAL,Methods Business and Digital Technology Ltd,CORE-PINV-007582,35853,Costs related to temporary workers
Department for Education,DEPARTMENT FOR EDUCATION,25/09/2020,Professional Services Consultancy and Contingent Labour,TECHNOLOGY DIRECTORATE TOTAL,Methods Business and Digital Technology Ltd,CORE-PINV-008136,25650,Costs related to temporary workers
Department for Education,DEPARTMENT FOR EDUCATION,16/09/2020,IS/IT,TECHNOLOGY DIRECTORATE TOTAL,Cadence Partnership LLP,CORE-PINV-006124,35786.4,IS/IT Systems Operations
Department for Education,DEPARTMENT FOR EDUCATION,15/09/2020,IS/IT,TECHNOLOGY DIRECTORATE TOTAL,NTT DATA UK LTD,CORE-PINV-007196,31918.8,IS/IT Services
Department for Education,DEPARTMENT FOR EDUCATION,22/09/2020,IS/IT,TECHNOLOGY DIRECTORATE TOTAL,Bytes Software Services Ltd,CORE-PINV-007220,127638.25,IS/IT Services - End user Hardware & Software
Department for Education,DEPARTMENT FOR EDUCATION,09/09/2020,Professional Services Consultancy and Contingent Labour,TECHNOLOGY DIRECTORATE TOTAL,Nimbus Digital & Technology Innovations,CORE-PINV-007402,35658,Costs related to temporary workers
Department for Education,DEPARTMENT FOR EDUCATION,08/09/2020,IS/IT,TECHNOLOGY DIRECTORATE TOTAL,CAPGEMINI UK PLC,CORE-PINV-007488,117600,IS/IT Services
Department for Education,DEPARTMENT FOR EDUCATION,15/09/2020,IS/IT,TECHNOLOGY DIRECTORATE TOTAL,SOFTWARE BOX LTD,CORE-PINV-007498,47223.26,IS/IT Services - End user Hardware & Software
Department for Education,DEPARTMENT FOR EDUCATION,22/09/2020,IS/IT,TECHNOLOGY DIRECTORATE TOTAL,Bytes Software Services Ltd,CORE-PINV-007882,84712.8,IS/IT Services - End user Hardware & Software
Department for Education,DEPARTMENT FOR EDUCATION,17/09/2020,IS/IT,TECHNOLOGY DIRECTORATE TOTAL,VODAFONE CORPORATE LTD,CORE-PINV-007920,9.12,Telecoms facilities and services - mobiles and pagers
Department for Education,DEPARTMENT FOR EDUCATION,17/09/2020,IS/IT,TECHNOLOGY DIRECTORATE TOTAL,VODAFONE CORPORATE LTD,CORE-PINV-007920,30738.1,Telecoms facilities and services - mobiles and pagers
Department for Education,DEPARTMENT FOR EDUCATION,29/09/2020,IS/IT,TECHNOLOGY DIRECTORATE TOTAL,BT GROUP PLC,CORE-PINV-007932,375467.89,Telecoms facilities and services
Department for Education,DEPARTMENT FOR EDUCATION,21/09/2020,IS/IT,TECHNOLOGY DIRECTORATE TOTAL,BT GLOBAL SERVICES,CORE-PINV-007979,100,Telecoms facilities and services
Department for Education,DEPARTMENT FOR EDUCATION,21/09/2020,IS/IT,TECHNOLOGY DIRECTORATE TOTAL,BT GLOBAL SERVICES,CORE-PINV-007979,28125.69,Telecoms facilities and services
Department for Education,DEPARTMENT FOR EDUCATION,30/09/2020,IS/IT,TECHNOLOGY DIRECTORATE TOTAL,Bae Systems Applied Intelligence Ltd,CORE-PINV-008154,24882,IS/IT Hardware
Department for Education,DEPARTMENT FOR EDUCATION,28/09/2020,IS/IT,TECHNOLOGY DIRECTORATE TOTAL,Bae Systems Applied Intelligence Ltd,CORE-PINV-008302,48257.22,IS/IT Systems Operations
Department for Education,DEPARTMENT FOR EDUCATION,30/09/2020,IS/IT,TECHNOLOGY DIRECTORATE TOTAL,VODAFONE CORPORATE LTD,CORE-PINV-008320,7.6,Telecoms facilities and services - mobiles and pagers
Department for Education,DEPARTMENT FOR EDUCATION,30/09/2020,IS/IT,TECHNOLOGY DIRECTORATE TOTAL,VODAFONE CORPORATE LTD,CORE-PINV-008320,28725.46,Telecoms facilities and services - mobiles and pagers
Department for Education,DEPARTMENT FOR EDUCATION,22/09/2020,IS/IT,TECHNOLOGY DIRECTORATE TOTAL,Methods Business and Digital Technology Ltd,CORE-PINV-007577,60350,IS/IT Systems Operations
Department for Education,DEPARTMENT FOR EDUCATION,17/09/2020,Professional Services Consultancy and Contingent Labour,TECHNOLOGY DIRECTORATE TOTAL,LA INTERNATIONAL,CORE-PINV-007929,31152,Costs related to temporary workers
Department for Education,DEPARTMENT FOR EDUCATION,22/09/2020,IS/IT,TECHNOLOGY DIRECTORATE TOTAL,Methods Business and Digital Technology Ltd,CORE-PINV-007951,80975,IS/IT Systems Operations
Department for Education,DEPARTMENT FOR EDUCATION,01/09/2020,Other Goods & Services,OPERATIONAL AND STRATEGIC FINANCE TOTAL,CABINET OFFICE RM SHARED SERVICES,CORE-PINV-007180,98617,Other Professional Services
Department for Education,DEPARTMENT FOR EDUCATION,03/09/2020,Other Goods & Services,OPERATIONAL AND STRATEGIC FINANCE TOTAL,CABINET OFFICE RM SHARED SERVICES,CORE-PINV-007227,1365979.38,Other Professional Services
Department for Education,DEPARTMENT FOR EDUCATION,08/09/2020,Staff - Other,OPERATIONAL AND STRATEGIC FINANCE TOTAL,Cabinet Office,CORE-PINV-007460,46000,Recruitment costs
Department for Education,DEPARTMENT FOR EDUCATION,09/09/2020,IS/IT,OPERATIONAL AND STRATEGIC FINANCE TOTAL,BRAVOSOLUTION UK LTD,CORE-PINV-007557,126900,IS/IT Software
Department for Education,DEPARTMENT FOR EDUCATION,14/09/2020,Other Goods & Services,OPERATIONAL AND STRATEGIC FINANCE TOTAL,TOPMARK CLAIMS MANAGEMENT LTD,CORE-PINV-007685,49643.16,Other Professional Services
Department for Education,DEPARTMENT FOR EDUCATION,25/09/2020,Other Goods & Services,OPERATIONAL AND STRATEGIC FINANCE TOTAL,WILLIS GROUP,CORE-PINV-008259,79797.6,Other Professional Services
Department for Education,DEPARTMENT FOR EDUCATION,30/09/2020,Professional Services,OPERATIONAL AND STRATEGIC FINANCE TOTAL,DELOITTE LLP,CORE-PINV-008011,39797,"Advisory services including fees, travel and expenses"
Department for Education,DEPARTMENT FOR EDUCATION,30/09/2020,Professional Services,OPERATIONAL AND STRATEGIC FINANCE TOTAL,DELOITTE LLP,CORE-PINV-008013,85387,"Advisory services including fees, travel and expenses"
Department for Education,DEPARTMENT FOR EDUCATION,08/09/2020,IS/IT,OPERATIONAL AND STRATEGIC FINANCE TOTAL,Agile Management Solutions Limited,CORE-PINV-007441,32027,IS/IT Services - Systems Development
Department for Education,DEPARTMENT FOR EDUCATION,17/09/2020,IS/IT,OPERATIONAL AND STRATEGIC FINANCE TOTAL,Total Enterprise Solutions,CORE-PINV-007922,103657.88,IS/IT Services - Systems Development
Department for Education,DEPARTMENT FOR EDUCATION,17/09/2020,IS/IT,OPERATIONAL AND STRATEGIC FINANCE TOTAL,Total Enterprise Solutions,CORE-PINV-007923,24496.25,IS/IT Hardware
Department for Education,DEPARTMENT FOR EDUCATION,08/09/2020,IS/IT,OPERATIONAL AND STRATEGIC FINANCE DIRECTORATE,Agile Management Solutions Limited,CORE-PINV-007443,128108,IS/IT Services - Systems Development
Department for Education,DEPARTMENT FOR EDUCATION,14/09/2020,IS/IT,OPERATIONAL AND STRATEGIC FINANCE DIRECTORATE,Total Enterprise Solutions,CORE-PINV-007686,42065,IS/IT Services - Systems Development
Department for Education,DEPARTMENT FOR EDUCATION,22/09/2020,IS/IT,TECHNOLOGY DIRECTORATE TOTAL,Bytes Software Services Ltd,CORE-PCR-000265,-179572.8,IS/IT Services - End user Hardware & Software
Department for Education,DEPARTMENT FOR EDUCATION,10/09/2020,Staff - Other,Property Asset Management Group,HOME OFFICE,CORE-PINV-007514,28717,Cluster2Security: Security Vetting 
Department for Education,DEPARTMENT FOR EDUCATION,10/09/2020,Accommodation & Estates - rent & rates,Property Asset Management Group,Government Property Agency,CORE-PINV-007515,39697.19,Rent
Department for Education,DEPARTMENT FOR EDUCATION,18/09/2020,Accommodation & Estates - rent & rates,Property Asset Management Group,Government Property Agency,CORE-PINV-007957,86652.42,Rent
Department for Education,DEPARTMENT FOR EDUCATION,18/09/2020,Accommodation & Estates - rent & rates,Property Asset Management Group,Government Property Agency,CORE-PINV-007958,262956.76,Rent
Department for Education,DEPARTMENT FOR EDUCATION,18/09/2020,Accommodation & Estates - rent & rates,Property Asset Management Group,Government Property Agency,CORE-PINV-007959,131478.38,Rent
Department for Education,DEPARTMENT FOR EDUCATION,18/09/2020,Accommodation & Estates - rent & rates,Property Asset Management Group,Government Property Agency,CORE-PINV-007960,123510.17,Rent
Department for Education,DEPARTMENT FOR EDUCATION,18/09/2020,Accommodation & Estates - rent & rates,Property Asset Management Group,Government Property Agency,CORE-PINV-007961,45190.91,Rent
Department for Education,DEPARTMENT FOR EDUCATION,18/09/2020,Accommodation & Estates - rent & rates,Property Asset Management Group,Government Property Agency,CORE-PINV-007962,38591.7,Rent
Department for Education,DEPARTMENT FOR EDUCATION,23/09/2020,Accommodation & Estates - rent & rates,Property Asset Management Group,Government Property Agency,CORE-PINV-007963,38397.9,Rent
Department for Education,DEPARTMENT FOR EDUCATION,24/09/2020,Accommodation & Estates - rent & rates,Property Asset Management Group,Government Property Agency,CORE-PINV-008177,35402.75,Rent
Department for Education,DEPARTMENT FOR EDUCATION,24/09/2020,Accommodation & Estates - rent & rates,Property Asset Management Group,Government Property Agency,CORE-PINV-008178,54435.69,Rent
Department for Education,DEPARTMENT FOR EDUCATION,24/09/2020,Accommodation & Estates - rent & rates,Property Asset Management Group,Government Property Agency,CORE-PINV-008180,26694.45,Rent
Department for Education,DEPARTMENT FOR EDUCATION,24/09/2020,Accommodation & Estates - rent & rates,Property Asset Management Group,Government Property Agency,CORE-PINV-008181,300000,Rent
Department for Education,DEPARTMENT FOR EDUCATION,24/09/2020,Facilities,Property Asset Management Group,Arcadis LLP,CORE-PINV-008221,132780,Construction Professional fees
Department for Education,DEPARTMENT FOR EDUCATION,29/09/2020,Facilities,Property Asset Management Group,Arcadis LLP,CORE-PINV-008317,35806,Construction Professional fees
Department for Education,DEPARTMENT FOR EDUCATION,29/09/2020,Learning & Development,HR DIRECTORATE,CSL KPMG LLP,CORE-PINV-008349,39130,Training & Development costs
Department for Education,DEPARTMENT FOR EDUCATION,03/09/2020,Other Goods & Services,STRATEGIC ANALYSIS AND RESEARCH,IFF RESEARCH LTD,CORE-PINV-007126,33588.5,Research and Development
Department for Education,DEPARTMENT FOR EDUCATION,07/09/2020,Other Goods & Services,STRATEGIC ANALYSIS AND RESEARCH,IFF RESEARCH LTD,CORE-PINV-007378,156720,Research and Development
Department for Education,DEPARTMENT FOR EDUCATION,10/09/2020,Other Goods & Services,STRATEGIC ANALYSIS AND RESEARCH,Kantar UK Ltd,CORE-PINV-007588,72908,Research and Development
Department for Education,DEPARTMENT FOR EDUCATION,10/09/2020,IS/IT,SYSTEMS AND ACCOUNTABILITY,AGILE SOLUTIONS GB LTD,CORE-PINV-007551,96090,IS/IT Services
Department for Education,DEPARTMENT FOR EDUCATION,10/09/2020,IS/IT,SYSTEMS AND ACCOUNTABILITY,CADENCE INNOVA,CORE-PINV-007562,266992.5,IS/IT Systems Operations
Department for Education,DEPARTMENT FOR EDUCATION,07/09/2020,IS/IT,SYSTEMS AND ACCOUNTABILITY,Mangrove Data Limited,CORE-PINV-007312,22800,IS/IT Services - Systems Development
Department for Education,DEPARTMENT FOR EDUCATION,08/09/2020,IS/IT,SYSTEMS AND ACCOUNTABILITY,CAPGEMINI UK PLC,CORE-PINV-007462,31030,IS/IT Services - Systems Development
Department for Education,DEPARTMENT FOR EDUCATION,09/09/2020,IS/IT,SYSTEMS AND ACCOUNTABILITY,CADENCE INNOVA,CORE-PINV-007561,47800,IS/IT Services - Systems Development
Department for Education,DEPARTMENT FOR EDUCATION,10/09/2020,IS/IT,SYSTEMS AND ACCOUNTABILITY,OLIVE JAR DIGITAL LTD,CORE-PINV-007585,158209.32,IS/IT Services
Department for Education,DEPARTMENT FOR EDUCATION,10/09/2020,IS/IT,SYSTEMS AND ACCOUNTABILITY,CAPGEMINI UK PLC,CORE-PINV-007461,44400,IS/IT Services
Department for Education,DEPARTMENT FOR EDUCATION,22/09/2020,IS/IT,SYSTEMS AND ACCOUNTABILITY,RM EDUCATION PLC,CORE-PINV-008024,388200,IS/IT Systems Operations
Department for Education,DEPARTMENT FOR EDUCATION,14/09/2020,Other Goods & Services,STUDENT FINANCE DELIVERY,Ernst & Young LLP,CORE-PINV-004518,108000,Other Professional Services
Department for Education,DEPARTMENT FOR EDUCATION,14/09/2020,Other Goods & Services,STUDENT FINANCE DELIVERY,Ernst & Young LLP,CORE-PINV-006860,60493,Other Professional Services
Department for Education,DEPARTMENT FOR EDUCATION,01/09/2020,Other costs,STUDENT FINANCE DELIVERY,STUDENT LOANS CO LTD INVEST TO SAVE,CUPS0010230,18641887.48,Current grants paid to organisations including arms length bodies and educational establishments
Department for Education,DEPARTMENT FOR EDUCATION,01/09/2020,Other costs,STUDENT FINANCE DELIVERY,STUDENT LOANS CO LTD INVEST TO SAVE,CUPS0010230,-18641887.48,Current grants paid to organisations including arms length bodies and educational establishments
Department for Education,DEPARTMENT FOR EDUCATION,01/09/2020,Other costs,STUDENT FINANCE DELIVERY,STUDENT LOANS CO LTD INVEST TO SAVE,CUPS0010231,-72415.85,Current grants paid to organisations including arms length bodies and educational establishments
Department for Education,DEPARTMENT FOR EDUCATION,01/09/2020,Other costs,STUDENT FINANCE DELIVERY,STUDENT LOANS CO LTD INVEST TO SAVE,CUPS0010231,72415.85,Current grants paid to organisations including arms length bodies and educational establishments
Department for Education,DEPARTMENT FOR EDUCATION,01/09/2020,Other costs,STUDENT FINANCE DELIVERY,STUDENT LOANS CO LTD INVEST TO SAVE,CUPS0010235,22370264.98,Current grants paid to organisations including arms length bodies and educational establishments
Department for Education,DEPARTMENT FOR EDUCATION,01/09/2020,Other costs,STUDENT FINANCE DELIVERY,STUDENT LOANS CO LTD INVEST TO SAVE,CUPS0010236,72415.85,Current grants paid to organisations including arms length bodies and educational establishments
Department for Education,DEPARTMENT FOR EDUCATION,17/09/2020,Other costs,Higher Education Strategy and Policy Group,THE OFFICE FOR STUDENTS,CUPS0010448,195000000,Current grants paid to organisations including arms length bodies and educational establishments
Department for Education,DEPARTMENT FOR EDUCATION,14/09/2020,Grants expenditure,STUDENT FINANCE DELIVERY,STUDENT LOANS COMPANY LTD,CUPS0010441,58795684,Grants to educational establishments or not for profit organisations including other businesses
Department for Education,DEPARTMENT FOR EDUCATION,14/09/2020,Student Payments,STUDENT FINANCE DELIVERY,STUDENT LOANS COMPANY LTD,CUPS0010436,34548,Payments for new student loans
Department for Education,DEPARTMENT FOR EDUCATION,14/09/2020,Student Payments,STUDENT FINANCE DELIVERY,STUDENT LOANS COMPANY LTD,CUPS0010437,1906430500,Payments for new student loans
Department for Education,DEPARTMENT FOR EDUCATION,14/09/2020,Student Payments,STUDENT FINANCE DELIVERY,STUDENT LOANS COMPANY LTD,CUPS0010438,13716137,Payments for new student loans
Department for Education,DEPARTMENT FOR EDUCATION,14/09/2020,Student Payments,STUDENT FINANCE DELIVERY,STUDENT LOANS COMPANY LTD,CUPS0010439,212637301,Payments for new student loans
Department for Education,DEPARTMENT FOR EDUCATION,14/09/2020,Student Payments,STUDENT FINANCE DELIVERY,STUDENT LOANS COMPANY LTD,CUPS0010440,12634887,Payments for new student loans
Department for Education,DEPARTMENT FOR EDUCATION,22/09/2020,Grants expenditure,STUDENT FINANCE DELIVERY,NATIONAL ASSEMBLY FOR WALES,CUPS0010476,12691422,Current grant funding to other government departments for DfE's contribution to jointly funded programmes 
Department for Education,DEPARTMENT FOR EDUCATION,22/09/2020,Grants expenditure,STUDENT FINANCE DELIVERY,STUDENT AWARDS AGENCY FOR SCOTLAND SAAS,CUPS0010479,18126266,Current grant funding to other government departments for DfE's contribution to jointly funded programmes 
Department for Education,DEPARTMENT FOR EDUCATION,22/09/2020,Grants expenditure,STUDENT FINANCE DELIVERY,DEPARTMENT FOR THE ECONOMY,CUPS0010586,11051861,Current grant funding to other government departments for DfE's contribution to jointly funded programmes 
Department for Education,DEPARTMENT FOR EDUCATION,18/09/2020,Other Goods & Services,STUDENT FINANCE DELIVERY,CSR/HMRC,CORE-PINV-007364,40333.54,Other Professional Services
Department for Education,DEPARTMENT FOR EDUCATION,30/09/2020,Grants expenditure,HIGHER AND FURTHER EDUCATION TOTAL,US UK FULBRIGHT EDUCATIONAL COMMISSION,CORE-MAIN-007037,160666.33,Grants to educational establishments or not for profit organisations including other businesses
Department for Education,DEPARTMENT FOR EDUCATION,30/09/2020,Grants expenditure,HIGHER AND FURTHER EDUCATION TOTAL,UKCISA,CORE-MAIN-007038,87500,Grants to educational establishments or not for profit organisations including other businesses
Department for Education,DEPARTMENT FOR EDUCATION,15/09/2020,Other Goods & Services,HIGHER AND FURTHER EDUCATION TOTAL,BRITISH COUNCIL,CORE-PINV-007777,59080.69,Other Professional Services
Department for Education,DEPARTMENT FOR EDUCATION,10/09/2020,Grants expenditure,HIGHER AND FURTHER EDUCATION TOTAL,DEPARTMENT FOR BUSINESS ENERGY & INDUSTRIAL STRATEGY,CORE-PINV-007572,21333596.64,Grants paid to other Government Departments
Department for Education,DEPARTMENT FOR EDUCATION,11/09/2020,Grants expenditure,FURTHER EDUCATION TOTAL,WEST YORKSHIRE COMBINED AUTHORITY,CORE-MAIN-006250,75000,Grants to local authorities
Department for Education,DEPARTMENT FOR EDUCATION,10/09/2020,Learning & Development,FURTHER EDUCATION TOTAL,Education and Training Foundation,CORE-PINV-007599,684879.25,Training & Development costs
Department for Education,DEPARTMENT FOR EDUCATION,03/09/2020,Grants expenditure,HIGHER AND FURTHER EDUCATION TOTAL,BRITISH COUNCIL,CORE-MAIN-006067,83823.09,Grants to educational establishments or not for profit organisations including other businesses
Department for Education,DEPARTMENT FOR EDUCATION,11/09/2020,Grants expenditure,FE DIRECTORS OFFICE,The North of Tyne Combined Authority,CORE-MAIN-006251,407912,Grants to local authorities
Department for Education,DEPARTMENT FOR EDUCATION,11/09/2020,Grants expenditure,FE DIRECTORS OFFICE,CAMBRIDGESHIRE & PETERBOROUGH COMBINED AUTHORITY,CORE-MAIN-006252,305723,Grants to local authorities
Department for Education,DEPARTMENT FOR EDUCATION,11/09/2020,Grants expenditure,FE DIRECTORS OFFICE,GREATER LONDON AUTHORITY,CORE-MAIN-006253,8137485,Grants to local authorities
Department for Education,DEPARTMENT FOR EDUCATION,11/09/2020,Grants expenditure,FE DIRECTORS OFFICE,GREATER MANCHESTER COMBINED AUTHORITY,CORE-MAIN-006254,2458942,Grants to local authorities
Department for Education,DEPARTMENT FOR EDUCATION,11/09/2020,Grants expenditure,FE DIRECTORS OFFICE,LIVERPOOL CITY REGION COMBINED AUTHORITY,CORE-MAIN-006255,1364375,Grants to local authorities
Department for Education,DEPARTMENT FOR EDUCATION,11/09/2020,Grants expenditure,FE DIRECTORS OFFICE,The North of Tyne Combined Authority,CORE-MAIN-006256,602942,Grants to local authorities
Department for Education,DEPARTMENT FOR EDUCATION,11/09/2020,Grants expenditure,FE DIRECTORS OFFICE,TEES VALLEY COMBINED AUTHORITY,CORE-MAIN-006257,781937,Grants to local authorities
Department for Education,DEPARTMENT FOR EDUCATION,11/09/2020,Grants expenditure,FE DIRECTORS OFFICE,West Midlands Combined Authority,CORE-MAIN-006258,3336285,Grants to local authorities
Department for Education,DEPARTMENT FOR EDUCATION,11/09/2020,Grants expenditure,FE DIRECTORS OFFICE,West of England Combined Authority,CORE-MAIN-006259,391397,Grants to local authorities
Department for Education,DEPARTMENT FOR EDUCATION,03/09/2020,Grants expenditure,FE REFORMING PROVISION DIRECTORATE,JISC LTD,CORE-MAIN-006068,1165917,Grants to educational establishments or not for profit organisations including other businesses
Department for Education,DEPARTMENT FOR EDUCATION,30/09/2020,Grants expenditure,FE REFORMING PROVISION DIRECTORATE,JISC LTD,CORE-MAIN-007040,1165913,Capital grants paid to a private sector organisation
Department for Education,DEPARTMENT FOR EDUCATION,03/09/2020,Grants expenditure,FE SKILLS FUNDING DELIVERY DIRECTORATE,Trades Union Congress,CORE-MAIN-006069,954537,Grants to educational establishments or not for profit organisations including other businesses
Department for Education,DEPARTMENT FOR EDUCATION,03/09/2020,Grants expenditure,FE SKILLS FUNDING DELIVERY DIRECTORATE,LEARNING AND WORK INSTITUTE,CORE-MAIN-006070,35493.47,Capital grants paid to a private sector organisation
Department for Education,DEPARTMENT FOR EDUCATION,15/09/2020,Student Payments,FE STRATERGY AND TECHNICAL DIRECTORATE,STUDENT LOANS COMPANY LTD,CUPS0010426,4954204,Payments for new student loans
Department for Education,DEPARTMENT FOR EDUCATION,30/09/2020,Grants expenditure,CAREERS AND FE FUNDING,THE CAREERS & ENTERPRISE COMPANY,CORE-MAIN-007041,6028000,Grants to educational establishments or not for profit organisations including other businesses
Department for Education,DEPARTMENT FOR EDUCATION,03/09/2020,Grants expenditure,FE SKILLS FUNDING DELIVERY DIRECTORATE,LEEDS CITY COLLEGE,CUPS0009225,29906.1,Grants paid to other Government Departments
Department for Education,DEPARTMENT FOR EDUCATION,03/09/2020,Grants expenditure,FE SKILLS FUNDING DELIVERY DIRECTORATE,NOTTINGHAM TRENT UNIVERSITY,CUPS0009227,25724.7,Grants paid to other Government Departments
Department for Education,DEPARTMENT FOR EDUCATION,03/09/2020,Grants expenditure,FE SKILLS FUNDING DELIVERY DIRECTORATE,UNIVERSITY OF BOLTON,CUPS0009228,110988.9,Grants paid to other Government Departments
Department for Education,DEPARTMENT FOR EDUCATION,03/09/2020,Grants expenditure,FE SKILLS FUNDING DELIVERY DIRECTORATE,UNIVERSITY OF SUNDERLAND,CUPS0009229,49631.4,Grants paid to other Government Departments
Department for Education,DEPARTMENT FOR EDUCATION,03/09/2020,Grants expenditure,FE SKILLS FUNDING DELIVERY DIRECTORATE,COVET LTD,CUPS0009237,32724,Grants paid to other Government Departments
Department for Education,DEPARTMENT FOR EDUCATION,03/09/2020,Grants expenditure,OPERATIONAL AND STRATEGIC FINANCE DIRECTORATE,NESTA,CORE-MAIN-006071,316961,Grants to educational establishments or not for profit organisations including other businesses
Department for Education,DEPARTMENT FOR EDUCATION,29/09/2020,Professional Services Consultancy and Contingent Labour,OPERATIONAL AND STRATEGIC FINANCE DIRECTORATE,London Grid for Learning Trust,CORE-PINV-001389,30705,Costs related to temporary workers
Department for Education,DEPARTMENT FOR EDUCATION,29/09/2020,Consultancy,OPERATIONAL AND STRATEGIC FINANCE DIRECTORATE,London Grid for Learning Trust,CORE-PINV-007428,171563,"Advisory services including fees, travel and expenses"
Department for Education,DEPARTMENT FOR EDUCATION,28/09/2020,Consultancy,Post 16 Strategy,Eversheds Sutherland International LLP,CORE-PINV-008295,21588.45,"Advisory services including fees, travel and expenses"
Department for Education,DEPARTMENT FOR EDUCATION,03/09/2020,Other costs,HEFE AME Total (FE),CITB CONSTRUCTIONSKILLS,CUPS0010220,10000000,Other Loans - Public Corporations
Department for Education,TRA,28/09/2020,IS/IT,OPERATIONS DIRECTORATE,PROVENTEQ LTD,TRA-PINV-000609,31920,IS/IT Services
Department for Education,STA,01/09/2020,Professional Services,TEST OPERATIONS DIVISION,CAPITA BUSINESS SERVICES LTD,STA-PINV-000222,78286.18,Provision of services re delivery of Educational Assessments
Department for Education,STA,01/09/2020,Professional Services,TEST OPERATIONS DIVISION,CAPITA BUSINESS SERVICES LTD,STA-PINV-000223,50041,Provision of services re delivery of Educational Assessments
Department for Education,STA,03/09/2020,Professional Services,TEST OPERATIONS DIVISION,CAPITA BUSINESS SERVICES LTD,STA-PINV-000225,315952.17,Provision of services re delivery of Educational Assessments
Department for Education,STA,28/09/2020,Professional Services,TEST OPERATIONS DIVISION,CAPITA BUSINESS SERVICES LTD,STA-PINV-000259,345304.6,Provision of services re delivery of Educational Assessments
Department for Education,STA,28/09/2020,Professional Services,TEST OPERATIONS DIVISION,CAPITA BUSINESS SERVICES LTD,STA-PINV-000260,78286.18,Provision of services re delivery of Educational Assessments
Department for Education,STA,28/09/2020,Professional Services,TEST OPERATIONS DIVISION,CAPITA BUSINESS SERVICES LTD,STA-PINV-000261,75310.75,Provision of services re delivery of Educational Assessments
Department for Education,STA,30/09/2020,Professional Services,TEST OPERATIONS DIVISION,CAPITA BUSINESS SERVICES LTD,STA-PINV-000264,50041,Provision of services re delivery of Educational Assessments
Department for Education,STA,16/09/2020,IS/IT,TEST DEVELOPMENT DIVISION,HIPPO DIGITAL LTD,STA-PINV-000244,65200,Software Development
Department for Education,STA,16/09/2020,IS/IT,TEST DEVELOPMENT DIVISION,HIPPO DIGITAL LTD,STA-PINV-000245,84000,Software Development
Department for Education,DEPARTMENT FOR EDUCATION,03/09/2020,Miscellaneous Expenditure,Finance and Commercial Group,N/A - Risk Protection Arrangement (RPA) member,354495/DFE/RPA/1220,118404.56,Property claim paid out to an academy trust by TopMark on behalf of the Department as part of the Department's Risk Protection Arrangement (RPA).
Department for Education,DEPARTMENT FOR EDUCATION,03/09/2020,Miscellaneous Expenditure,Finance and Commercial Group,N/A - Risk Protection Arrangement (RPA) member,385214/RPA/PR19/5083,26452.27,Property claim paid out to an academy trust by TopMark on behalf of the Department as part of the Department's Risk Protection Arrangement (RPA).
Department for Education,DEPARTMENT FOR EDUCATION,07/09/2020,Miscellaneous Expenditure,Finance and Commercial Group,N/A - Risk Protection Arrangement (RPA) member,392000/005921-002346-EL-01 ,47000,Employers Liability claim paid out to an academy trust by TopMark on behalf of the Department as part of the Department's Risk Protection Arrangement (RPA).
Department for Education,DEPARTMENT FOR EDUCATION,07/09/2020,Miscellaneous Expenditure,Finance and Commercial Group,N/A - Risk Protection Arrangement (RPA) member,392223/005921-004446-RB-01 ,54166.01,Property claim paid out to an academy trust by TopMark on behalf of the Department as part of the Department's Risk Protection Arrangement (RPA).
Department for Education,DEPARTMENT FOR EDUCATION,09/09/2020,Miscellaneous Expenditure,Finance and Commercial Group,N/A - Risk Protection Arrangement (RPA) member,RPA/PR19/5474,95000,Property claim paid out to an academy trust by TopMark on behalf of the Department as part of the Department's Risk Protection Arrangement (RPA).
Department for Education,DEPARTMENT FOR EDUCATION,09/09/2020,Miscellaneous Expenditure,Finance and Commercial Group,N/A - Risk Protection Arrangement (RPA) member,RPA/PR19/5474,80000,Property claim paid out to an academy trust by TopMark on behalf of the Department as part of the Department's Risk Protection Arrangement (RPA).
Department for Education,DEPARTMENT FOR EDUCATION,09/09/2020,Miscellaneous Expenditure,Finance and Commercial Group,N/A - Risk Protection Arrangement (RPA) member,RPA/PR19/5474,100000,Property claim paid out to an academy trust by TopMark on behalf of the Department as part of the Department's Risk Protection Arrangement (RPA).
Department for Education,DEPARTMENT FOR EDUCATION,10/09/2020,Miscellaneous Expenditure,Finance and Commercial Group,N/A - Risk Protection Arrangement (RPA) member,378915/DFE/RPA/4350,79450,Property claim paid out to an academy trust by TopMark on behalf of the Department as part of the Department's Risk Protection Arrangement (RPA).
Department for Education,DEPARTMENT FOR EDUCATION,10/09/2020,Miscellaneous Expenditure,Finance and Commercial Group,N/A - Risk Protection Arrangement (RPA) member,391908/005921-000725-EL-01 ,25000,Employers Liability claim paid out to an academy trust by TopMark on behalf of the Department as part of the Department's Risk Protection Arrangement (RPA).
Department for Education,DEPARTMENT FOR EDUCATION,10/09/2020,Miscellaneous Expenditure,Finance and Commercial Group,N/A - Risk Protection Arrangement (RPA) member,403973/LAMS/PR20/0065,183960.32,Property claim paid out to an academy trust by TopMark on behalf of the Department as part of the Department's Risk Protection Arrangement (RPA).
Department for Education,DEPARTMENT FOR EDUCATION,10/09/2020,Miscellaneous Expenditure,Finance and Commercial Group,N/A - Risk Protection Arrangement (RPA) member,406060/RPA/TV19/12048,41477.2,Overseas Travel claim paid out to an academy trust by TopMark on behalf of the Department as part of the Department's Risk Protection Arrangement (RPA).
Department for Education,DEPARTMENT FOR EDUCATION,14/09/2020,Miscellaneous Expenditure,Finance and Commercial Group,N/A - Risk Protection Arrangement (RPA) member,376453/DFE/RPA/3954,31778.04,Property claim paid out to an academy trust by TopMark on behalf of the Department as part of the Department's Risk Protection Arrangement (RPA).
Department for Education,DEPARTMENT FOR EDUCATION,14/09/2020,Miscellaneous Expenditure,Finance and Commercial Group,N/A - Risk Protection Arrangement (RPA) member,406543/RPA/TV20/12121,29145,Travel claim paid out to an academy trust by TopMark on behalf of the Department as part of the Department's Risk Protection Arrangement (RPA).
Department for Education,DEPARTMENT FOR EDUCATION,15/09/2020,Miscellaneous Expenditure,Finance and Commercial Group,N/A - Risk Protection Arrangement (RPA) member,403656/RPA/TV19/11553,25200,Overseas Travel claim paid out to an academy trust by TopMark on behalf of the Department as part of the Department's Risk Protection Arrangement (RPA).
Department for Education,DEPARTMENT FOR EDUCATION,16/09/2020,Miscellaneous Expenditure,Finance and Commercial Group,N/A - Risk Protection Arrangement (RPA) member,388000/RPA/PR19/5491,60610.8,Property claim paid out to an academy trust by TopMark on behalf of the Department as part of the Department's Risk Protection Arrangement (RPA).
Department for Education,DEPARTMENT FOR EDUCATION,16/09/2020,Miscellaneous Expenditure,Finance and Commercial Group,N/A - Risk Protection Arrangement (RPA) member,388000/RPA/PR19/5491,141092.81,Property claim paid out to an academy trust by TopMark on behalf of the Department as part of the Department's Risk Protection Arrangement (RPA).
Department for Education,DEPARTMENT FOR EDUCATION,17/09/2020,Miscellaneous Expenditure,Finance and Commercial Group,N/A - Risk Protection Arrangement (RPA) member,388056/RPA/PR19/5509,33830,Property claim paid out to an academy trust by TopMark on behalf of the Department as part of the Department's Risk Protection Arrangement (RPA).
Department for Education,DEPARTMENT FOR EDUCATION,17/09/2020,Miscellaneous Expenditure,Finance and Commercial Group,N/A - Risk Protection Arrangement (RPA) member,388350/RPA/PR19/5577,100000,Property claim paid out to an academy trust by TopMark on behalf of the Department as part of the Department's Risk Protection Arrangement (RPA).
Department for Education,DEPARTMENT FOR EDUCATION,17/09/2020,Miscellaneous Expenditure,Finance and Commercial Group,N/A - Risk Protection Arrangement (RPA) member,388350/RPA/PR19/5577,36000,Property claim paid out to an academy trust by TopMark on behalf of the Department as part of the Department's Risk Protection Arrangement (RPA).
Department for Education,DEPARTMENT FOR EDUCATION,17/09/2020,Miscellaneous Expenditure,Finance and Commercial Group,N/A - Risk Protection Arrangement (RPA) member,393044/RPA/PR19/6827,28828.88,Property claim paid out to an academy trust by TopMark on behalf of the Department as part of the Department's Risk Protection Arrangement (RPA).
Department for Education,DEPARTMENT FOR EDUCATION,18/09/2020,Miscellaneous Expenditure,Finance and Commercial Group,N/A - Risk Protection Arrangement (RPA) member,404276/RPA/TV19/11716,31735.36,Travel claim paid out to an academy trust by TopMark on behalf of the Department as part of the Department's Risk Protection Arrangement (RPA).
Department for Education,DEPARTMENT FOR EDUCATION,21/09/2020,Miscellaneous Expenditure,Finance and Commercial Group,N/A - Risk Protection Arrangement (RPA) member,384912/RPA/PR19/5047,54288,Property claim paid out to an academy trust by TopMark on behalf of the Department as part of the Department's Risk Protection Arrangement (RPA).
Department for Education,DEPARTMENT FOR EDUCATION,21/09/2020,Miscellaneous Expenditure,Finance and Commercial Group,N/A - Risk Protection Arrangement (RPA) member,389118/RPA/PR19/5722,45000,Property claim paid out to an academy trust by TopMark on behalf of the Department as part of the Department's Risk Protection Arrangement (RPA).
Department for Education,DEPARTMENT FOR EDUCATION,21/09/2020,Miscellaneous Expenditure,Finance and Commercial Group,N/A - Risk Protection Arrangement (RPA) member,391983/005921-002035-EL-01 ,25000,Employers Liability claim paid out to an academy trust by TopMark on behalf of the Department as part of the Department's Risk Protection Arrangement (RPA).
Department for Education,DEPARTMENT FOR EDUCATION,22/09/2020,Miscellaneous Expenditure,Finance and Commercial Group,N/A - Risk Protection Arrangement (RPA) member,398694/RPA/PR19/9458,37536.92,Property claim paid out to an academy trust by TopMark on behalf of the Department as part of the Department's Risk Protection Arrangement (RPA).
Department for Education,DEPARTMENT FOR EDUCATION,22/09/2020,Miscellaneous Expenditure,Finance and Commercial Group,N/A - Risk Protection Arrangement (RPA) member,406557/RPA/TV20/12125,39650,Overseas Travel claim paid out to an academy trust by TopMark on behalf of the Department as part of the Department's Risk Protection Arrangement (RPA).
Department for Education,DEPARTMENT FOR EDUCATION,22/09/2020,Miscellaneous Expenditure,Finance and Commercial Group,N/A - Risk Protection Arrangement (RPA) member,407191/RPA/TV20/12247,36757.5,Overseas Travel claim paid out to an academy trust by TopMark on behalf of the Department as part of the Department's Risk Protection Arrangement (RPA).
Department for Education,DEPARTMENT FOR EDUCATION,22/09/2020,Miscellaneous Expenditure,Finance and Commercial Group,N/A - Risk Protection Arrangement (RPA) member,407275/RPA/TV20/12264,36189,Overseas Travel claim paid out to an academy trust by TopMark on behalf of the Department as part of the Department's Risk Protection Arrangement (RPA).
Department for Education,DEPARTMENT FOR EDUCATION,23/09/2020,Miscellaneous Expenditure,Finance and Commercial Group,N/A - Risk Protection Arrangement (RPA) member,389892/RPA/PR19/5877,35480,Property claim paid out to an academy trust by TopMark on behalf of the Department as part of the Department's Risk Protection Arrangement (RPA).
Department for Education,DEPARTMENT FOR EDUCATION,23/09/2020,Miscellaneous Expenditure,Finance and Commercial Group,N/A - Risk Protection Arrangement (RPA) member,390510/RPA/PR19/6029,29744.13,Property claim paid out to an academy trust by TopMark on behalf of the Department as part of the Department's Risk Protection Arrangement (RPA).
Department for Education,DEPARTMENT FOR EDUCATION,24/09/2020,Miscellaneous Expenditure,Finance and Commercial Group,N/A - Risk Protection Arrangement (RPA) member,361466/DFE/RPA/1931 ,27715.56,Resilience claim paid out to an academy trust by TopMark on behalf of the Department as part of the Department's Risk Protection Arrangement (RPA).
Department for Education,DEPARTMENT FOR EDUCATION,24/09/2020,Miscellaneous Expenditure,Finance and Commercial Group,N/A - Risk Protection Arrangement (RPA) member,378967/DFE/RPA/4356,35000,Employers Liability claim paid out to an academy trust by TopMark on behalf of the Department as part of the Department's Risk Protection Arrangement (RPA).
Department for Education,DEPARTMENT FOR EDUCATION,24/09/2020,Miscellaneous Expenditure,Finance and Commercial Group,N/A - Risk Protection Arrangement (RPA) member,399659/RPA/TV19/9905,45248,Overseas Travel claim paid out to an academy trust by TopMark on behalf of the Department as part of the Department's Risk Protection Arrangement (RPA).
Department for Education,DEPARTMENT FOR EDUCATION,24/09/2020,Miscellaneous Expenditure,Finance and Commercial Group,N/A - Risk Protection Arrangement (RPA) member,405963/RPA/TV19/12032,31000,Overseas Travel claim paid out to an academy trust by TopMark on behalf of the Department as part of the Department's Risk Protection Arrangement (RPA).
Department for Education,DEPARTMENT FOR EDUCATION,29/09/2020,Miscellaneous Expenditure,Finance and Commercial Group,N/A - Risk Protection Arrangement (RPA) member,384912/RPA/PR19/5047,42356.03,Property claim paid out to an academy trust by TopMark on behalf of the Department as part of the Department's Risk Protection Arrangement (RPA).
Department for Education,DEPARTMENT FOR EDUCATION,29/09/2020,Miscellaneous Expenditure,Finance and Commercial Group,N/A - Risk Protection Arrangement (RPA) member,387976/RPA/PR19/5487,99080.31,Property claim paid out to an academy trust by TopMark on behalf of the Department as part of the Department's Risk Protection Arrangement (RPA).
Department for Education,DEPARTMENT FOR EDUCATION,29/09/2020,Miscellaneous Expenditure,Finance and Commercial Group,N/A - Risk Protection Arrangement (RPA) member,400437/RPA/PR19/10282,38852.33,Property claim paid out to an academy trust by TopMark on behalf of the Department as part of the Department's Risk Protection Arrangement (RPA).
Department for Education,DEPARTMENT FOR EDUCATION,29/09/2020,Miscellaneous Expenditure,Finance and Commercial Group,N/A - Risk Protection Arrangement (RPA) member,407513/RPA/TV20/12333,25000,Overseas Travel claim paid out to an academy trust by TopMark on behalf of the Department as part of the Department's Risk Protection Arrangement (RPA).
Department for Education,DEPARTMENT FOR EDUCATION,29/09/2020,Miscellaneous Expenditure,Finance and Commercial Group,N/A - Risk Protection Arrangement (RPA) member,407716/RPA/TV20/12377,57216,Overseas Travel claim paid out to an academy trust by TopMark on behalf of the Department as part of the Department's Risk Protection Arrangement (RPA).
Department for Education,DEPARTMENT FOR EDUCATION,30/09/2020,Miscellaneous Expenditure,Finance and Commercial Group,N/A - Risk Protection Arrangement (RPA) member,380117/DFE/RPA/4490,43083.46,Property claim paid out to an academy trust by TopMark on behalf of the Department as part of the Department's Risk Protection Arrangement (RPA).
Department for Education,DEPARTMENT FOR EDUCATION,30/09/2020,Miscellaneous Expenditure,Finance and Commercial Group,N/A - Risk Protection Arrangement (RPA) member,400466/RPA/PR19/10293,81145,Property claim paid out to an academy trust by TopMark on behalf of the Department as part of the Department's Risk Protection Arrangement (RPA).
Department for Education,Education and Skills Funding Agency,12/09/2020,Grants expenditure,Apprenticeships Group,DIMENSIONS TRAINING SOLUTIONS LTD,7083282,-50000,Grants to educational establishments or not for profit organisations including other businesses
Department for Education,Education and Skills Funding Agency,01/09/2020,Grants expenditure,Funding and Programme Team,The Growth Company Limited,8067157,-153239,Grants to educational establishments or not for profit organisations including other businesses
Department for Education,Education and Skills Funding Agency,01/09/2020,Grants expenditure,Funding and Programme Team,STAFF SELECT LTD,8067159,-41135,Grants to educational establishments or not for profit organisations including other businesses
Department for Education,Education and Skills Funding Agency,01/09/2020,Grants expenditure,Funding and Programme Team,NACRO,8067163,-88283,Grants to educational establishments or not for profit organisations including other businesses
Department for Education,Education and Skills Funding Agency,01/09/2020,Grants expenditure,Funding and Programme Team,JUNIPER TRAINING LTD,8067165,-72819,Grants to educational establishments or not for profit organisations including other businesses
Department for Education,Education and Skills Funding Agency,01/09/2020,Grants expenditure,Funding and Programme Team,ACORN TRAINING CONSULTANTS LTD,8067167,-58412,Grants to educational establishments or not for profit organisations including other businesses
Department for Education,Education and Skills Funding Agency,01/09/2020,Grants expenditure,Funding and Programme Team,Aspire-igen Group Limited,8067169,-55002,Grants to educational establishments or not for profit organisations including other businesses
Department for Education,Education and Skills Funding Agency,01/09/2020,Grants expenditure,Funding and Programme Team,SPRINGBOARD SUNDERLAND TRUST,8067171,-38365,Grants to educational establishments or not for profit organisations including other businesses
Department for Education,Education and Skills Funding Agency,01/09/2020,Grants expenditure,Funding and Programme Team,TOTAL PEOPLE LTD,8067173,-37805,Grants to educational establishments or not for profit organisations including other businesses
Department for Education,Education and Skills Funding Agency,01/09/2020,Grants expenditure,IFD EDUCATION FUNDING GROUP,St Monica's RC High School ,8304183,-473344.58,"Grants paid to organisations including agencies, arms length bodies and educational establishments"
Department for Education,Education and Skills Funding Agency,01/09/2020,Grants expenditure,IFD EDUCATION FUNDING GROUP,Woodhouse West Primary School,8304185,-118712.69,"Grants paid to organisations including agencies, arms length bodies and educational establishments"
Department for Education,Education and Skills Funding Agency,01/09/2020,Grants expenditure,IFD EDUCATION FUNDING GROUP,St Marys School,8304187,-47675.52,"Grants paid to organisations including agencies, arms length bodies and educational establishments"
Department for Education,Education and Skills Funding Agency,01/09/2020,Grants expenditure,IFD EDUCATION FUNDING GROUP,Cranbury College,8304195,-84931.51,"Grants paid to organisations including agencies, arms length bodies and educational establishments"
Department for Education,Education and Skills Funding Agency,10/09/2020,Grants expenditure,HEFE TEACHING AND LEARNING,KINGSTON COLLEGE CORPORATION T/A KINGSTON COLLEGE,8359076,-284609,Grants to educational establishments or not for profit organisations including other businesses
Department for Education,Education and Skills Funding Agency,10/09/2020,Grants expenditure,HEFE TEACHING AND LEARNING,UNIVERSITY OF DERBY,8359078,-206566,Grants to educational establishments or not for profit organisations including other businesses
Department for Education,Education and Skills Funding Agency,10/09/2020,Grants expenditure,HEFE TEACHING AND LEARNING,Workers' Educational Association,8359080,-2035809,Grants to educational establishments or not for profit organisations including other businesses
Department for Education,Education and Skills Funding Agency,10/09/2020,Grants expenditure,HEFE TEACHING AND LEARNING,BRIGHTON & HOVE CITY COUNCIL,8359082,-82079,Grants to educational establishments or not for profit organisations including other businesses
Department for Education,Education and Skills Funding Agency,10/09/2020,Grants expenditure,HEFE STUDENT SUPPORT,SOUTHAMPTON CITY COUNCIL,8359088,-75609,Grants to educational establishments or not for profit organisations including other businesses
Department for Education,Education and Skills Funding Agency,10/09/2020,Grants expenditure,HEFE STUDENT SUPPORT,SURREY COUNTY COUNCIL,8359090,-395800,Grants to educational establishments or not for profit organisations including other businesses
Department for Education,Education and Skills Funding Agency,10/09/2020,Grants expenditure,HEFE STUDENT SUPPORT,KINGSTON COLLEGE CORPORATION T/A KINGSTON COLLEGE,8359100,-320032,Grants to educational establishments or not for profit organisations including other businesses
Department for Education,Education and Skills Funding Agency,10/09/2020,Grants expenditure,HEFE STUDENT SUPPORT,UNIVERSITY OF DERBY,8359102,-52526,Grants to educational establishments or not for profit organisations including other businesses
Department for Education,Education and Skills Funding Agency,10/09/2020,Grants expenditure,HEFE STUDENT SUPPORT,PETERBOROUGH REGIONAL COLLEGE,8359106,-175851,Grants to educational establishments or not for profit organisations including other businesses
Department for Education,Education and Skills Funding Agency,01/09/2020,Grants expenditure,IFD EDUCATION FUNDING GROUP,Emmanuel College (CTC),8365126,639061.79,"Grants paid to organisations including agencies, arms length bodies and educational establishments"
Department for Education,Education and Skills Funding Agency,01/09/2020,Grants expenditure,IFD EDUCATION FUNDING GROUP,Thomas Telford School (CTC),8365154,740968.52,"Grants paid to organisations including agencies, arms length bodies and educational establishments"
Department for Education,Education and Skills Funding Agency,01/09/2020,Grants expenditure,Academies Bursary Funding,Thomas Telford School (CTC),8365178,26743.33,"Grants paid to organisations including agencies, arms length bodies and educational establishments"
Department for Education,Education and Skills Funding Agency,01/09/2020,Grants expenditure,Early Years Schools Group,Bradford Academy,8365182,75000,"Grants paid to organisations including agencies, arms length bodies and educational establishments"
Department for Education,Education and Skills Funding Agency,01/09/2020,Grants expenditure,Early Years Schools Group,THE CO-OPERATIVE ACADEMY OF MANCHESTER,8365184,75000,"Grants paid to organisations including agencies, arms length bodies and educational establishments"
Department for Education,Education and Skills Funding Agency,01/09/2020,Grants expenditure,Early Years Schools Group,Manchester Creative and Media Academy,8365186,75000,"Grants paid to organisations including agencies, arms length bodies and educational establishments"
Department for Education,Education and Skills Funding Agency,01/09/2020,Grants expenditure,Early Years Schools Group,DYKE HOUSE SPORTS AND TECHNOLOGY COLLEGE,8365188,75000,"Grants paid to organisations including agencies, arms length bodies and educational establishments"
Department for Education,Education and Skills Funding Agency,01/09/2020,Grants expenditure,Early Years Schools Group,Fernwood School,8365190,75000,"Grants paid to organisations including agencies, arms length bodies and educational establishments"
Department for Education,Education and Skills Funding Agency,01/09/2020,Grants expenditure,Early Years Schools Group,Lipson Co-operative Academy,8365192,75000,"Grants paid to organisations including agencies, arms length bodies and educational establishments"
Department for Education,Education and Skills Funding Agency,01/09/2020,Grants expenditure,Early Years Schools Group,Manor Community Academy,8365194,75000,"Grants paid to organisations including agencies, arms length bodies and educational establishments"
Department for Education,Education and Skills Funding Agency,01/09/2020,Grants expenditure,Early Years Schools Group,Tudor Grange Academy Kingshurst,8365196,75000,"Grants paid to organisations including agencies, arms length bodies and educational establishments"
Department for Education,Education and Skills Funding Agency,01/09/2020,Grants expenditure,Early Years Schools Group,The Howard School,8365198,74770,"Grants paid to organisations including agencies, arms length bodies and educational establishments"
Department for Education,Education and Skills Funding Agency,01/09/2020,Grants expenditure,Early Years Schools Group,Loxford School,8365200,74762,"Grants paid to organisations including agencies, arms length bodies and educational establishments"
Department for Education,Education and Skills Funding Agency,01/09/2020,Grants expenditure,Early Years Schools Group,St Marys College,8365202,74523,"Grants paid to organisations including agencies, arms length bodies and educational establishments"
Department for Education,Education and Skills Funding Agency,01/09/2020,Grants expenditure,Early Years Schools Group,Woodchurch High School,8365204,74520,"Grants paid to organisations including agencies, arms length bodies and educational establishments"
Department for Education,Education and Skills Funding Agency,01/09/2020,Grants expenditure,Early Years Schools Group,Holgate Academy,8365206,74196,"Grants paid to organisations including agencies, arms length bodies and educational establishments"
Department for Education,Education and Skills Funding Agency,01/09/2020,Grants expenditure,Early Years Schools Group,Challney High School for Girls,8365208,73182,"Grants paid to organisations including agencies, arms length bodies and educational establishments"
Department for Education,Education and Skills Funding Agency,01/09/2020,Grants expenditure,Early Years Schools Group,Queen Elizabeth's Grammar School,8365210,72905,"Grants paid to organisations including agencies, arms length bodies and educational establishments"
Department for Education,Education and Skills Funding Agency,01/09/2020,Grants expenditure,Early Years Schools Group,Ark Victoria,8365212,72885,"Grants paid to organisations including agencies, arms length bodies and educational establishments"
Department for Education,Education and Skills Funding Agency,01/09/2020,Grants expenditure,Early Years Schools Group,St George's Academy,8365214,72256,"Grants paid to organisations including agencies, arms length bodies and educational establishments"
Department for Education,Education and Skills Funding Agency,01/09/2020,Grants expenditure,Early Years Schools Group,Downham Market Academy,8365216,72053,"Grants paid to organisations including agencies, arms length bodies and educational establishments"
Department for Education,Education and Skills Funding Agency,01/09/2020,Grants expenditure,Early Years Schools Group,"Gumley House RC Convent School, FCJ",8365218,72044,"Grants paid to organisations including agencies, arms length bodies and educational establishments"
Department for Education,Education and Skills Funding Agency,01/09/2020,Grants expenditure,Early Years Schools Group,St George's School A Church of England Academy,8365220,71086,"Grants paid to organisations including agencies, arms length bodies and educational establishments"
Department for Education,Education and Skills Funding Agency,01/09/2020,Grants expenditure,Early Years Schools Group,The Appleton School ,8365222,70443,"Grants paid to organisations including agencies, arms length bodies and educational establishments"
Department for Education,Education and Skills Funding Agency,01/09/2020,Grants expenditure,Early Years Schools Group,Plume School,8365224,69654,"Grants paid to organisations including agencies, arms length bodies and educational establishments"
Department for Education,Education and Skills Funding Agency,01/09/2020,Grants expenditure,Early Years Schools Group,Woodcote High School,8365226,69247,"Grants paid to organisations including agencies, arms length bodies and educational establishments"
Department for Education,Education and Skills Funding Agency,01/09/2020,Grants expenditure,Early Years Schools Group,Folkestone Academy,8365228,68766,"Grants paid to organisations including agencies, arms length bodies and educational establishments"
Department for Education,Education and Skills Funding Agency,01/09/2020,Grants expenditure,Early Years Schools Group,John Henry Newman Catholic College,8365230,68403,"Grants paid to organisations including agencies, arms length bodies and educational establishments"
Department for Education,Education and Skills Funding Agency,01/09/2020,Grants expenditure,Early Years Schools Group,Drapers' Academy,8365232,67892,"Grants paid to organisations including agencies, arms length bodies and educational establishments"
Department for Education,Education and Skills Funding Agency,01/09/2020,Grants expenditure,Early Years Schools Group,Ilkley Grammar School,8365234,67539,"Grants paid to organisations including agencies, arms length bodies and educational establishments"
Department for Education,Education and Skills Funding Agency,01/09/2020,Grants expenditure,Early Years Schools Group,Blessed Trinity RC College,8365236,66681,"Grants paid to organisations including agencies, arms length bodies and educational establishments"
Department for Education,Education and Skills Funding Agency,01/09/2020,Grants expenditure,Early Years Schools Group,Bexhill High Academy,8365238,65489,"Grants paid to organisations including agencies, arms length bodies and educational establishments"
Department for Education,Education and Skills Funding Agency,01/09/2020,Grants expenditure,Early Years Schools Group,Ashfield Comprehensive School,8365240,62517,"Grants paid to organisations including agencies, arms length bodies and educational establishments"
Department for Education,Education and Skills Funding Agency,01/09/2020,Grants expenditure,Early Years Schools Group,Leeds West Academy,8365242,60569,"Grants paid to organisations including agencies, arms length bodies and educational establishments"
Department for Education,Education and Skills Funding Agency,01/09/2020,Grants expenditure,Early Years Schools Group,Waingels College,8365244,59668,"Grants paid to organisations including agencies, arms length bodies and educational establishments"
Department for Education,Education and Skills Funding Agency,01/09/2020,Grants expenditure,Early Years Schools Group,Ousedale School,8365246,59315,"Grants paid to organisations including agencies, arms length bodies and educational establishments"
Department for Education,Education and Skills Funding Agency,01/09/2020,Grants expenditure,Early Years Schools Group,Beckfoot Oakbank,8365248,58363,"Grants paid to organisations including agencies, arms length bodies and educational establishments"
Department for Education,Education and Skills Funding Agency,01/09/2020,Grants expenditure,Early Years Schools Group,Framwellgate School Durham,8365250,57701,"Grants paid to organisations including agencies, arms length bodies and educational establishments"
Department for Education,Education and Skills Funding Agency,01/09/2020,Grants expenditure,Early Years Schools Group,Horizon Community School,8365252,56434,"Grants paid to organisations including agencies, arms length bodies and educational establishments"
Department for Education,Education and Skills Funding Agency,01/09/2020,Grants expenditure,Early Years Schools Group,St Thomas More Catholic Academy,8365254,56316,"Grants paid to organisations including agencies, arms length bodies and educational establishments"
Department for Education,Education and Skills Funding Agency,01/09/2020,Grants expenditure,Early Years Schools Group,Kirk Balk Academy,8365256,56027,"Grants paid to organisations including agencies, arms length bodies and educational establishments"
Department for Education,Education and Skills Funding Agency,01/09/2020,Grants expenditure,Early Years Schools Group,Queens' School ,8365258,55826,"Grants paid to organisations including agencies, arms length bodies and educational establishments"
Department for Education,Education and Skills Funding Agency,01/09/2020,Grants expenditure,Early Years Schools Group,Thomas Clarkson Academy,8365260,55575,"Grants paid to organisations including agencies, arms length bodies and educational establishments"
Department for Education,Education and Skills Funding Agency,01/09/2020,Grants expenditure,Early Years Schools Group,Tavistock College,8365262,55415,"Grants paid to organisations including agencies, arms length bodies and educational establishments"
Department for Education,Education and Skills Funding Agency,01/09/2020,Grants expenditure,Early Years Schools Group,The King Edmund School,8365264,55410,"Grants paid to organisations including agencies, arms length bodies and educational establishments"
Department for Education,Education and Skills Funding Agency,01/09/2020,Grants expenditure,Early Years Schools Group,William Farr CofE Comprehensive School,8365266,54405,"Grants paid to organisations including agencies, arms length bodies and educational establishments"
Department for Education,Education and Skills Funding Agency,01/09/2020,Grants expenditure,Early Years Schools Group,North Liverpool Academy,8365268,51308,"Grants paid to organisations including agencies, arms length bodies and educational establishments"
Department for Education,Education and Skills Funding Agency,01/09/2020,Grants expenditure,Early Years Schools Group,Penryn College,8365270,50725,"Grants paid to organisations including agencies, arms length bodies and educational establishments"
Department for Education,Education and Skills Funding Agency,01/09/2020,Grants expenditure,Early Years Schools Group,Mark Rutherford School ,8365272,50469,"Grants paid to organisations including agencies, arms length bodies and educational establishments"
Department for Education,Education and Skills Funding Agency,01/09/2020,Grants expenditure,Early Years Schools Group,ARK Kings Academy,8365274,50000,"Grants paid to organisations including agencies, arms length bodies and educational establishments"
Department for Education,Education and Skills Funding Agency,01/09/2020,Grants expenditure,Early Years Schools Group,Chesterton Community College,8365276,50000,"Grants paid to organisations including agencies, arms length bodies and educational establishments"
Department for Education,Education and Skills Funding Agency,01/09/2020,Grants expenditure,Early Years Schools Group,Cippenham Primary School,8365278,50000,"Grants paid to organisations including agencies, arms length bodies and educational establishments"
Department for Education,Education and Skills Funding Agency,01/09/2020,Grants expenditure,Early Years Schools Group,Cockington Primary School,8365280,50000,"Grants paid to organisations including agencies, arms length bodies and educational establishments"
Department for Education,Education and Skills Funding Agency,01/09/2020,Grants expenditure,Early Years Schools Group,Co-op Academy Swinton,8365282,50000,"Grants paid to organisations including agencies, arms length bodies and educational establishments"
Department for Education,Education and Skills Funding Agency,01/09/2020,Grants expenditure,Early Years Schools Group,Freebrough Academy,8365284,50000,"Grants paid to organisations including agencies, arms length bodies and educational establishments"
Department for Education,Education and Skills Funding Agency,01/09/2020,Grants expenditure,Early Years Schools Group,North Shore Academy,8365286,50000,"Grants paid to organisations including agencies, arms length bodies and educational establishments"
Department for Education,Education and Skills Funding Agency,01/09/2020,Grants expenditure,Early Years Schools Group,Sacred Heart Catholic School,8365288,50000,"Grants paid to organisations including agencies, arms length bodies and educational establishments"
Department for Education,Education and Skills Funding Agency,01/09/2020,Grants expenditure,Early Years Schools Group,The Blyth Academy,8365290,50000,"Grants paid to organisations including agencies, arms length bodies and educational establishments"
Department for Education,Education and Skills Funding Agency,01/09/2020,Grants expenditure,Early Years Schools Group,The Crescent Academy,8365292,50000,"Grants paid to organisations including agencies, arms length bodies and educational establishments"
Department for Education,Education and Skills Funding Agency,01/09/2020,Grants expenditure,Early Years Schools Group,The Grangefield Academy,8365294,50000,"Grants paid to organisations including agencies, arms length bodies and educational establishments"
Department for Education,Education and Skills Funding Agency,01/09/2020,Grants expenditure,Early Years Schools Group,Tudor Grange Samworth Academy,8365296,50000,"Grants paid to organisations including agencies, arms length bodies and educational establishments"
Department for Education,Education and Skills Funding Agency,01/09/2020,Grants expenditure,Early Years Schools Group,Aegir - A Specialist Academy,8365298,49941,"Grants paid to organisations including agencies, arms length bodies and educational establishments"
Department for Education,Education and Skills Funding Agency,01/09/2020,Grants expenditure,Early Years Schools Group,Belmont School,8365300,49930,"Grants paid to organisations including agencies, arms length bodies and educational establishments"
Department for Education,Education and Skills Funding Agency,01/09/2020,Grants expenditure,Early Years Schools Group,Leeds City Academy,8365302,49866,"Grants paid to organisations including agencies, arms length bodies and educational establishments"
Department for Education,Education and Skills Funding Agency,01/09/2020,Grants expenditure,Early Years Schools Group,Heritage High School,8365304,49827,"Grants paid to organisations including agencies, arms length bodies and educational establishments"
Department for Education,Education and Skills Funding Agency,01/09/2020,Grants expenditure,Early Years Schools Group,GURU NANAK SIKH ACADEMY,8365306,49797,"Grants paid to organisations including agencies, arms length bodies and educational establishments"
Department for Education,Education and Skills Funding Agency,01/09/2020,Grants expenditure,Early Years Schools Group,Lee Chapel Primary School,8365308,49733,"Grants paid to organisations including agencies, arms length bodies and educational establishments"
Department for Education,Education and Skills Funding Agency,01/09/2020,Grants expenditure,Early Years Schools Group,Vicarage Primary School,8365310,49715,"Grants paid to organisations including agencies, arms length bodies and educational establishments"
Department for Education,Education and Skills Funding Agency,01/09/2020,Grants expenditure,Early Years Schools Group,North Chadderton School,8365312,49366,"Grants paid to organisations including agencies, arms length bodies and educational establishments"
Department for Education,Education and Skills Funding Agency,01/09/2020,Grants expenditure,Early Years Schools Group,SKINNERS' ACADEMY,8365314,49357,"Grants paid to organisations including agencies, arms length bodies and educational establishments"
Department for Education,Education and Skills Funding Agency,01/09/2020,Grants expenditure,Early Years Schools Group,Great Sankey High School,8365316,49267,"Grants paid to organisations including agencies, arms length bodies and educational establishments"
Department for Education,Education and Skills Funding Agency,01/09/2020,Grants expenditure,Early Years Schools Group,St Joseph's Catholic High School,8365318,49000,"Grants paid to organisations including agencies, arms length bodies and educational establishments"
Department for Education,Education and Skills Funding Agency,01/09/2020,Grants expenditure,Early Years Schools Group,Uplands School,8365320,48737,"Grants paid to organisations including agencies, arms length bodies and educational establishments"
Department for Education,Education and Skills Funding Agency,01/09/2020,Grants expenditure,Early Years Schools Group,Dinnington High School,8365322,48643,"Grants paid to organisations including agencies, arms length bodies and educational establishments"
Department for Education,Education and Skills Funding Agency,01/09/2020,Grants expenditure,Early Years Schools Group,Portslade Aldridge Community Academy,8365324,48612,"Grants paid to organisations including agencies, arms length bodies and educational establishments"
Department for Education,Education and Skills Funding Agency,01/09/2020,Grants expenditure,Early Years Schools Group,The Charter School ,8365326,48434,"Grants paid to organisations including agencies, arms length bodies and educational establishments"
Department for Education,Education and Skills Funding Agency,01/09/2020,Grants expenditure,Early Years Schools Group,Parrs Wood High School,8365328,48229,"Grants paid to organisations including agencies, arms length bodies and educational establishments"
Department for Education,Education and Skills Funding Agency,01/09/2020,Grants expenditure,Early Years Schools Group,Alleyne's Academy,8365330,47854,"Grants paid to organisations including agencies, arms length bodies and educational establishments"
Department for Education,Education and Skills Funding Agency,01/09/2020,Grants expenditure,Early Years Schools Group,Bellerive FCJ Catholic College,8365332,47750,"Grants paid to organisations including agencies, arms length bodies and educational establishments"
Department for Education,Education and Skills Funding Agency,01/09/2020,Grants expenditure,Early Years Schools Group,Okehampton College,8365334,47285,"Grants paid to organisations including agencies, arms length bodies and educational establishments"
Department for Education,Education and Skills Funding Agency,01/09/2020,Grants expenditure,Early Years Schools Group,Wilsthorpe Community School,8365336,47149,"Grants paid to organisations including agencies, arms length bodies and educational establishments"
Department for Education,Education and Skills Funding Agency,01/09/2020,Grants expenditure,Early Years Schools Group,Ark Globe Academy,8365338,47141,"Grants paid to organisations including agencies, arms length bodies and educational establishments"
Department for Education,Education and Skills Funding Agency,01/09/2020,Grants expenditure,Early Years Schools Group,Wollaston School,8365340,46814,"Grants paid to organisations including agencies, arms length bodies and educational establishments"
Department for Education,Education and Skills Funding Agency,01/09/2020,Grants expenditure,Early Years Schools Group,Marylebone Boys' School,8365342,46446,"Grants paid to organisations including agencies, arms length bodies and educational establishments"
Department for Education,Education and Skills Funding Agency,01/09/2020,Grants expenditure,Early Years Schools Group,Netherwood Academy ,8365344,46130,"Grants paid to organisations including agencies, arms length bodies and educational establishments"
Department for Education,Education and Skills Funding Agency,01/09/2020,Grants expenditure,Early Years Schools Group,Leeds East Academy,8365346,45938,"Grants paid to organisations including agencies, arms length bodies and educational establishments"
Department for Education,Education and Skills Funding Agency,01/09/2020,Grants expenditure,Early Years Schools Group,Haywood Academy,8365348,45859,"Grants paid to organisations including agencies, arms length bodies and educational establishments"
Department for Education,Education and Skills Funding Agency,01/09/2020,Grants expenditure,Early Years Schools Group,Darlinghurst School ,8365350,45794,"Grants paid to organisations including agencies, arms length bodies and educational establishments"
Department for Education,Education and Skills Funding Agency,01/09/2020,Grants expenditure,Early Years Schools Group,"Queen Elizabeth's School, Barnet",8365352,45646,"Grants paid to organisations including agencies, arms length bodies and educational establishments"
Department for Education,Education and Skills Funding Agency,01/09/2020,Grants expenditure,Early Years Schools Group,Sunbury Manor School,8365354,45510,"Grants paid to organisations including agencies, arms length bodies and educational establishments"
Department for Education,Education and Skills Funding Agency,01/09/2020,Grants expenditure,Early Years Schools Group,The St Lawrence Academy,8365356,45375,"Grants paid to organisations including agencies, arms length bodies and educational establishments"
Department for Education,Education and Skills Funding Agency,01/09/2020,Grants expenditure,Early Years Schools Group,MANOR PRIMARY SCHOOL,8365358,45242,"Grants paid to organisations including agencies, arms length bodies and educational establishments"
